Workbook

Sheet START
A1: =muni -> NC074 Kareeberg

Sheet Instructions
D2: 2020
X4: Yes
X5: No
W7: Type of Entities Range: | X7: Parent Municipality
X8: Consolidated Information
W10: Date linked | X10: 17
W11: Date | X11: =VLOOKUP(X10,W39:X55,2) -> Mid-Year Assessment
W19: MTREF Range: | X19: 2008
X20: 2009
X21: 2010
X22: 2011
X23: 2012
X24: 2013
X25: 2014
X26: 2016
X27: 2017
X28: 2018
X29: 2019
X30: 2020
X31: 2021
X32: 2022
W34: MTREF Linked: | X34: 5
W35: MTREF: | X35: =INDEX(X19:X32,X34,1) -> 2012
W37: Fin Year: | X37: =MTREF&"/"&RIGHT(MTREF,2)+1 -> 2012/13
V39: Date/type of report | W39: 1 | X39: M01 July
W40: 2 | X40: M02 August
W41: 3 | X41: M03 September
W42: 4 | X42: M04 October
W43: 5 | X43: M05 November
W44: 6 | X44: M06 December
W45: 7 | X45: M07 January
W46: 8 | X46: M08 February
W47: 9 | X47: M09 March
W48: 10 | X48: M10 April
W49: 11 | X49: M11 May
W50: 12 | X50: M12 June
W51: 13 | X51: Q1 First Quarter
W52: 14 | X52: Q2 Second Quarter
W53: 15 | X53: Q3 Third Quarter
W54: 16 | X54: Q4 Fourth Quarter
W55: 17 | X55: Mid-Year Assessment

Sheet Template names (hidden)
A1: Common sheet headings
A2: Head1 | B2: =HLOOKUP(MTREF,Headings,2) -> 2011/12 | C2: Prior year -1
A3: Head2 | B3: =HLOOKUP(MTREF,Headings,5) -> Budget Year 2012/13 | C3: Year of approved budget
A4: Head2A | B4: =HLOOKUP(MTREF,Headings,4) -> 2012/13 | C4: Approved budget year
A5: Head3 | B5: =HLOOKUP(MTREF,Headings,3) -> 2012/13 Medium Term Revenue & Expenditure Framework | C5: MTREF header name
A6: Head5 | B6: Audited Outcome
A7: Head5A | B7: Outcome
A8: Head5B | B8: Pre-audit outcome
A9: Head6 | B9: Original Budget
A10: Head7 | B10: Adjusted Budget
A11: Head8 | B11: Full Year Forecast
A12: Head9 | B12: =HLOOKUP(MTREF,Headings,5) -> Budget Year 2012/13 | C12: 1st year of MTREF | D12: Year1
A13: Head10 | B13: =HLOOKUP(MTREF,Headings,6) -> Budget Year +1 2013/14 | C13: 2nd year of MTREF | D13: Year2
A14: Head11 | B14: =HLOOKUP(MTREF,Headings,7) -> Budget Year +2 2014/15 | C14: 3rd year of MTREF | D14: Year3
A15: Head12 | B15: Forecast 2010/11 | D15: Year4
A16: Head13 | B16: Forecast 2011/12 | D16: Year5
A17: Head14 | B17: Forecast 2012/13 | D17: Year6
A18: Head15 | B18: Forecast 2013/14 | D18: Year7
A19: Head16 | B19: Forecast 2014/15 | D19: Year8
A20: Head17 | B20: Forecast 2015/16 | D20: Year9
A21: Head18 | B21: Forecast 2016/17 | D21: Year10
A22: Head19 | B22: Forecast 2017/18 | D22: Year11
A23: Head20 | B23: Forecast 2018/19 | D23: Year12
A24: Head21 | B24: Forecast 2019/20 | D24: Year13
A25: Head22 | B25: Forecast 2020/21 | D25: Year14
A26: Head23 | B26: Forecast 2021/22 | D26: Year15
A27: Head24 | B27: Description | D27: Desc
A28: Head25 | B28: Schedule of funding diligence | D28: fdil
A29: Head26 | B29: Vote Description | D29: VDesc
A30: Head27 | B30: Ref
A31: Head27a | B31: References
A32: Head28 | B32: Surplus/ (Deficit) for the year | D32: Result
A33: Head29 | B33: Annual target 2007/08
A34: Head30 | B34: Revised target 2007/08
A35: Head31 | B35: Quarter ended 30 September
A36: Head32 | B36: Quarter ended 31 December
A37: Head33 | B37: Quarter ended 31 March
A38: Head34 | B38: Quarter ended 30 June
A39: Head35 | B39: Variance explanation
A40: Head36 | B40: YTD Actual 31 Dec
A41: Head37 | B41: YTD Budget 31 Dec
A42: Head38 | B42: Monthly actual
A43: Head39 | B43: YearTD actual
A44: Head40 | B44: YearTD budget
A45: Head41 | B45: YTD variance
A46: Head42 | B46: Surplus/ (Deficit) for the yr/period
A47: Head43 | B47: =Head3&" Summary" -> 2012/13 Medium Term Revenue & Expenditure Framework Summary
A48: Head44 | B48: 1996 Census
A49: Head45 | B49: 2001 Census
A50: Head46 | B50: - Adjustments Budget - Month YYYY
A51: Head47 | B51: Previous target year to complete
A52: Head48 | B52: Present value
A53: Head49 | B53: Virement
A54: Head50 | B54: Other Adjusts.
A55: Head51 | B55: Accum. Funds
A56: Head52 | B56: Multi-year capital
A57: Head53 | B57: Unfore. Unavoid.
A58: Head54 | B58: Prior Adjusted
A59: Head55 | B59: Nat. or Prov. Govt
A60: Head56 | B60: Total Adjusts.
A61: Head57 | B61: =date -> Mid-Year Assessment
A62: Head58 | B62: Parent muni.
A63: Head59 | B63: Downward adjusts
A64: Head60 | B64: Month | C64: Report header part name | D64: =MONTH(date) -> 
A65: SFPerf1 | B65: Budgeted Financial Performance
A66: SFPerf2 | B66: Forecast Financial Performance
A67: SFPos1 | B67: Budgeted Financial Position
A68: SFPos2 | B68: Forecast Financial Position
A69: Cash1 | B69: Budget Cash Flow
A70: Cash2 | B70: Forecast Cash Flow
A71: RandM | B71: Expenditure includes repairs & maintenance of R'000
A72: Standard nomenclature
A73: Muni | B73: ='Lookup and lists'!B27 -> NC074 Kareeberg
A74: Municipal Entities | B74: 2 | C74: Type of report: | D74: 3
A75: =IF((MuniEntities=1)*(MuniType=2),"YES","NO") -> NO | B75: Does this municipality have entities (consolidated budget and entity budgets required)? YES/NO
A76: s71 (Monthly Mayor report) schedules and charts
A77: S71sum | B77: =IF(Consolques="YES",E77,F77) -> Table C1 Monthly Budget Statement Summary | D77: Table C1 | E77: =D77&"Consolidated Monthly Budget Statement Summary" -> Table C1 Consolidated Monthly Budget Statement Summary | F77: =D77&"Monthly Budget Statement Summary" -> Table C1 Monthly Budget Statement Summary
A78: S71C | B78: Table C3 Monthly Budget Statement - Financial Performance (revenue and expenditure by municipal vote) | D78: Table C3 | E78: =D78&"Consolidated Monthly Budget Statement - Financial Performance (revenue and expenditure by municipal vote) " -> Table C3 Consolidated Monthly Budget Statement - Financial Performance (revenue and expenditure by municipal vote) | F78: =D78&"Monthly Budget Statement - Financial Performance (revenue and expenditure by municipal vote)" -> Table C3 Monthly Budget Statement - Financial Performance (revenue and expenditure by municipal vote)
A79: S71A | B79: =IF(Consolques="YES",E79,F79) -> Table C2 Monthly Budget Statement - Financial Performance (standard classification) | D79: Table C2 | E79: =D79&"Consolidated Monthly Budget Statement - Financial Performance (standard classification) " -> Table C2 Consolidated Monthly Budget Statement - Financial Performance (standard classification) | F79: =D79&"Monthly Budget Statement - Financial Performance (standard classification)" -> Table C2 Monthly Budget Statement - Financial Performance (standard classification)
A80: S71B | B80: =IF(Consolques="YES",E80,F80) -> Table C4 Monthly Budget Statement - Financial Performance (revenue and expenditure) | D80: Table C4 | E80: =D80&"Consolidated Monthly Budget Statement - Financial Performance (revenue and expenditure) " -> Table C4 Consolidated Monthly Budget Statement - Financial Performance (revenue and expenditure) | F80: =D80&"Monthly Budget Statement - Financial Performance (revenue and expenditure)" -> Table C4 Monthly Budget Statement - Financial Performance (revenue and expenditure)
A81: S71D | B81: Table C5 Monthly Budget Statement - Capital Expenditure (municipal vote, standard classification and funding) | D81: Table C5 | E81: =D81&"Consolidated Monthly Budget Statement - Capital Expenditure (municipal vote, standard classification and funding " -> Table C5 Consolidated Monthly Budget Statement - Capital Expenditure (municipal vote, standard classification and funding | F81: =D81&"Monthly Budget Statement - Capital Expenditure (municipal vote, standard classification and funding)" -> Table C5 Monthly Budget Statement - Capital Expenditure (municipal vote, standard classification and funding)
A82: S71E | B82: Table C6 Monthly Budget Statement - Financial Position | D82: Table C6 | E82: =D82&"Consolidated Monthly Budget Statement - Financial Position " -> Table C6 Consolidated Monthly Budget Statement - Financial Position | F82: =D82&"Monthly Budget Statement - Financial Position" -> Table C6 Monthly Budget Statement - Financial Position
A83: S71F | B83: Table C7 Monthly Budget Statement - Cash Flow | D83: Table C7 | E83: =D83&"Consolidated Monthly Budget Statement - Cash Flow " -> Table C7 Consolidated Monthly Budget Statement - Cash Flow | F83: =D83&"Monthly Budget Statement - Cash Flow " -> Table C7 Monthly Budget Statement - Cash Flow
A84: S71G | B84: =D84&"Material variance explanations " -> Supporting Table SC1 Material variance explanations | D84: Supporting Table SC1
A85: S71H | B85: =D85&"Monthly Budget Statement - performance indicators " -> Supporting Table SC2 Monthly Budget Statement - performance indicators | D85: Supporting Table SC2
A86: S71I | B86: =D86&"Monthly Budget Statement - aged debtors" -> Supporting Table SC3 Monthly Budget Statement - aged debtors | D86: Supporting Table SC3
A87: S71J | B87: =D87&"Monthly Budget Statement - aged creditors " -> Supporting Table SC4 Monthly Budget Statement - aged creditors | D87: Supporting Table SC4
A88: S71K | B88: =D88&"Monthly Budget Statement - investment portfolio " -> Supporting Table SC5 Monthly Budget Statement - investment portfolio | D88: Supporting Table SC5
A89: S71L | B89: =D89&"Monthly Budget Statement - transfers and grant receipts " -> Supporting Table SC6 Monthly Budget Statement - transfers and grant receipts | D89: Supporting Table SC6
A90: S71M | B90: =D90&"Monthly Budget Statement - transfers and grant expenditure " -> Supporting Table SC7 Monthly Budget Statement - transfers and grant expenditure | D90: Supporting Table SC7
A91: S71N | B91: =D91&"Monthly Budget Statement - counillor and staff benefits " -> Supporting Table SC8 Monthly Budget Statement - counillor and staff benefits | D91: Supporting Table SC8
A92: S71O | B92: =D92&"Monthly Budget Statement - actuals and revised targets for cash receipts" -> Supporting Table SC9 Monthly Budget Statement - actuals and revised targets for cash receipts | D92: Supporting Table SC9
A93: S71P | B93: =IF(Consolques="YES",E93,F93) -> NOT REQUIRED - municipality does not have entities or this is the parent municipality's budget | D93: Supporting Table SC10 | E93: =D93&"Monthly Budget Statement - Parent Municipality Financial Performance (revenue and expenditure) " -> Supporting Table SC10 Monthly Budget Statement - Parent Municipality Financial Performance (revenue and expenditure) | F93: NOT REQUIRED - municipality does not have entities or this is the parent municipality's budget
A94: S71Q | B94: NOT REQUIRED - municipality does not have entities or this is the parent municipality's budget | D94: Supporting Table SC11 | E94: =D94&"Monthly Budget Statement - summary of municipal entities" -> Supporting Table SC11 Monthly Budget Statement - summary of municipal entities | F94: NOT REQUIRED - municipality does not have entities or this is the parent municipality's budget
A95: S71R | B95: Supporting Table SC12 Monthly Budget Statement - capital expenditure trend | D95: Supporting Table SC12 | E95: =D95&"Consolidated Monthly Budget Statement - capital expenditure trend " -> Supporting Table SC12 Consolidated Monthly Budget Statement - capital expenditure trend | F95: =D95&"Monthly Budget Statement - capital expenditure trend" -> Supporting Table SC12 Monthly Budget Statement - capital expenditure trend
A96: S71Sa | B96: Supporting Table SC13a Monthly Budget Statement - capital expenditure on new assets by asset class | D96: Supporting Table SC13a | E96: =D96&"Consolidated Monthly Budget Statement - capital expenditure on new assets by asset class" -> Supporting Table SC13a Consolidated Monthly Budget Statement - capital expenditure on new assets by asset class | F96: =D96&"Monthly Budget Statement - capital expenditure on new assets by asset class" -> Supporting Table SC13a Monthly Budget Statement - capital expenditure on new assets by asset class
A97: S71Sb | B97: Supporting Table SC13b Monthly Budget Statement - capital expenditure on renewal of existing assets by asset class | D97: Supporting Table SC13b | E97: =D97&"Consolidated Monthly Budget Statement - capital expenditure on renewal of existing assets by asset class" -> Supporting Table SC13b Consolidated Monthly Budget Statement - capital expenditure on renewal of existing assets by asset class | F97: =D97&"Monthly Budget Statement - capital expenditure on renewal of existing assets by asset class" -> Supporting Table SC13b Monthly Budget Statement - capital expenditure on renewal of existing assets by asset class
A98: S71Sc | B98: Supporting Table SC13c Monthly Budget Statement - expenditure on repairs and maintenance by asset class | D98: Supporting Table SC13c | E98: =D98&"Consolidated Monthly Budget Statement - expenditure on repairs and maintenance by asset class" -> Supporting Table SC13c Consolidated Monthly Budget Statement - expenditure on repairs and maintenance by asset class | F98: =D98&"Monthly Budget Statement - expenditure on repairs and maintenance by asset class" -> Supporting Table SC13c Monthly Budget Statement - expenditure on repairs and maintenance by asset class
A99: S71Sd | B99: Supporting Table SC13d Monthly Budget Statement - depreciation by asset class | D99: Supporting Table SC13d | E99: =D99&"Consolidated Monthly Budget Statement - depreciation by asset class" -> Supporting Table SC13d Consolidated Monthly Budget Statement - depreciation by asset class | F99: =D99&"Monthly Budget Statement - depreciation by asset class" -> Supporting Table SC13d Monthly Budget Statement - depreciation by asset class
B100: s71 charts listing
B101: =D101&Head2A&" Capital Expenditure Monthly Trend: actual v target" -> Chart C1 2012/13 Capital Expenditure Monthly Trend: actual v target | D101: Chart C1
B102: =D102&Head2A&" Capital Expenditure: YTD actual v YTD target" -> Chart C2 2012/13 Capital Expenditure: YTD actual v YTD target | D102: Chart C2
B103: =D103&"Aged Consumer Debtors Analysis" -> Chart C3 Aged Consumer Debtors Analysis | D103: Chart C3
B104: =D104&"Consumer Debtors (total by Debtor Customer Category)" -> Chart C4 Consumer Debtors (total by Debtor Customer Category) | D104: Chart C4
B105: =D105&"Aged Creditors Analysis" -> Chart C5 Aged Creditors Analysis | D105: Chart C5

Sheet Lookup and lists (hidden)
A1: Description | B1: 2007 | C1: 2008 | D1: 2009 | E1: 2010 | F1: 2011 | G1: 2012 | H1: 2013 | I1: 2014 | J1: 2015 | K1: 2016 | L1: 2017 | M1: 2018 | N1: 2019 | O1: 2020 | Q1: Grants: | R1: National - opex | S1: Provincial - opex | T1: National - capex | U1: Provincial - capex | V1: YESNO
A2: ='Template names'!C2 -> Prior year -1 | B2: 2006/07 | C2: 2007/08 | D2: 2008/09 | E2: =E1-1&"/"&RIGHT(E1,2)-0 -> 2009/10 | F2: =F1-1&"/"&RIGHT(F1,2)-0 -> 2010/11 | G2: 2011/12 | H2: 2012/13 | I2: 2013/14 | J2: 2014/15 | K2: 2015/16 | L2: 2016/17 | M2: 2017/18 | N2: 2018/19 | O2: 2019/20 | R2: Local Government Equitable Share | S2: Health subsidy | T2: Municipal Infrastructure Grant (MIG) | U2: Agriculture | V2: Yes
A3: ='Template names'!C5 -> MTREF header name | B3: 2007/08 Medium Term Revenue & Expenditure Framework | C3: 2008/09 Medium Term Revenue & Expenditure Framework | D3: 2009/10 Medium Term Revenue & Expenditure Framework | E3: =E1&"/"&RIGHT(E1,2)+1&" Medium Term Revenue & Expenditure Framework" -> 2010/11 Medium Term Revenue & Expenditure Framework | F3: =F1&"/"&RIGHT(F1,2)+1&" Medium Term Revenue & Expenditure Framework" -> 2011/12 Medium Term Revenue & Expenditure Framework | G3: 2012/13 Medium Term Revenue & Expenditure Framework | H3: 2013/14 Medium Term Revenue & Expenditure Framework | I3: 2014/15 Medium Term Revenue & Expenditure Framework | J3: 2015/16 Medium Term Revenue & Expenditure Framework | K3: 2016/17 Medium Term Revenue & Expenditure Framework | L3: 2017/18 Medium Term Revenue & Expenditure Framework | M3: 2018/19 Medium Term Revenue & Expenditure Framework | N3: 2019/20 Medium Term Revenue & Expenditure Framework | O3: 2020/21 Medium Term Revenue & Expenditure Framework | R3: RSC Levy Replacement | S3: Ambulance subsidy | T3: Public Transport and Systems | U3: Education | V3: No
A4: ='Template names'!C4 -> Approved budget year | B4: 2007/08 | C4: 2008/09 | D4: 2009/10 | E4: =E1&"/"&RIGHT(E1,2)+1 -> 2010/11 | F4: =F1&"/"&RIGHT(F1,2)+1 -> 2011/12 | G4: 2012/13 | H4: 2013/14 | I4: 2014/15 | J4: 2015/16 | K4: 2016/17 | L4: 2017/18 | M4: 2018/19 | N4: 2019/20 | O4: 2020/21 | R4: Finance Management | S4: Housing | T4: Rural Transport Services and Infrastructure | U4: Health
A5: ='Template names'!C12 -> 1st year of MTREF | B5: Budget Year 2007/08 | C5: Budget Year 2008/09 | D5: Budget Year 2009/10 | E5: ="Budget Year "&E1&"/"&RIGHT(E1,2)+1 -> Budget Year 2010/11 | F5: ="Budget Year "&F1&"/"&RIGHT(F1,2)+1 -> Budget Year 2011/12 | G5: Budget Year 2012/13 | H5: Budget Year 2013/14 | I5: Budget Year 2014/15 | J5: Budget Year 2015/16 | K5: Budget Year 2016/17 | L5: Budget Year 2017/18 | M5: Budget Year 2018/19 | N5: Budget Year 2019/20 | O5: Budget Year 2020/21 | R5: Municipal Systems Improvement | S5: Sport and Recreation | T5: Regional Bulk Infrastructure | U5: Housing and Local Government
A6: ='Template names'!C13 -> 2nd year of MTREF | B6: Budget Year +1 2008/09 | C6: Budget Year +1 2009/10 | D6: Budget Year +1 2010/11 | E6: ="Budget Year +1 "&E1+1&"/"&RIGHT(E1,2)+2 -> Budget Year +1 2011/12 | F6: ="Budget Year +1 "&F1+1&"/"&RIGHT(F1,2)+2 -> Budget Year +1 2012/13 | G6: Budget Year +1 2013/14 | H6: Budget Year +1 2014/15 | I6: Budget Year +1 2015/16 | J6: Budget Year +1 2016/17 | K6: Budget Year +1 2017/18 | L6: Budget Year +1 2018/19 | M6: Budget Year +1 2019/20 | N6: Budget Year +1 2020/21 | O6: Budget Year +1 2021/22 | R6: Water Services Operating Subsidy | T6: Rural Households Infrastructure | U6: Other Departments
A7: ='Template names'!C14 -> 3rd year of MTREF | B7: Budget Year +2 2009/10 | C7: Budget Year +2 2010/11 | D7: Budget Year +2 2011/12 | E7: ="Budget Year +2 "&E1+2&"/"&RIGHT(E1,2)+3 -> Budget Year +2 2012/13 | F7: ="Budget Year +2 "&F1+2&"/"&RIGHT(F1,2)+3 -> Budget Year +2 2013/14 | G7: Budget Year +2 2014/15 | H7: Budget Year +2 2015/16 | I7: Budget Year +2 2016/17 | J7: Budget Year +2 2017/18 | K7: Budget Year +2 2018/19 | L7: Budget Year +2 2019/20 | M7: Budget Year +2 2020/21 | N7: Budget Year +2 2021/22 | O7: Budget Year +2 2022/23 | R7: Energy Efficiency and Demand Management | T7: Neighbourhood Development Partnership | U7: Public Works, Roads, Transport
A8: NOTE: This sheet should not be directly amended - select headings from sheet 'S' | R8: Integrated National Electrification Programme | T8: 2010 FIFA World Cup Stadiums Development | U8: Sport and Recreation
R9: Municipal Drought Relief
R10: 2010 FIFA World Cup Operating
R11: Electricity Demand Side Management
R12: EPWP Incentive
A26: Name link | B26: 218
A27: Name of Muni | B27: =INDEX(B28:B311,B26,1) -> NC074 Kareeberg
B28: Choose name from list | C28: Set name on 'Instructions' sheet
B29: DC1 West Coast | C29: WC WESTERN CAPE
B30: DC10 Cacadu | C30: EC EASTERN CAPE
B31: DC12 Amathole | C31: EC EASTERN CAPE
B32: DC13 Chris Hani | C32: EC EASTERN CAPE
B33: DC14 Joe Gqabi | C33: EC EASTERN CAPE
B34: DC15 O .R. Tambo | C34: EC EASTERN CAPE
B35: DC16 Xhariep | C35: FS FREE STATE
B36: DC18 Lejweleputswa | C36: FS FREE STATE
B37: DC19 Thabo Mofutsanyana | C37: FS FREE STATE
B38: DC2 Cape Winelands DM | C38: WC WESTERN CAPE
B39: DC20 Fezile Dabi | C39: FS FREE STATE
B40: DC21 Ugu | C40: KZN KWAZULU-NATAL
B41: DC22 uMgungundlovu | C41: KZN KWAZULU-NATAL
B42: DC23 Uthukela | C42: KZN KWAZULU-NATAL
B43: DC24 Umzinyathi | C43: KZN KWAZULU-NATAL
B44: DC25 Amajuba | C44: KZN KWAZULU-NATAL
B45: DC26 Zululand | C45: KZN KWAZULU-NATAL
B46: DC27 Umkhanyakude | C46: KZN KWAZULU-NATAL
B47: DC28 uThungulu | C47: KZN KWAZULU-NATAL
B48: DC29 iLembe | C48: KZN KWAZULU-NATAL
B49: DC3 Overberg | C49: WC WESTERN CAPE
B50: DC30 Gert Sibande | C50: MP MPUMALANGA
B51: DC31 Nkangala | C51: MP MPUMALANGA
B52: DC32 Ehlanzeni | C52: MP MPUMALANGA
B53: DC33 Mopani | C53: MP MPUMALANGA
B54: DC34 Vhembe | C54: LP LIMPOPO
B55: DC35 Capricorn | C55: LP LIMPOPO
B56: DC36 Waterberg | C56: LP LIMPOPO
B57: DC37 Bojanala Platinum | C57: NW NORTH WEST
B58: DC38 Ngaka Modiri Molema | C58: NW NORTH WEST
B59: DC39 Dr Ruth Segomotsi Mompati | C59: NW NORTH WEST
B60: DC4 Eden | C60: WC WESTERN CAPE
B61: DC40 Dr Kenneth Kaunda | C61: NW NORTH WEST
B62: DC42 Sedibeng | C62: GT GAUTENG
B63: DC43 Sisonke | C63: KZN KWAZULU-NATAL
B64: DC44 Alfred Nzo | C64: EC EASTERN CAPE
B65: DC45 John Taolo Gaetsewe | C65: NC NORTHERN CAPE
B66: DC47 Sekhukhune | C66: LP LIMPOPO
B67: DC48 West Rand | C67: GT GAUTENG
B68: DC5 Central Karoo | C68: WC WESTERN CAPE
B69: DC6 Namakwa | C69: NC NORTHERN CAPE
B70: DC7 Pixley Ka Seme (Nc) | C70: NC NORTHERN CAPE
B71: DC8 Siyanda | C71: NC NORTHERN CAPE
B72: DC9 Frances Baard | C72: NC NORTHERN CAPE
B73: EC000 Nelson Mandela Bay | C73: EC EASTERN CAPE
B74: EC001 Buffalo City | C74: EC EASTERN CAPE
B75: EC101 Camdeboo | C75: EC EASTERN CAPE
B76: EC102 Blue Crane Route | C76: EC EASTERN CAPE
B77: EC103 Ikwezi | C77: EC EASTERN CAPE
B78: EC104 Makana | C78: EC EASTERN CAPE
B79: EC105 Ndlambe | C79: EC EASTERN CAPE
B80: EC106 Sundays River Valley | C80: EC EASTERN CAPE
B81: EC107 Baviaans | C81: EC EASTERN CAPE
B82: EC108 Kouga | C82: EC EASTERN CAPE
B83: EC109 Kou-Kamma | C83: EC EASTERN CAPE
B84: EC121 Mbhashe | C84: EC EASTERN CAPE
B85: EC122 Mnquma | C85: EC EASTERN CAPE
B86: EC123 Great Kei | C86: EC EASTERN CAPE
B87: EC124 Amahlathi | C87: EC EASTERN CAPE
B88: EC126 Ngqushwa | C88: EC EASTERN CAPE
B89: EC127 Nkonkobe | C89: EC EASTERN CAPE
B90: EC128 Nxuba | C90: EC EASTERN CAPE
B91: EC131 Inxuba Yethemba | C91: EC EASTERN CAPE
B92: EC132 Tsolwana | C92: EC EASTERN CAPE
B93: EC133 Inkwanca | C93: EC EASTERN CAPE
B94: EC134 Lukhanji | C94: EC EASTERN CAPE
B95: EC135 Intsika Yethu | C95: EC EASTERN CAPE
B96: EC136 Emalahleni (Ec) | C96: EC EASTERN CAPE
B97: EC137 Engcobo | C97: EC EASTERN CAPE
B98: EC138 Sakhisizwe | C98: EC EASTERN CAPE
B99: EC141 Elundini | C99: EC EASTERN CAPE
B100: EC142 Senqu | C100: EC EASTERN CAPE
B101: EC143 Maletswai | C101: EC EASTERN CAPE
B102: EC144 Gariep | C102: EC EASTERN CAPE
B103: EC153 Ngquza Hills | C103: EC EASTERN CAPE
B104: EC154 Port St Johns | C104: EC EASTERN CAPE
B105: EC155 Nyandeni | C105: EC EASTERN CAPE
B106: EC156 Mhlontlo | C106: EC EASTERN CAPE
B107: EC157 King Sabata Dalindyebo | C107: EC EASTERN CAPE
B108: EC441 Matatiele | C108: EC EASTERN CAPE
B109: EC442 Umzimvubu | C109: EC EASTERN CAPE
B110: EC443 Mbizana | C110: EC EASTERN CAPE
B111: EC444 Ntabankulu | C111: EC EASTERN CAPE
B112: FS000 Mangaung | C112: FS FREE STATE
B113: FS161 Letsemeng | C113: FS FREE STATE
B114: FS162 Kopanong | C114: FS FREE STATE
B115: FS163 Mohokare | C115: FS FREE STATE
B116: FS164 Naledi (Fs) | C116: FS FREE STATE
B117: FS181 Masilonyana | C117: FS FREE STATE
B118: FS182 Tokologo | C118: FS FREE STATE
B119: FS183 Tswelopele | C119: FS FREE STATE
B120: FS184 Matjhabeng | C120: FS FREE STATE
B121: FS185 Nala | C121: FS FREE STATE
B122: FS191 Setsoto | C122: FS FREE STATE
B123: FS192 Dihlabeng | C123: FS FREE STATE
B124: FS193 Nketoana | C124: FS FREE STATE
B125: FS194 Maluti-a-Phofung | C125: FS FREE STATE
B126: FS195 Phumelela | C126: FS FREE STATE
B127: FS196 Mantsopa | C127: FS FREE STATE
B128: FS201 Moqhaka | C128: FS FREE STATE
B129: FS203 Ngwathe | C129: FS FREE STATE
B130: FS204 Metsimaholo | C130: FS FREE STATE
B131: FS205 Mafube | C131: FS FREE STATE
B132: GT000 Ekurhuleni Metro | C132: GT GAUTENG
B133: GT001 City Of Johannesburg | C133: GT GAUTENG
B134: GT002 City Of Tshwane | C134: GT GAUTENG
B135: GT421 Emfuleni | C135: GT GAUTENG
B136: GT422 Midvaal | C136: GT GAUTENG
B137: GT423 Lesedi | C137: GT GAUTENG
B138: GT481 Mogale City | C138: GT GAUTENG
B139: GT482 Randfontein | C139: GT GAUTENG
B140: GT483 Westonaria | C140: GT GAUTENG
B141: GT484 Merafong City | C141: GT GAUTENG
B142: KZN000 eThekwini | C142: KZN KWAZULU-NATAL
B143: KZN211 Vulamehlo | C143: KZN KWAZULU-NATAL
B144: KZN212 Umdoni | C144: KZN KWAZULU-NATAL
B145: KZN213 Umzumbe | C145: KZN KWAZULU-NATAL
B146: KZN214 uMuziwabantu | C146: KZN KWAZULU-NATAL
B147: KZN215 Ezinqoleni | C147: KZN KWAZULU-NATAL
B148: KZN216 Hibiscus Coast | C148: KZN KWAZULU-NATAL
B149: KZN221 uMshwathi | C149: KZN KWAZULU-NATAL
B150: KZN222 uMngeni | C150: KZN KWAZULU-NATAL
B151: KZN223 Mpofana | C151: KZN KWAZULU-NATAL
B152: KZN224 Impendle | C152: KZN KWAZULU-NATAL
B153: KZN225 Msunduzi | C153: KZN KWAZULU-NATAL
B154: KZN226 Mkhambathini | C154: KZN KWAZULU-NATAL
B155: KZN227 Richmond | C155: KZN KWAZULU-NATAL
B156: KZN232 Emnambithi/Ladysmith | C156: KZN KWAZULU-NATAL
B157: KZN233 Indaka | C157: KZN KWAZULU-NATAL
B158: KZN234 Umtshezi | C158: KZN KWAZULU-NATAL
B159: KZN235 Okhahlamba | C159: KZN KWAZULU-NATAL
B160: KZN236 Imbabazane | C160: KZN KWAZULU-NATAL
B161: KZN241 Endumeni | C161: KZN KWAZULU-NATAL
B162: KZN242 Nquthu | C162: KZN KWAZULU-NATAL
B163: KZN244 Msinga | C163: KZN KWAZULU-NATAL
B164: KZN245 Umvoti | C164: KZN KWAZULU-NATAL
B165: KZN252 Newcastle | C165: KZN KWAZULU-NATAL
B166: KZN253 eMadlangeni | C166: KZN KWAZULU-NATAL
B167: KZN254 Dannhauser | C167: KZN KWAZULU-NATAL
B168: KZN261 eDumbe | C168: KZN KWAZULU-NATAL
B169: KZN262 uPhongolo | C169: KZN KWAZULU-NATAL
B170: KZN263 Abaqulusi | C170: KZN KWAZULU-NATAL
B171: KZN265 Nongoma | C171: KZN KWAZULU-NATAL
B172: KZN266 Ulundi | C172: KZN KWAZULU-NATAL
B173: KZN271 Umhlabuyalingana | C173: KZN KWAZULU-NATAL
B174: KZN272 Jozini | C174: KZN KWAZULU-NATAL
B175: KZN273 The Big 5 False Bay | C175: KZN KWAZULU-NATAL
B176: KZN274 Hlabisa | C176: KZN KWAZULU-NATAL
B177: KZN275 Mtubatuba | C177: KZN KWAZULU-NATAL
B178: KZN281 Mfolozi | C178: KZN KWAZULU-NATAL
B179: KZN282 uMhlathuze | C179: KZN KWAZULU-NATAL
B180: KZN283 Ntambanana | C180: KZN KWAZULU-NATAL
B181: KZN284 uMlalazi | C181: KZN KWAZULU-NATAL
B182: KZN285 Mthonjaneni | C182: KZN KWAZULU-NATAL
B183: KZN286 Nkandla | C183: KZN KWAZULU-NATAL
B184: KZN291 Mandeni | C184: KZN KWAZULU-NATAL
B185: KZN292 KwaDukuza | C185: KZN KWAZULU-NATAL
B186: KZN293 Ndwedwe | C186: KZN KWAZULU-NATAL
B187: KZN294 Maphumulo | C187: KZN KWAZULU-NATAL
B188: KZN431 Ingwe | C188: KZN KWAZULU-NATAL
B189: KZN432 Kwa Sani | C189: KZN KWAZULU-NATAL
B190: KZN433 Greater Kokstad | C190: KZN KWAZULU-NATAL
B191: KZN434 Ubuhlebezwe | C191: KZN KWAZULU-NATAL
B192: KZN435 Umzimkhulu | C192: KZN KWAZULU-NATAL
B193: LIM331 Greater Giyani | C193: LP LIMPOPO
B194: LIM332 Greater Letaba | C194: LP LIMPOPO
B195: LIM333 Greater Tzaneen | C195: LP LIMPOPO
B196: LIM334 Ba-Phalaborwa | C196: LP LIMPOPO
B197: LIM335 Maruleng | C197: LP LIMPOPO
B198: LIM341 Musina | C198: LP LIMPOPO
B199: LIM342 Mutale | C199: LP LIMPOPO
B200: LIM343 Thulamela | C200: LP LIMPOPO
B201: LIM344 Makhado | C201: LP LIMPOPO
B202: LIM351 Blouberg | C202: LP LIMPOPO
B203: LIM352 Aganang | C203: LP LIMPOPO
B204: LIM353 Molemole | C204: LP LIMPOPO
B205: LIM354 Polokwane | C205: LP LIMPOPO
B206: LIM355 Lepelle-Nkumpi | C206: LP LIMPOPO
B207: LIM361 Thabazimbi | C207: LP LIMPOPO
B208: LIM362 Lephalale | C208: LP LIMPOPO
B209: LIM364 Mookgopong | C209: LP LIMPOPO
B210: LIM365 Modimolle | C210: LP LIMPOPO
B211: LIM366 Bela Bela | C211: LP LIMPOPO
B212: LIM367 Mogalakwena | C212: LP LIMPOPO
B213: LIM471 Ephraim Mogale | C213: LP LIMPOPO
... 94 more rows

Sheet Org structure
A1: Organisational Structure Votes | C1: Organisational Structure Sub-Votes | E1: Display Sub-Votes | F1: 6
A2: =B2&" - "&C2 -> Vote 1 - Executive and Council | B2: Vote 1 | C2: Executive and Council
A3: =B13&" - "& C13 -> Vote 2 - Budget and Treasury | B3: 1.1 | C3: Executive and Council | D3: =CONCATENATE(B3, " - ", C3) -> 1.1 - Executive and Council | E3: 1.1 - Executive and Council
A4: =B24&" - "&C24 -> Vote 3 - Corporate Services | B4: 1.2 | C4: [Name of sub-vote] | D4: 1.2 - [Name of sub-vote]
A5: =B35&" - "&C35 -> Vote 4 - Planning and Development | B5: 1.3 | C5: [Name of sub-vote] | D5: 1.3 - [Name of sub-vote]
A6: =B46&" - "&C46 -> Vote 5 - Health | B6: 1.4 | C6: [Name of sub-vote] | D6: 1.4 - [Name of sub-vote]
A7: =B57&" - "&C57 -> Vote 6 - Community and Social Services | B7: 1.5 | C7: [Name of sub-vote] | D7: 1.5 - [Name of sub-vote]
A8: =B68&" - "&C68 -> Vote 7 - Housing | B8: 1.6 | C8: [Name of sub-vote] | D8: 1.6 - [Name of sub-vote]
A9: =B79&" - "&C79 -> Vote 8 - Public Safety | B9: 1.7 | C9: [Name of sub-vote] | D9: 1.7 - [Name of sub-vote]
A10: =B90&" - "&C90 -> Vote 9 - Sport and Recreation | B10: 1.8 | C10: [Name of sub-vote] | D10: 1.8 - [Name of sub-vote]
A11: =B101&" - "&C101 -> Vote 10 - Environmental Protection | B11: 1.9 | C11: [Name of sub-vote] | D11: 1.9 - [Name of sub-vote]
A12: =B112&" - "&C112 -> Vote 11 - Solid Waste Management | B12: 1.10 | C12: [Name of sub-vote] | D12: 1.10 - [Name of sub-vote]
A13: =B123&" - "&C123 -> Vote 12 - Waste Water Management | B13: Vote 2 | C13: Budget and Treasury
A14: =B134&" - "&C134 -> Vote 13 - Road Transport | B14: 2.1 | C14: Official Housing | D14: =CONCATENATE(B14, " - ", C14) -> 2.1 - Official Housing | E14: 2.1 - Official Housing
A15: =B145&" - "&C145 -> Vote 14 - Water | B15: 2.2 | C15: Rates | D15: 2.2 - Rates | E15: 2.2 - Rates
A16: =B156&" - "&C156 -> Vote 15 - Electricity | B16: 2.3 | C16: Commonage | D16: 2.3 - Commonage | E16: 2.3 - Commonage
B17: 2.4 | C17: Municipal Buildings | D17: 2.4 - Municipal Buildings | E17: 2.4 - Municipal Buildings
B18: 2.5 | C18: Budget and Treasury Office | D18: 2.5 - Budget and Treasury Office | E18: 2.5 - Budget and Treasury Office
B19: 2.6 | C19: Airport | D19: 2.6 - Airport | E19: 2.6 - Airport
B20: 2.7 | C20: Abattoir | D20: 2.7 - Abattoir | E20: 2.7 - Abattoir
B21: 2.8 | C21: [Name of sub-vote] | D21: 2.8 - [Name of sub-vote]
B22: 2.9 | C22: [Name of sub-vote] | D22: 2.9 - [Name of sub-vote]
B23: 2.10 | C23: [Name of sub-vote] | D23: 2.10 - [Name of sub-vote]
B24: Vote 3 | C24: Corporate Services
B25: 3.1 | C25: Corporate Services | D25: =CONCATENATE(B25, " - ", C25) -> 3.1 - Corporate Services | E25: 3.1 - Corporate Services
B26: 3.2 | C26: [Name of sub-vote] | D26: 3.2 - [Name of sub-vote]
B27: 3.3 | C27: [Name of sub-vote] | D27: 3.3 - [Name of sub-vote]
B28: 3.4 | C28: [Name of sub-vote] | D28: 3.4 - [Name of sub-vote]
B29: 3.5 | C29: [Name of sub-vote] | D29: 3.5 - [Name of sub-vote]
B30: 3.6 | C30: [Name of sub-vote] | D30: 3.6 - [Name of sub-vote]
B31: 3.7 | C31: [Name of sub-vote] | D31: 3.7 - [Name of sub-vote]
B32: 3.8 | C32: [Name of sub-vote] | D32: 3.8 - [Name of sub-vote]
B33: 3.9 | C33: [Name of sub-vote] | D33: 3.9 - [Name of sub-vote]
B34: 3.10 | C34: [Name of sub-vote] | D34: 3.10 - [Name of sub-vote]
B35: Vote 4 | C35: Planning and Development
B36: 4.1 | C36: [Name of sub-vote] | D36: =CONCATENATE(B36, " - ", C36) -> 4.1 - [Name of sub-vote] | E36: 4.1 - [Name of sub-vote]
B37: 4.2 | C37: [Name of sub-vote] | D37: 4.2 - [Name of sub-vote]
B38: 4.3 | C38: [Name of sub-vote] | D38: 4.3 - [Name of sub-vote]
B39: 4.4 | C39: [Name of sub-vote] | D39: 4.4 - [Name of sub-vote]
B40: 4.5 | C40: [Name of sub-vote] | D40: 4.5 - [Name of sub-vote]
B41: 4.6 | C41: [Name of sub-vote] | D41: 4.6 - [Name of sub-vote]
B42: 4.7 | C42: [Name of sub-vote] | D42: 4.7 - [Name of sub-vote]
B43: 4.8 | C43: [Name of sub-vote] | D43: 4.8 - [Name of sub-vote]
B44: 4.9 | C44: [Name of sub-vote] | D44: 4.9 - [Name of sub-vote]
B45: 4.10 | C45: [Name of sub-vote] | D45: 4.10 - [Name of sub-vote]
B46: Vote 5 | C46: Health
B47: 5.1 | C47: Health | D47: =CONCATENATE(B47, " - ", C47) -> 5.1 - Health | E47: 5.1 - Health
B48: 5.2 | C48: Clinics | D48: 5.2 - Clinics | E48: 5.2 - Clinics
B49: 5.3 | C49: [Name of sub-vote] | D49: 5.3 - [Name of sub-vote]
B50: 5.4 | C50: [Name of sub-vote] | D50: 5.4 - [Name of sub-vote]
B51: 5.5 | C51: [Name of sub-vote] | D51: 5.5 - [Name of sub-vote]
B52: 5.6 | C52: [Name of sub-vote] | D52: 5.6 - [Name of sub-vote]
B53: 5.7 | C53: [Name of sub-vote] | D53: 5.7 - [Name of sub-vote]
B54: 5.8 | C54: [Name of sub-vote] | D54: 5.8 - [Name of sub-vote]
B55: 5.9 | C55: [Name of sub-vote] | D55: 5.9 - [Name of sub-vote]
B56: 5.10 | C56: [Name of sub-vote] | D56: 5.10 - [Name of sub-vote]
B57: Vote 6 | C57: Community and Social Services
B58: 6.1 | C58: Cemetry | D58: =CONCATENATE(B58, " - ", C58) -> 6.1 - Cemetry | E58: 6.1 - Cemetry
B59: 6.2 | C59: Library | D59: 6.2 - Library | E59: 6.2 - Library
B60: 6.3 | C60: Museum | D60: 6.3 - Museum | E60: 6.3 - Museum
B61: 6.4 | C61: [Name of sub-vote] | D61: 6.4 - [Name of sub-vote]
B62: 6.5 | C62: [Name of sub-vote] | D62: 6.5 - [Name of sub-vote]
B63: 6.6 | C63: [Name of sub-vote] | D63: 6.6 - [Name of sub-vote]
B64: 6.7 | C64: [Name of sub-vote] | D64: 6.7 - [Name of sub-vote]
B65: 6.8 | C65: [Name of sub-vote] | D65: 6.8 - [Name of sub-vote]
B66: 6.9 | C66: [Name of sub-vote] | D66: 6.9 - [Name of sub-vote]
B67: 6.10 | C67: [Name of sub-vote] | D67: 6.10 - [Name of sub-vote]
B68: Vote 7 | C68: Housing
B69: 7.1 | C69: [Name of sub-vote] | D69: =CONCATENATE(B69, " - ", C69) -> 7.1 - [Name of sub-vote] | E69: 7.1 - [Name of sub-vote]
B70: 7.2 | C70: [Name of sub-vote] | D70: 7.2 - [Name of sub-vote]
B71: 7.3 | C71: [Name of sub-vote] | D71: 7.3 - [Name of sub-vote]
B72: 7.4 | C72: [Name of sub-vote] | D72: 7.4 - [Name of sub-vote]
B73: 7.5 | C73: [Name of sub-vote] | D73: 7.5 - [Name of sub-vote]
B74: 7.6 | C74: [Name of sub-vote] | D74: 7.6 - [Name of sub-vote]
B75: 7.7 | C75: [Name of sub-vote] | D75: 7.7 - [Name of sub-vote]
B76: 7.8 | C76: [Name of sub-vote] | D76: 7.8 - [Name of sub-vote]
B77: 7.9 | C77: [Name of sub-vote] | D77: 7.9 - [Name of sub-vote]
B78: 7.10 | C78: [Name of sub-vote] | D78: 7.10 - [Name of sub-vote]
B79: Vote 8 | C79: Public Safety
B80: 8.1 | C80: Fire Service | D80: =CONCATENATE(B80, " - ", C80) -> 8.1 - Fire Service | E80: 8.1 - Fire Service
B81: 8.2 | C81: Civil Defence | D81: 8.2 - Civil Defence | E81: 8.2 - Civil Defence
B82: 8.3 | C82: Pound | D82: 8.3 - Pound | E82: 8.3 - Pound
B83: 8.4 | C83: [Name of sub-vote] | D83: 8.4 - [Name of sub-vote]
B84: 8.5 | C84: [Name of sub-vote] | D84: 8.5 - [Name of sub-vote]
B85: 8.6 | C85: [Name of sub-vote] | D85: 8.6 - [Name of sub-vote]
B86: 8.7 | C86: [Name of sub-vote] | D86: 8.7 - [Name of sub-vote]
B87: 8.8 | C87: [Name of sub-vote] | D87: 8.8 - [Name of sub-vote]
B88: 8.9 | C88: [Name of sub-vote] | D88: 8.9 - [Name of sub-vote]
B89: 8.10 | C89: [Name of sub-vote] | D89: 8.10 - [Name of sub-vote]
B90: Vote 9 | C90: Sport and Recreation
B91: 9.1 | C91: Nature Reserve | D91: =CONCATENATE(B91, " - ", C91) -> 9.1 - Nature Reserve | E91: 9.1 - Nature Reserve
B92: 9.2 | C92: Parks and Gardens | D92: 9.2 - Parks and Gardens | E92: 9.2 - Parks and Gardens
B93: 9.3 | C93: Swimming Pool | D93: 9.3 - Swimming Pool | E93: 9.3 - Swimming Pool
B94: 9.4 | C94: Caravan Park | D94: 9.4 - Caravan Park | E94: 9.4 - Caravan Park
B95: 9.5 | C95: [Name of sub-vote] | D95: 9.5 - [Name of sub-vote]
B96: 9.6 | C96: [Name of sub-vote] | D96: 9.6 - [Name of sub-vote]
B97: 9.7 | C97: [Name of sub-vote] | D97: 9.7 - [Name of sub-vote]
B98: 9.8 | C98: [Name of sub-vote] | D98: 9.8 - [Name of sub-vote]
B99: 9.9 | C99: [Name of sub-vote] | D99: 9.9 - [Name of sub-vote]
B100: 9.10 | C100: [Name of sub-vote] | D100: 9.10 - [Name of sub-vote]
B101: Vote 10 | C101: Environmental Protection
B102: 10.1 | C102: [Name of sub-vote] | D102: =CONCATENATE(B102, " - ", C102) -> 10.1 - [Name of sub-vote] | E102: 10.1 - [Name of sub-vote]
B103: 10.2 | C103: [Name of sub-vote] | D103: 10.2 - [Name of sub-vote]
B104: 10.3 | C104: [Name of sub-vote] | D104: 10.3 - [Name of sub-vote]
B105: 10.4 | C105: [Name of sub-vote] | D105: 10.4 - [Name of sub-vote]
B106: 10.5 | C106: [Name of sub-vote] | D106: 10.5 - [Name of sub-vote]
B107: 10.6 | C107: [Name of sub-vote] | D107: 10.6 - [Name of sub-vote]
B108: 10.7 | C108: [Name of sub-vote] | D108: 10.7 - [Name of sub-vote]
B109: 10.8 | C109: [Name of sub-vote] | D109: 10.8 - [Name of sub-vote]
B110: 10.9 | C110: [Name of sub-vote] | D110: 10.9 - [Name of sub-vote]
B111: 10.10 | C111: [Name of sub-vote] | D111: 10.10 - [Name of sub-vote]
B112: Vote 11 | C112: Solid Waste Management
B113: 11.1 | C113: Refuse removal | D113: =CONCATENATE(B113, " - ", C113) -> 11.1 - Refuse removal | E113: 11.1 - Refuse removal
B114: 11.2 | C114: [Name of sub-vote] | D114: 11.2 - [Name of sub-vote]
B115: 11.3 | C115: [Name of sub-vote] | D115: 11.3 - [Name of sub-vote]
B116: 11.4 | C116: [Name of sub-vote] | D116: 11.4 - [Name of sub-vote]
B117: 11.5 | C117: [Name of sub-vote] | D117: 11.5 - [Name of sub-vote]
B118: 11.6 | C118: [Name of sub-vote] | D118: 11.6 - [Name of sub-vote]
B119: 11.7 | C119: [Name of sub-vote] | D119: 11.7 - [Name of sub-vote]
B120: 11.8 | C120: [Name of sub-vote] | D120: 11.8 - [Name of sub-vote]
B121: 11.9 | C121: [Name of sub-vote] | D121: 11.9 - [Name of sub-vote]
B122: 11.10 | C122: [Name of sub-vote] | D122: 11.10 - [Name of sub-vote]
B123: Vote 12 | C123: Waste Water Management
B124: 12.1 | C124: Sewerage | D124: =CONCATENATE(B124, " - ", C124) -> 12.1 - Sewerage | E124: 12.1 - Sewerage
B125: 12.2 | C125: [Name of sub-vote] | D125: 12.2 - [Name of sub-vote]
B126: 12.3 | C126: [Name of sub-vote] | D126: 12.3 - [Name of sub-vote]
B127: 12.4 | C127: [Name of sub-vote] | D127: 12.4 - [Name of sub-vote]
B128: 12.5 | C128: [Name of sub-vote] | D128: 12.5 - [Name of sub-vote]
B129: 12.6 | C129: [Name of sub-vote] | D129: 12.6 - [Name of sub-vote]
B130: 12.7 | C130: [Name of sub-vote] | D130: 12.7 - [Name of sub-vote]
B131: 12.8 | C131: [Name of sub-vote] | D131: 12.8 - [Name of sub-vote]
B132: 12.9 | C132: [Name of sub-vote] | D132: 12.9 - [Name of sub-vote]
B133: 12.10 | C133: [Name of sub-vote] | D133: 12.10 - [Name of sub-vote]
B134: Vote 13 | C134: Road Transport
B135: 13.1 | C135: Main Roads | D135: =CONCATENATE(B135, " - ", C135) -> 13.1 - Main Roads | E135: 13.1 - Main Roads
B136: 13.2 | C136: Public Works | D136: 13.2 - Public Works | E136: 13.2 - Public Works
B137: 13.3 | C137: Streets and Pavements | D137: 13.3 - Streets and Pavements | E137: 13.3 - Streets and Pavements
B138: 13.4 | C138: Traffic and licencing | D138: 13.4 - Traffic and licencing | E138: 13.4 - Traffic and licencing
B139: 13.5 | C139: [Name of sub-vote] | D139: 13.5 - [Name of sub-vote]
B140: 13.6 | C140: [Name of sub-vote] | D140: 13.6 - [Name of sub-vote]
B141: 13.7 | C141: [Name of sub-vote] | D141: 13.7 - [Name of sub-vote]
B142: 13.8 | C142: [Name of sub-vote] | D142: 13.8 - [Name of sub-vote]
B143: 13.9 | C143: [Name of sub-vote] | D143: 13.9 - [Name of sub-vote]
B144: 13.10 | C144: [Name of sub-vote] | D144: 13.10 - [Name of sub-vote]
B145: Vote 14 | C145: Water
B146: 14.1 | C146: Water Distribution | D146: =CONCATENATE(B146, " - ", C146) -> 14.1 - Water Distribution | E146: 14.1 - Water Distribution
B147: 14.2 | C147: Water Storage | D147: 14.2 - Water Storage | E147: 14.2 - Water Storage
B148: 14.3 | C148: [Name of sub-vote] | D148: 14.3 - [Name of sub-vote]
B149: 14.4 | C149: [Name of sub-vote] | D149: 14.4 - [Name of sub-vote]
B150: 14.5 | C150: [Name of sub-vote] | D150: 14.5 - [Name of sub-vote]
B151: 14.6 | C151: [Name of sub-vote] | D151: 14.6 - [Name of sub-vote]
B152: 14.7 | C152: [Name of sub-vote] | D152: 14.7 - [Name of sub-vote]
B153: 14.8 | C153: [Name of sub-vote] | D153: 14.8 - [Name of sub-vote]
B154: 14.9 | C154: [Name of sub-vote] | D154: 14.9 - [Name of sub-vote]
B155: 14.10 | C155: [Name of sub-vote] | D155: 14.10 - [Name of sub-vote]
B156: Vote 15 | C156: Electricity
B157: 15.1 | C157: Electricity Administration | D157: =CONCATENATE(B157, " - ", C157) -> 15.1 - Electricity Administration | E157: 15.1 - Electricity Administration
B158: 15.2 | C158: Electricity Distribution | D158: 15.2 - Electricity Distribution | E158: 15.2 - Electricity Distribution
B159: 15.3 | C159: Electricity Generation | D159: 15.3 - Electricity Generation | E159: 15.3 - Electricity Generation
B160: 15.4 | C160: [Name of sub-vote] | D160: 15.4 - [Name of sub-vote]
B161: 15.5 | C161: [Name of sub-vote] | D161: 15.5 - [Name of sub-vote]
B162: 15.6 | C162: [Name of sub-vote] | D162: 15.6 - [Name of sub-vote]
B163: 15.7 | C163: [Name of sub-vote] | D163: 15.7 - [Name of sub-vote]
B164: 15.8 | C164: [Name of sub-vote] | D164: 15.8 - [Name of sub-vote]
B165: 15.9 | C165: [Name of sub-vote] | D165: 15.9 - [Name of sub-vote]
B166: 15.10 | C166: [Name of sub-vote] | D166: 15.10 - [Name of sub-vote]

Sheet Contacts
A1: =muni&" - "&" Contact Information" -> NC074 Kareeberg - Contact Information
A3: A. GENERAL INFORMATION
A4: Municipality | B4: =muni -> NC074 Kareeberg | C4: Set name on 'Instructions' sheet
A6: Grade | B6: 2 | C6: 1 Grade in terms of the Remuneration of Public Office Bearers Act.
A8: Province | B8: =IF(B4>" ",VLOOKUP(B4,'Lookup and lists'!B28:C311,2)," ") -> NC NORTHERN CAPE
A10: Web Address | B10: www.kareeberg.co.za
A12: e-mail Address | B12: kareeberg@xsinet.co.za
A14: B. CONTACT INFORMATION
A15: Postal address:
A16: P.O. Box | B16: 10
A17: City / Town | B17: CARNARVON
A18: Postal Code | B18: 8925
A20: Street address
A21: Building
A22: Street No. & Name | B22: Hanau Street
A23: City / Town | B23: CARNARVON
A24: Postal Code | B24: 8925
A26: General Contacts
A27: Telephone number | B27: 053-3823012
A28: Fax number | B28: 053-3823142
A30: C. POLITICAL LEADERSHIP
A31: Speaker: | C31: Secretary/PA to the Speaker:
A32: Name | C32: Name
A33: Telephone number | C33: Telephone number
A34: Cell number | C34: Cell number
A35: Fax number | C35: Fax number
A36: E-mail address | C36: E-mail address
A38: Mayor/Executive Mayor: | C38: Secretary/PA to the Mayor/Executive Mayor:
A39: Name | B39: N.I. Titus | C39: Name
A40: Telephone number | B40: 053-3833053 | C40: Telephone number
A41: Cell number | B41: 0832567311 | C41: Cell number
A42: Fax number | B42: 053-3823142 | C42: Fax number
A43: E-mail address | C43: E-mail address
A45: Deputy Mayor/Executive Mayor: | C45: Secretary/PA to the Deputy Mayor/Executive Mayor:
A46: Name | C46: Name
A47: Telephone number | C47: Telephone number
A48: Cell number | C48: Cell number
A49: Fax number | C49: Fax number
A50: E-mail address | C50: E-mail address
A52: D. MANAGEMENT LEADERSHIP
A53: Municipal Manager: | C53: Secretary/PA to the Municipal Manager:
A54: Name | B54: W. de Bruin | C54: Name
A55: Telephone number | B55: 053-3823012 | C55: Telephone number
A56: Cell number | B56: 0763363003 | C56: Cell number
A57: Fax number | B57: 053-3823142 | C57: Fax number
A58: E-mail address | B58: kareeberg@xsinet.co.za | C58: E-mail address
A60: Chief Financial Officer | C60: Secretary/PA to the Chief Financial Officer
A61: Name | B61: P.B. Rossouw | C61: Name
A62: Telephone number | B62: 053-3823012 | C62: Telephone number
A63: Cell number | B63: 832308617 | C63: Cell number
A64: Fax number | B64: 053-3823142 | C64: Fax number
A65: E-mail address | B65: brennan.rossouw@yahoo.com | C65: E-mail address
A67: Official responsible for submitting financial information
A68: Name | B68: A. van Schalkwyk
A69: Telephone number | B69: 053-3823012
A70: Cell number | B70: 0832308627
A71: Fax number | B71: 053-3823142
A72: E-mail address | B72: kareeberg@xsinet.co.za
A73: Official responsible for submitting financial information
A74: Name | B74: T. de Kock
A75: Telephone number | B75: 053-3823012
A76: Cell number
A77: Fax number | B77: 053-3823142
A78: E-mail address | B78: kareeberg@xsinet.co.za
A79: Official responsible for submitting financial information
A80: Name
A81: Telephone number
A82: Cell number
A83: Fax number
A84: E-mail address
A85: 6

Sheet C1-Sum
A1: =muni& " - "&s71sum& " - "&date -> NC074 Kareeberg - Table C1 Monthly Budget Statement Summary - Mid-Year Assessment
A2: =desc -> Description | B2: =Head1 -> 2011/12 | C2: =Head2 -> Budget Year 2012/13
B3: =Head5 -> Audited Outcome | C3: =Head6 -> Original Budget | D3: =Head7 -> Adjusted Budget | E3: =Head38 -> Monthly actual | F3: =Head39 -> YearTD actual | G3: =Head40 -> YearTD budget | H3: =Head41 -> YTD variance | I3: =Head41 -> YTD variance | J3: =Head8 -> Full Year Forecast
A4: R thousands | I4: %
A5: Financial Performance
A6: Property rates | B6: =SUM('C4-FinPerf RE'!C6:C7) -> 4077634.92 | C6: =SUM('C4-FinPerf RE'!D6:D7) -> 4716502 | D6: =SUM('C4-FinPerf RE'!E6:E7) -> 4716502 | E6: =SUM('C4-FinPerf RE'!F6:F7) -> 15854.73 | F6: =SUM('C4-FinPerf RE'!G6:G7) -> 4413580.33 | G6: =SUM('C4-FinPerf RE'!H6:H7) -> 4626866 | H6: =SUM('C4-FinPerf RE'!I6:I7) -> -213285.67 | I6: =IF(H6=0,"",H6/G6) -> -0.04609722218 | J6: =SUM('C4-FinPerf RE'!K6:K7) -> 4716502
A7: Service charges | B7: =SUM('C4-FinPerf RE'!C8:C12) -> 14856391.89 | C7: =SUM('C4-FinPerf RE'!D8:D12) -> 16133602 | D7: =SUM('C4-FinPerf RE'!E8:E12) -> 16133602 | E7: =SUM('C4-FinPerf RE'!F8:F12) -> 1226777.98 | F7: =SUM('C4-FinPerf RE'!G8:G12) -> 7857164.82 | G7: =SUM('C4-FinPerf RE'!H8:H12) -> 7561453 | H7: =SUM('C4-FinPerf RE'!I8:I12) -> 295711.82 | I7: =IF(H7=0,"",H7/G7) -> 0.03910780375 | J7: =SUM('C4-FinPerf RE'!K8:K12) -> 16133602
A8: Investment revenue | B8: =SUM('C4-FinPerf RE'!C14:C15) -> 928860.64 | C8: =SUM('C4-FinPerf RE'!D14:D15) -> 1300300 | D8: =SUM('C4-FinPerf RE'!E14:E15) -> 1300300 | E8: =SUM('C4-FinPerf RE'!F14:F15) -> 50804.46 | F8: =SUM('C4-FinPerf RE'!G14:G15) -> 286060.7 | G8: =SUM('C4-FinPerf RE'!H14:H15) -> 107288 | H8: =SUM('C4-FinPerf RE'!I14:I15) -> 178772.7 | I8: =IF(H8=0,"",H8/G8) -> 1.666287935 | J8: =SUM('C4-FinPerf RE'!K14:K15) -> 1300300
A9: Transfers recognised - operational | B9: ='C4-FinPerf RE'!C20 -> 18650665.12 | C9: ='C4-FinPerf RE'!D20 -> 15906000 | D9: ='C4-FinPerf RE'!E20 -> 15906000 | E9: ='C4-FinPerf RE'!F20 -> 3980000 | F9: ='C4-FinPerf RE'!G20 -> 8956000 | G9: ='C4-FinPerf RE'!H20 -> 11925666.67 | H9: ='C4-FinPerf RE'!I20 -> -2969666.667 | I9: =IF(H9=0,"",H9/G9) -> -0.2490147301 | J9: ='C4-FinPerf RE'!K20 -> 15906000
A10: Other own revenue | B10: ='C4-FinPerf RE'!C23-SUM('C1-Sum'!B6:B9) -> 2587126.57 | C10: ='C4-FinPerf RE'!D23-SUM('C1-Sum'!C6:C9) -> 1646680 | D10: ='C4-FinPerf RE'!E23-SUM('C1-Sum'!D6:D9) -> 1646680 | E10: ='C4-FinPerf RE'!F23-SUM('C1-Sum'!E6:E9) -> 337099.8 | F10: ='C4-FinPerf RE'!G23-SUM('C1-Sum'!F6:F9) -> 1539532.99 | G10: ='C4-FinPerf RE'!H23-SUM('C1-Sum'!G6:G9) -> 990514.0466 | H10: ='C4-FinPerf RE'!I23-SUM('C1-Sum'!H6:H9) -> 549018.9434 | I10: =IF(H10=0,"",H10/G10) -> 0.5542767872 | J10: ='C4-FinPerf RE'!K23-SUM('C1-Sum'!J6:J9) -> 1646680
A11: Total Revenue (excluding capital transfers and contributions) | B11: =SUM(B6:B10) -> 41100679.14 | C11: 39703084 | D11: 39703084 | E11: 5610536.97 | F11: 23052338.84 | G11: 25211787.71 | H11: =F11-G11 -> -2159448.873 | I11: =IF(H11=0,"",H11/G11) -> -0.08565235031 | J11: 39703084
A12: Employee costs | B12: ='C4-FinPerf RE'!C26 -> 11033999.02 | C12: ='C4-FinPerf RE'!D26 -> 11561371 | D12: ='C4-FinPerf RE'!E26 -> 11561371 | E12: ='C4-FinPerf RE'!F26 -> 947599.15 | F12: ='C4-FinPerf RE'!G26 -> 5645628.5 | G12: ='C4-FinPerf RE'!H26 -> 4889091 | H12: 756537.5 | I12: 0.1547399097 | J12: ='C4-FinPerf RE'!K26 -> 11561371
A13: Remuneration of Councillors | B13: ='C4-FinPerf RE'!C27 -> 1687658.86 | C13: ='C4-FinPerf RE'!D27 -> 1880988 | D13: ='C4-FinPerf RE'!E27 -> 1880988 | E13: ='C4-FinPerf RE'!F27 -> 139551.73 | F13: ='C4-FinPerf RE'!G27 -> 838277.11 | G13: ='C4-FinPerf RE'!H27 -> 717493 | H13: 120784.11 | I13: 0.1683418654 | J13: ='C4-FinPerf RE'!K27 -> 1880988
A14: Depreciation & asset impairment | B14: ='C4-FinPerf RE'!C29 -> 2825147.05 | C14: ='C4-FinPerf RE'!D29 -> 3135177 | D14: ='C4-FinPerf RE'!E29 -> 3135177 | E14: ='C4-FinPerf RE'!F29 -> 0 | F14: ='C4-FinPerf RE'!G29 -> 0 | G14: ='C4-FinPerf RE'!H29 -> 0 | H14: 0 | J14: ='C4-FinPerf RE'!K29 -> 3135177
A15: Finance charges | B15: ='C4-FinPerf RE'!C30 -> 826755 | C15: ='C4-FinPerf RE'!D30 -> 418601 | D15: ='C4-FinPerf RE'!E30 -> 418601 | E15: ='C4-FinPerf RE'!F30 -> 0 | F15: ='C4-FinPerf RE'!G30 -> 0 | G15: ='C4-FinPerf RE'!H30 -> 0 | H15: 0 | J15: ='C4-FinPerf RE'!K30 -> 418601
A16: Materials and bulk purchases | B16: =SUM('C4-FinPerf RE'!C31:C32) -> 6998847.24 | C16: =SUM('C4-FinPerf RE'!D31:D32) -> 7379235 | D16: =SUM('C4-FinPerf RE'!E31:E32) -> 7379235 | E16: =SUM('C4-FinPerf RE'!F31:F32) -> 549845.23 | F16: =SUM('C4-FinPerf RE'!G31:G32) -> 3774809.12 | G16: =SUM('C4-FinPerf RE'!H31:H32) -> 3054893 | H16: 719916.12 | I16: 0.2356600117 | J16: =SUM('C4-FinPerf RE'!K31:K32) -> 7379235
A17: Transfers and grants | B17: ='C4-FinPerf RE'!C34 -> 15620999.12 | C17: ='C4-FinPerf RE'!D34 -> 11133903 | D17: ='C4-FinPerf RE'!E34 -> 11133903 | E17: ='C4-FinPerf RE'!F34 -> 1824951 | F17: ='C4-FinPerf RE'!G34 -> 6580951 | G17: ='C4-FinPerf RE'!H34 -> 4779268.667 | H17: ='C4-FinPerf RE'!I34 -> 1801682.333 | J17: ='C4-FinPerf RE'!K34 -> 11133903
A18: Other expenditure | B18: ='C4-FinPerf RE'!C37-SUM('C1-Sum'!B12:B17) -> 4225062.522 | C18: ='C4-FinPerf RE'!D37-SUM('C1-Sum'!C12:C17) -> 5493809 | D18: ='C4-FinPerf RE'!E37-SUM('C1-Sum'!D12:D17) -> 5493809 | E18: ='C4-FinPerf RE'!F37-SUM('C1-Sum'!E12:E17) -> 546951.79 | F18: ='C4-FinPerf RE'!G37-SUM('C1-Sum'!F12:F17) -> 3057338.09 | G18: ='C4-FinPerf RE'!H37-SUM('C1-Sum'!G12:G17) -> 5188507.338 | H18: -2131169.248 | I18: -0.4107480455 | J18: ='C4-FinPerf RE'!K37-SUM('C1-Sum'!J12:J17) -> 5493809
A19: Total Expenditure | B19: =SUM(B12:B18) -> 43218468.81 | C19: 41003084 | D19: 41003084 | E19: 4008898.9 | F19: 19897003.82 | G19: 18629253 | H19: 1267750.815 | I19: 0.06805161833 | J19: =SUM(J12:J18) -> 41003084
A20: Surplus/(Deficit) | B20: =B11-B19 -> -2117789.672 | C20: -1300000 | D20: -1300000 | E20: 1601638.07 | F20: 3155335.02 | G20: 6582534.708 | H20: -3427199.688 | I20: -0.5206504546 | J20: =J11-J19 -> -1300000
A21: Transfers recognised - capital | B21: ='C4-FinPerf RE'!C40 -> 10088203.31 | C21: ='C4-FinPerf RE'!D40 -> 9574000 | D21: ='C4-FinPerf RE'!E40 -> 9574000 | E21: ='C4-FinPerf RE'!F40 -> 0 | F21: ='C4-FinPerf RE'!G40 -> 0 | G21: ='C4-FinPerf RE'!H40 -> 5000000 | H21: -5000000 | I21: -1 | J21: ='C4-FinPerf RE'!K40 -> 9574000
A22: Contributions & Contributed assets | B22: =SUM('C4-FinPerf RE'!C41:C42) -> 121297 | C22: =SUM('C4-FinPerf RE'!D41:D42) -> 0 | D22: =SUM('C4-FinPerf RE'!E41:E42) -> 0 | E22: =SUM('C4-FinPerf RE'!F41:F42) -> 0 | F22: =SUM('C4-FinPerf RE'!G41:G42) -> 0 | G22: =SUM('C4-FinPerf RE'!H41:H42) -> 0 | H22: 0 | J22: =SUM('C4-FinPerf RE'!K41:K42) -> 0
A23: Surplus/(Deficit) after capital transfers & contributions | B23: =B20+B21+B22 -> 8091710.638 | C23: 8274000 | D23: 8274000 | E23: 1601638.07 | F23: 3155335.02 | G23: 11582534.71 | H23: -8427199.688 | I23: -0.7275781943 | J23: =J20+J21+J22 -> 8274000
A24: Share of surplus/ (deficit) of associate | B24: ='C4-FinPerf RE'!C48 -> 0 | C24: ='C4-FinPerf RE'!D48 -> 0 | D24: ='C4-FinPerf RE'!E48 -> 0 | E24: ='C4-FinPerf RE'!F48 -> 0 | F24: ='C4-FinPerf RE'!G48 -> 0 | G24: ='C4-FinPerf RE'!H48 -> 0 | H24: 0 | J24: ='C4-FinPerf RE'!K48 -> 0
A25: Surplus/ (Deficit) for the year | B25: =B23+B24 -> 8091710.638 | C25: 8274000 | D25: 8274000 | E25: 1601638.07 | F25: 3155335.02 | G25: 11582534.71 | H25: -8427199.688 | I25: -0.7275781943 | J25: =J23+J24 -> 8274000
A27: Capital expenditure & funds sources
A28: Capital expenditure | B28: ='C5-Capex'!C40 -> 10225109.65 | C28: ='C5-Capex'!D40 -> 9574000 | D28: ='C5-Capex'!E40 -> 9574000 | E28: ='C5-Capex'!F40 -> 0 | F28: ='C5-Capex'!G40 -> 166865.53 | G28: ='C5-Capex'!H40 -> 5000000 | H28: =F28-G28 -> -4833134.47 | I28: =IF(H28=0,"",H28/G28) -> -0.966626894 | J28: ='C5-Capex'!K40 -> 9574000
A29: Capital transfers recognised | B29: ='C5-Capex'!C70 -> 10088637.83 | C29: ='C5-Capex'!D70 -> 9574000 | D29: ='C5-Capex'!E70 -> 9574000 | E29: ='C5-Capex'!F70 -> 0 | F29: ='C5-Capex'!G70 -> 166865.53 | G29: ='C5-Capex'!H70 -> 5000000 | H29: -4833134.47 | I29: -0.966626894 | J29: ='C5-Capex'!K70 -> 9574000
A30: Public contributions & donations | B30: ='C5-Capex'!C71 -> 121296.9 | C30: ='C5-Capex'!D71 -> 0 | D30: ='C5-Capex'!E71 -> 0 | E30: ='C5-Capex'!F71 -> 0 | F30: ='C5-Capex'!G71 -> 0 | G30: ='C5-Capex'!H71 -> 0 | H30: 0 | J30: ='C5-Capex'!K71 -> 0
A31: Borrowing | B31: ='C5-Capex'!C72 -> 0 | C31: ='C5-Capex'!D72 -> 0 | D31: ='C5-Capex'!E72 -> 0 | E31: ='C5-Capex'!F72 -> 0 | F31: ='C5-Capex'!G72 -> 0 | G31: ='C5-Capex'!H72 -> 0 | H31: 0 | J31: ='C5-Capex'!K72 -> 0
A32: Internally generated funds | B32: ='C5-Capex'!C73 -> 15174.92 | C32: ='C5-Capex'!D73 -> 0 | D32: ='C5-Capex'!E73 -> 0 | E32: ='C5-Capex'!F73 -> 0 | F32: ='C5-Capex'!G73 -> 0 | G32: ='C5-Capex'!H73 -> 0 | H32: 0 | J32: ='C5-Capex'!K73 -> 0
A33: Total sources of capital funds | B33: =SUM(B29:B32) -> 10225109.65 | C33: 9574000 | D33: 9574000 | E33: =SUM(E29:E32) -> 0 | F33: =SUM(F29:F32) -> 166865.53 | G33: =SUM(G29:G32) -> 5000000 | H33: -4833134.47 | I33: -0.966626894 | J33: 9574000
A35: Financial position
A36: Total current assets | B36: ='C6-FinPos'!C13 -> 23775933 | C36: ='C6-FinPos'!D13 -> 27133132 | D36: ='C6-FinPos'!E13 -> 27133132 | F36: ='C6-FinPos'!F13 -> 35338333.83 | J36: ='C6-FinPos'!G13 -> 27133132
A37: Total non current assets | B37: ='C6-FinPos'!C25 -> 100677314 | C37: ='C6-FinPos'!D25 -> 102679365 | D37: ='C6-FinPos'!E25 -> 102679365 | F37: ='C6-FinPos'!F25 -> 100779529.5 | J37: ='C6-FinPos'!G25 -> 102679365
A38: Total current liabilities | B38: ='C6-FinPos'!C35 -> 4727920 | C38: ='C6-FinPos'!D35 -> 1485659 | D38: ='C6-FinPos'!E35 -> 1485659 | F38: ='C6-FinPos'!F35 -> 13069746.86 | J38: ='C6-FinPos'!G35 -> 1485659
A39: Total non current liabilities | B39: ='C6-FinPos'!C40 -> 12904491 | C39: ='C6-FinPos'!D40 -> 8284407 | D39: ='C6-FinPos'!E40 -> 8284407 | F39: ='C6-FinPos'!F40 -> 12904490.81 | J39: ='C6-FinPos'!G40 -> 8284407
A40: Community wealth/Equity | B40: ='C6-FinPos'!C48 -> 106820838 | C40: ='C6-FinPos'!D48 -> 120042431 | D40: ='C6-FinPos'!E48 -> 120042431 | F40: ='C6-FinPos'!F48 -> 110143625.6 | J40: ='C6-FinPos'!G48 -> 120042431
A42: Cash flows
A43: Net cash from (used) operating | B43: ='C7-CFlow'!C16 -> 10673400 | C43: ='C7-CFlow'!D16 -> 10608431 | D43: ='C7-CFlow'!E16 -> 10608431 | E43: ='C7-CFlow'!F16 -> 6336872.94 | F43: ='C7-CFlow'!G16 -> 11323745.24 | G43: ='C7-CFlow'!H16 -> -162897.0357 | H43: =F43-G43 -> 11486642.28 | I43: =IF(H43=0,"",H43/G43) -> -70.51474097 | J43: ='C7-CFlow'!K16 -> 10608431
A44: Net cash from (used) investing | B44: ='C7-CFlow'!C26 -> -10242867 | C44: ='C7-CFlow'!D26 -> -9565968 | D44: ='C7-CFlow'!E26 -> -9565968 | E44: ='C7-CFlow'!F26 -> 752.46 | F44: ='C7-CFlow'!G26 -> -97738.08 | G44: ='C7-CFlow'!H26 -> -4995984 | H44: =F44-G44 -> 4898245.92 | I44: =IF(H44=0,"",H44/G44) -> -0.9804366707 | J44: ='C7-CFlow'!K26 -> -9565968
A45: Net cash from (used) financing | B45: ='C7-CFlow'!C35 -> 24370 | C45: ='C7-CFlow'!D35 -> 29000 | D45: ='C7-CFlow'!E35 -> 29000 | E45: ='C7-CFlow'!F35 -> 1405 | F45: ='C7-CFlow'!G35 -> 3425 | G45: ='C7-CFlow'!H35 -> 14500 | H45: =F45-G45 -> -11075 | I45: =IF(H45=0,"",H45/G45) -> -0.7637931034 | J45: ='C7-CFlow'!K35 -> 29000
A46: Cash/cash equivalents at the month/year end | B46: ='C7-CFlow'!C39 -> 21602265 | C46: ='C7-CFlow'!D39 -> 22673728 | D46: ='C7-CFlow'!E39 -> 22673728 | E46: ='C7-CFlow'!F39 -> 0 | F46: ='C7-CFlow'!G39 -> 32831697.16 | G46: ='C7-CFlow'!H39 -> 16457883.96 | H46: =F46-G46 -> 16373813.2 | I46: =IF(H46=0,"",H46/G46) -> 0.9948917632 | J46: ='C7-CFlow'!K39 -> 22673728
A48: Debtors & creditors analysis | B48: ='SC3'!C3 -> 0-30 Days | C48: ='SC3'!D3 -> 31-60 Days | D48: ='SC3'!E3 -> 61-90 Days | E48: ='SC3'!F3 -> 91-120 Days | F48: ='SC3'!G3 -> 121-150 Dys | G48: ='SC3'!H3 -> 151-180 Dys | H48: ='SC3'!I3 -> 181 Dys-1 Yr | I48: ='SC3'!J3 -> Over 1Yr | J48: Total
A49: =LEFT('SC3'!A5,20) -> Debtors Age Analysis
A50: ='SC3'!A13 -> Total By Revenue Source | B50: ='SC3'!C13 -> 1524291.11 | C50: ='SC3'!D13 -> 257944.76 | D50: ='SC3'!E13 -> 162986.27 | E50: ='SC3'!F13 -> 157112.32 | F50: ='SC3'!G13 -> 129846.96 | G50: ='SC3'!H13 -> 1410115.77 | H50: ='SC3'!I13 -> 1330345.7 | I50: ='SC3'!J13 -> 1213955.25 | J50: ='SC3'!K13 -> 6186598.14
A51: =LEFT('SC4'!A5,22) -> Creditors Age Analysis
A52: Total Creditors | B52: ='SC4'!C15 -> 0 | C52: ='SC4'!D15 -> 0 | D52: ='SC4'!E15 -> 0 | E52: ='SC4'!F15 -> 0 | F52: ='SC4'!G15 -> 0 | G52: ='SC4'!H15 -> 0 | H52: ='SC4'!I15 -> 0 | I52: ='SC4'!J15 -> 0 | J52: ='SC4'!K15 -> 0

Sheet C2-FinPerf SC
A1: =muni& " - "&S71A& " - "&date -> NC074 Kareeberg - Table C2 Monthly Budget Statement - Financial Performance (standard classification) - Mid-Year Assessment
A2: =desc -> Description | B2: =head27 -> Ref | C2: =Head1 -> 2011/12 | D2: =Head2 -> Budget Year 2012/13
C3: =Head5 -> Audited Outcome | D3: =Head6 -> Original Budget | E3: =Head7 -> Adjusted Budget | F3: =Head38 -> Monthly actual | G3: =Head39 -> YearTD actual | H3: =Head40 -> YearTD budget | I3: =Head41 -> YTD variance | J3: =Head41 -> YTD variance | K3: =Head8 -> Full Year Forecast
A4: R thousands | B4: 1 | J4: %
A5: Revenue - Standard
A6: Governance and administration | C6: =SUM(C7:C9) -> 35404732.02 | D6: 32135599 | E6: 32135599 | F6: 3402991.09 | G6: 14203756.54 | H6: 22410396 | I6: =G6-H6 -> -8206639.46 | J6: =IF(I6=0,"",I6/H6) -> -0.366197878 | K6: =SUM(K7:K9) -> 32135599
A7: Executive and council | C7: ='C2C'!C7 -> 27276996.75 | D7: ='C2C'!D7 -> 22923669 | E7: ='C2C'!E7 -> 22923669 | F7: ='C2C'!F7 -> 2558225.46 | G7: ='C2C'!G7 -> 7772853.48 | H7: ='C2C'!H7 -> 17984435 | I7: -10211581.52 | J7: =IF(I7=0,"",I7/H7) -> -0.5678010747 | K7: ='C2C'!K7 -> 22923669
A8: Budget and treasury office | C8: ='C2C'!C10 -> 8127735.27 | D8: ='C2C'!D10 -> 9211930 | E8: ='C2C'!E10 -> 9211930 | F8: ='C2C'!F10 -> 844765.63 | G8: ='C2C'!G10 -> 6430903.06 | H8: ='C2C'!H10 -> 4425961 | I8: 2004942.06 | J8: 0.4529958714 | K8: ='C2C'!K10 -> 9211930
A9: Corporate services | C9: ='C2C'!C11 -> 0 | D9: ='C2C'!D11 -> 0 | E9: ='C2C'!E11 -> 0 | F9: ='C2C'!F11 -> 0 | G9: ='C2C'!G11 -> 0 | H9: ='C2C'!H11 -> 0 | I9: 0 | K9: ='C2C'!K11 -> 0
A10: Community and public safety | C10: =SUM(C11:C15) -> 62841.2 | D10: 25255 | E10: 25255 | F10: 1587.1 | G10: 8661.8 | H10: 9266.220112 | I10: -604.4201122 | J10: -0.06522833527 | K10: =SUM(K11:K15) -> 25255
A11: Community and social services | C11: ='C2C'!C17 -> 11121.2 | D11: ='C2C'!D17 -> 6650 | E11: ='C2C'!E17 -> 6650 | F11: ='C2C'!F17 -> 525.6 | G11: ='C2C'!G17 -> 3417.8 | H11: ='C2C'!H17 -> 3743.886779 | I11: -326.0867789 | J11: -0.0870984616 | K11: ='C2C'!K17 -> 6650
A12: Sport and recreation | C12: ='C2C'!C26 -> 48210 | D12: ='C2C'!D26 -> 17900 | E12: ='C2C'!E26 -> 17900 | F12: ='C2C'!F26 -> 1061.5 | G12: ='C2C'!G26 -> 4224 | H12: ='C2C'!H26 -> 5522.333333 | I12: -1298.333333 | J12: -0.2351059335 | K12: ='C2C'!K26 -> 17900
A13: Public safety | C13: ='C2C'!C27 -> 3510 | D13: ='C2C'!D27 -> 705 | E13: ='C2C'!E27 -> 705 | F13: ='C2C'!F27 -> 0 | G13: ='C2C'!G27 -> 1020 | H13: ='C2C'!H27 -> 0 | I13: 1020 | K13: ='C2C'!K27 -> 705
A14: Housing | C14: ='C2C'!C33 -> 0 | D14: ='C2C'!D33 -> 0 | E14: ='C2C'!E33 -> 0 | F14: ='C2C'!F33 -> 0 | G14: ='C2C'!G33 -> 0 | H14: ='C2C'!H33 -> 0 | I14: =G14-H14 -> 0 | J14: =IF(I14=0,"",I14/H14) ->  | K14: ='C2C'!K33 -> 0
A15: Health | C15: ='C2C'!C34 -> 0 | D15: ='C2C'!D34 -> 0 | E15: ='C2C'!E34 -> 0 | F15: ='C2C'!F34 -> 0 | G15: ='C2C'!G34 -> 0 | H15: ='C2C'!H34 -> 0 | I15: 0 | K15: ='C2C'!K34 -> 0
A16: Economic and environmental services | C16: =SUM(C17:C19) -> 6020 | D16: 2000 | E16: 2000 | F16: 250 | G16: 3160 | H16: 4390 | I16: -1230 | J16: -0.2801822323 | K16: =SUM(K17:K19) -> 2000
A17: Planning and development | C17: ='C2C'!C39 -> 0 | D17: ='C2C'!D39 -> 0 | E17: ='C2C'!E39 -> 0 | F17: ='C2C'!F39 -> 0 | G17: ='C2C'!G39 -> 0 | H17: ='C2C'!H39 -> 0 | I17: 0 | K17: ='C2C'!K39 -> 0
A18: Road transport | C18: ='C2C'!C43 -> 6020 | D18: ='C2C'!D43 -> 2000 | E18: ='C2C'!E43 -> 2000 | F18: ='C2C'!F43 -> 250 | G18: ='C2C'!G43 -> 3160 | H18: ='C2C'!H43 -> 4390 | I18: -1230 | J18: -0.2801822323 | K18: ='C2C'!K43 -> 2000
A19: Environmental protection | C19: ='C2C'!C49 -> 0 | D19: ='C2C'!D49 -> 0 | E19: ='C2C'!E49 -> 0 | F19: ='C2C'!F49 -> 0 | G19: ='C2C'!G49 -> 0 | H19: ='C2C'!H49 -> 0 | I19: 0 | K19: ='C2C'!K49 -> 0
A20: Trading services | C20: =SUM(C21:C24) -> 15836586.13 | D20: =SUM(D21:D24) -> 17114230 | E20: 17114230 | F20: 2205708.78 | G20: 8836760.5 | H20: 7496314 | I20: 1340446.5 | J20: 0.1788140812 | K20: =SUM(K21:K24) -> 17114230
A21: Electricity | C21: ='C2C'!C54 -> 6957425.31 | D21: ='C2C'!D54 -> 7567234 | E21: ='C2C'!E54 -> 7567234 | F21: ='C2C'!F54 -> 821907.86 | G21: ='C2C'!G54 -> 3823352.2 | H21: ='C2C'!H54 -> 3167677 | I21: =G21-H21 -> 655675.2 | J21: 0.2069892858 | K21: ='C2C'!K54 -> 7567234
A22: Water | C22: ='C2C'!C57 -> 3713009.93 | D22: ='C2C'!D57 -> 3881454 | E22: ='C2C'!E57 -> 3881454 | F22: ='C2C'!F57 -> 628950.83 | G22: ='C2C'!G57 -> 2114668.61 | H22: ='C2C'!H57 -> 1735617 | I22: =G22-H22 -> 379051.61 | J22: 0.2183958846 | K22: ='C2C'!K57 -> 3881454
A23: Waste water management | C23: ='C2C'!C60 -> 2384737.15 | D23: ='C2C'!D60 -> 2615933 | E23: ='C2C'!E60 -> 2615933 | F23: ='C2C'!F60 -> 509069.93 | G23: ='C2C'!G60 -> 1439116.35 | H23: ='C2C'!H60 -> 1112491 | I23: =G23-H23 -> 326625.35 | J23: 0.2935981954 | K23: ='C2C'!K60 -> 2615933
A24: Waste management | C24: ='C2C'!C64 -> 2781413.74 | D24: ='C2C'!D64 -> 3049609 | E24: ='C2C'!E64 -> 3049609 | F24: ='C2C'!F64 -> 245780.16 | G24: ='C2C'!G64 -> 1459623.34 | H24: ='C2C'!H64 -> 1480529 | I24: =G24-H24 -> -20905.66 | J24: -0.01412039886 | K24: ='C2C'!K64 -> 3049609
A25: Other | B25: 4 | C25: ='C2C'!C66 -> 0 | D25: ='C2C'!D66 -> 0 | E25: ='C2C'!E66 -> 0 | F25: ='C2C'!F66 -> 0 | G25: ='C2C'!G66 -> 0 | H25: ='C2C'!H66 -> 0 | I25: =G25-H25 -> 0 | K25: ='C2C'!K66 -> 0
A26: Total Revenue - Standard | B26: 2 | C26: =C6+C10+C16+C20+C25 -> 51310179.35 | D26: =D6+D10+D16+D20+D25 -> 49277084 | E26: 49277084 | F26: 5610536.97 | G26: 23052338.84 | H26: 29920366.22 | I26: -6868027.38 | J26: -0.22954356 | K26: =K6+K10+K16+K20+K25 -> 49277084
A28: Expenditure - Standard
A29: =A6 -> Governance and administration | C29: =SUM(C30:C32) -> 26656645.67 | D29: 23490993 | E29: 23490993 | F29: 2880930.53 | G29: 12279162.94 | H29: 10814372 | I29: =G29-H29 -> 1464790.94 | J29: =IF(I29=0,"",I29/H29) -> 0.1354485438 | K29: =SUM(K30:K32) -> 23490993
A30: =A7 -> Executive and council | C30: ='C2C'!C76 -> 19505528.96 | D30: ='C2C'!D76 -> 15228330 | E30: ='C2C'!E76 -> 15228330 | F30: ='C2C'!F76 -> 2064002.77 | G30: ='C2C'!G76 -> 8347808.18 | H30: ='C2C'!H76 -> 7758156 | I30: 589652.18 | J30: =IF(I30=0,"",I30/H30) -> 0.07600416645 | K30: ='C2C'!K76 -> 15228330
A31: Budget and treasury office | C31: ='C2C'!C79 -> 5774723.63 | D31: ='C2C'!D79 -> 6652409 | E31: ='C2C'!E79 -> 6652409 | F31: ='C2C'!F79 -> 693294.59 | G31: ='C2C'!G79 -> 3190290.98 | H31: ='C2C'!H79 -> 2395135 | I31: 795155.98 | J31: 0.3319879589 | K31: ='C2C'!K79 -> 6652409
A32: Corporate services | C32: ='C2C'!C80 -> 1376393.08 | D32: ='C2C'!D80 -> 1610254 | E32: ='C2C'!E80 -> 1610254 | F32: ='C2C'!F80 -> 123633.17 | G32: ='C2C'!G80 -> 741063.78 | H32: ='C2C'!H80 -> 661081 | I32: 79982.78 | J32: 0.1209878668 | K32: ='C2C'!K80 -> 1610254
A33: Community and public safety | C33: =SUM(C34:C38) -> 1685294.792 | D33: 1593442 | E33: 1593442 | F33: 106601.59 | G33: 732131.3 | H33: 657157 | I33: 74974.3 | J33: 0.1140888707 | K33: =SUM(K34:K38) -> 1593442
A34: Community and social services | C34: ='C2C'!C86 -> 965270.532 | D34: ='C2C'!D86 -> 985250 | E34: ='C2C'!E86 -> 985250 | F34: ='C2C'!F86 -> 67515.97 | G34: ='C2C'!G86 -> 455735.92 | H34: ='C2C'!H86 -> 432657 | I34: 23078.92 | J34: 0.05334230118 | K34: ='C2C'!K86 -> 985250
A35: Sport and recreation | C35: ='C2C'!C95 -> 617660.17 | D35: ='C2C'!D95 -> 515489 | E35: ='C2C'!E95 -> 515489 | F35: ='C2C'!F95 -> 32558.64 | G35: ='C2C'!G95 -> 234326.58 | H35: ='C2C'!H95 -> 181229 | I35: 53097.58 | J35: 0.2929861115 | K35: ='C2C'!K95 -> 515489
A36: Public safety | C36: ='C2C'!C96 -> 80776.78 | D36: ='C2C'!D96 -> 71471 | E36: ='C2C'!E96 -> 71471 | F36: ='C2C'!F96 -> 5960.05 | G36: ='C2C'!G96 -> 36132.5 | H36: ='C2C'!H96 -> 34072 | I36: 2060.5 | J36: 0.06047487673 | K36: ='C2C'!K96 -> 71471
A37: Housing | C37: ='C2C'!C102 -> 0 | D37: ='C2C'!D102 -> 0 | E37: ='C2C'!E102 -> 0 | F37: ='C2C'!F102 -> 0 | G37: ='C2C'!G102 -> 0 | H37: ='C2C'!H102 -> 0 | I37: 0 | K37: ='C2C'!K102 -> 0
A38: Health | C38: ='C2C'!C103 -> 21587.31 | D38: ='C2C'!D103 -> 21232 | E38: ='C2C'!E103 -> 21232 | F38: ='C2C'!F103 -> 566.93 | G38: ='C2C'!G103 -> 5936.3 | H38: ='C2C'!H103 -> 9199 | I38: -3262.7 | J38: -0.3546798565 | K38: ='C2C'!K103 -> 21232
A39: Economic and environmental services | C39: =SUM(C40:C42) -> 2341797.45 | D39: 2822438 | E39: 2822438 | F39: 122027.99 | G39: 897018.2 | H39: 934285 | I39: -37266.8 | J39: -0.03988804273 | K39: =SUM(K40:K42) -> 2822438
A40: Planning and development | C40: ='C2C'!C108 -> 0 | D40: ='C2C'!D108 -> 0 | E40: ='C2C'!E108 -> 0 | F40: ='C2C'!F108 -> 0 | G40: ='C2C'!G108 -> 0 | H40: ='C2C'!H108 -> 0 | I40: 0 | K40: ='C2C'!K108 -> 0
A41: Road transport | C41: ='C2C'!C112 -> 2341797.45 | D41: ='C2C'!D112 -> 2822438 | E41: ='C2C'!E112 -> 2822438 | F41: ='C2C'!F112 -> 122027.99 | G41: ='C2C'!G112 -> 897018.2 | H41: ='C2C'!H112 -> 934285 | I41: -37266.8 | J41: -0.03988804273 | K41: ='C2C'!K112 -> 2822438
A42: Environmental protection | C42: ='C2C'!C118 -> 0 | D42: ='C2C'!D118 -> 0 | E42: ='C2C'!E118 -> 0 | F42: ='C2C'!F118 -> 0 | G42: ='C2C'!G118 -> 0 | H42: ='C2C'!H118 -> 0 | I42: 0 | K42: ='C2C'!K118 -> 0
A43: Trading services | C43: =SUM(C44:C47) -> 12534730.9 | D43: =SUM(D44:D47) -> 13096211 | E43: 13096211 | F43: 899338.79 | G43: 5988691.38 | H43: 5932017 | I43: 56674.38 | J43: 0.009553981386 | K43: =SUM(K44:K47) -> 13096211
A44: Electricity | C44: ='C2C'!C123 -> 6753283.96 | D44: ='C2C'!D123 -> 7540456 | E44: ='C2C'!E123 -> 7540456 | F44: ='C2C'!F123 -> 574271.12 | G44: ='C2C'!G123 -> 3894474.23 | H44: ='C2C'!H123 -> 4084278 | I44: -189803.77 | J44: -0.04647180481 | K44: ='C2C'!K123 -> 7540456
A45: Water | C45: ='C2C'!C126 -> 1018738.12 | D45: ='C2C'!D126 -> 858255 | E45: ='C2C'!E126 -> 858255 | F45: ='C2C'!F126 -> 63850.01 | G45: ='C2C'!G126 -> 393605.13 | H45: ='C2C'!H126 -> 413189 | I45: -19583.87 | J45: -0.04739688133 | K45: ='C2C'!K126 -> 858255
A46: Waste water management | C46: ='C2C'!C129 -> 2288126.71 | D46: ='C2C'!D129 -> 2388575 | E46: ='C2C'!E129 -> 2388575 | F46: ='C2C'!F129 -> 247667.14 | G46: ='C2C'!G129 -> 1542840.43 | H46: ='C2C'!H129 -> 946896 | I46: 595944.43 | J46: 0.6293662979 | K46: ='C2C'!K129 -> 2388575
A47: Waste management | C47: ='C2C'!C133 -> 2474582.11 | D47: ='C2C'!D133 -> 2308925 | E47: ='C2C'!E133 -> 2308925 | F47: ='C2C'!F133 -> 13550.52 | G47: ='C2C'!G133 -> 157771.59 | H47: ='C2C'!H133 -> 487654 | I47: -329882.41 | J47: -0.6764681721 | K47: ='C2C'!K133 -> 2308925
A48: Other | C48: ='C2C'!C135 -> 0 | D48: ='C2C'!D135 -> 0 | E48: ='C2C'!E135 -> 0 | F48: ='C2C'!F135 -> 0 | G48: ='C2C'!G135 -> 0 | H48: ='C2C'!H135 -> 0 | I48: 0 | K48: ='C2C'!K135 -> 0
A49: Total Expenditure - Standard | B49: 3 | C49: =C29+C33+C39+C43+C48 -> 43218468.81 | D49: =D29+D33+D39+D43+D48 -> 41003084 | E49: 41003084 | F49: 4008898.9 | G49: 19897003.82 | H49: 18337831 | I49: 1559172.82 | J49: 0.08502493125 | K49: =K29+K33+K39+K43+K48 -> 41003084
A50: Surplus/ (Deficit) for the year | C50: =C26-C49 -> 8091710.538 | D50: 8274000 | E50: 8274000 | F50: 1601638.07 | G50: 3155335.02 | H50: 11582535.22 | I50: =I26-I49 -> -8427200.2 | J50: =IF(I50=0,"",I50/H50) -> -0.7275782063 | K50: =K26-K49 -> 8274000
A51: =head27a -> References
A52: 1. Government Finance Statistics Functions and Sub-functions are standardised to assist the compilation of national and international accounts for comparison purposes
A53: 2. Total Revenue by standard classification must reconcile to Total Operating Revenue shown in the Financial Performance Statement
A54: 3. Total Expenditure by standard classification must reconcile to total operating expenditure shown in 'Financial Performance Statement'
A55: 4. All amounts must be classified under a standard classification (modified GFS). The GFS function 'Other' is only for Abbatoirs, Air Transport, Markets and Tourism - and if used must be supported by footnotes. Nothing else may be placed under 'Other'. Assign associate share to relevant classification

Sheet C2C
A1: =muni& " - "&S71A& " - "&date -> NC074 Kareeberg - Table C2 Monthly Budget Statement - Financial Performance (standard classification) - Mid-Year Assessment
A2: =desc -> Description | B2: =head27 -> Ref | C2: =Head1 -> 2011/12 | D2: =Head2 -> Budget Year 2012/13
C3: =Head5 -> Audited Outcome | D3: =Head6 -> Original Budget | E3: =Head7 -> Adjusted Budget | F3: =Head38 -> Monthly actual | G3: =Head39 -> YearTD actual | H3: =Head40 -> YearTD budget | I3: =Head41 -> YTD variance | J3: =Head41 -> YTD variance | K3: =Head8 -> Full Year Forecast
A4: R thousands | B4: 1 | J4: %
A5: Revenue - Standard
A6: Municipal governance and administration | C6: =C7+C10+C11 -> 35404732.02 | D6: =D7+D10+D11 -> 32135599 | E6: 32135599 | F6: 3402991.09 | G6: 14203756.54 | H6: 22410396 | I6: =G6-H6 -> -8206639.46 | J6: =IF(I6=0,"",I6/H6) -> -0.366197878 | K6: 32135599
A7: Executive and council | C7: =SUM(C8:C9) -> 27276996.75 | D7: =SUM(D8:D9) -> 22923669 | E7: 22923669 | F7: 2558225.46 | G7: 7772853.48 | H7: 17984435 | I7: =G7-H7 -> -10211581.52 | J7: =IF(I7=0,"",I7/H7) -> -0.5678010747 | K7: 22923669
A8: Mayor and Council | C8: ='C3C'!C6 -> 27276996.75 | D8: ='C3C'!D6 -> 22923669 | E8: ='C3C'!E6 -> 22923669 | F8: ='C3C'!F6 -> 2558225.46 | G8: ='C3C'!G6 -> 7772853.48 | H8: ='C3C'!H6 -> 17984435 | I8: -10211581.52 | J8: -0.5678010747 | K8: ='C3C'!K6 -> 22923669
A9: Municipal Manager | I9: 0
A10: Budget and treasury office | C10: ='C3C'!C17 -> 8127735.27 | D10: ='C3C'!D17 -> 9211930 | E10: ='C3C'!E17 -> 9211930 | F10: ='C3C'!F17 -> 844765.63 | G10: ='C3C'!G17 -> 6430903.06 | H10: ='C3C'!H17 -> 4425961 | I10: 2004942.06 | J10: 0.4529958714 | K10: ='C3C'!K17 -> 9211930
A11: Corporate services | C11: =SUM(C12:C15) -> 0 | D11: =SUM(D12:D15) -> 0 | E11: 0 | F11: 0 | G11: 0 | H11: 0 | I11: 0 | K11: 0
A12: Human Resources | C12: ='C3C'!C28 -> 0 | D12: ='C3C'!D28 -> 0 | E12: ='C3C'!E28 -> 0 | F12: ='C3C'!F28 -> 0 | G12: ='C3C'!G28 -> 0 | H12: ='C3C'!H28 -> 0 | I12: 0 | K12: ='C3C'!K28 -> 0
A13: Information Technology | I13: 0
A14: Property Services | I14: 0
A15: Other Admin | I15: 0
A16: Community and public safety | C16: =C17+C26+C27+C33+C34 -> 62841.2 | D16: =D17+D26+D27+D33+D34 -> 25255 | E16: 25255 | F16: 1587.1 | G16: 8661.8 | H16: 9266.220112 | I16: -604.4201122 | J16: -0.06522833527 | K16: 25255
A17: Community and social services | C17: =SUM(C18:C25) -> 11121.2 | D17: =SUM(D18:D25) -> 6650 | E17: 6650 | F17: 525.6 | G17: 3417.8 | H17: 3743.886779 | I17: -326.0867789 | J17: -0.0870984616 | K17: 6650
A18: Libraries and Archives | C18: ='C3C'!C63 -> 1376.2 | D18: ='C3C'!D63 -> 730 | E18: ='C3C'!E63 -> 730 | F18: ='C3C'!F63 -> 25.6 | G18: ='C3C'!G63 -> 667.8 | H18: ='C3C'!H63 -> 0 | I18: 667.8 | K18: ='C3C'!K63 -> 730
A19: Museums & Art Galleries etc | C19: ='C3C'!C64 -> 0 | D19: ='C3C'!D64 -> 0 | E19: ='C3C'!E64 -> 0 | F19: ='C3C'!F64 -> 0 | G19: ='C3C'!G64 -> 0 | H19: ='C3C'!H64 -> 0 | I19: 0 | K19: ='C3C'!K64 -> 0
A20: Community halls and Facilities | I20: 0
A21: Cemeteries & Crematoriums | C21: ='C3C'!C62 -> 9745 | D21: ='C3C'!D62 -> 5920 | E21: ='C3C'!E62 -> 5920 | F21: ='C3C'!F62 -> 500 | G21: ='C3C'!G62 -> 2750 | H21: ='C3C'!H62 -> 3743.886779 | I21: -993.8867789 | J21: -0.2654692403 | K21: ='C3C'!K62 -> 5920
A22: Child Care | I22: 0
A23: Aged Care | I23: 0
A24: Other Community | I24: 0
A25: Other Social | I25: 0
A26: Sport and recreation | C26: ='C3C'!C94 -> 48210 | D26: ='C3C'!D94 -> 17900 | E26: ='C3C'!E94 -> 17900 | F26: ='C3C'!F94 -> 1061.5 | G26: ='C3C'!G94 -> 4224 | H26: ='C3C'!H94 -> 5522.333333 | I26: -1298.333333 | J26: -0.2351059335 | K26: ='C3C'!K94 -> 17900
A27: Public safety | C27: =SUM(C28:C32) -> 3510 | D27: =SUM(D28:D32) -> 705 | E27: 705 | F27: 0 | G27: 1020 | H27: 0 | I27: 1020 | K27: 705
A28: Police | I28: 0
A29: Fire | C29: ='C3C'!C84 -> 0 | D29: ='C3C'!D84 -> 0 | E29: ='C3C'!E84 -> 0 | F29: ='C3C'!F84 -> 0 | G29: ='C3C'!G84 -> 0 | H29: ='C3C'!H84 -> 0 | I29: 0 | K29: ='C3C'!K84 -> 0
A30: Civil Defence | C30: ='C3C'!C85 -> 0 | D30: ='C3C'!D85 -> 0 | E30: ='C3C'!E85 -> 0 | F30: ='C3C'!F85 -> 0 | G30: ='C3C'!G85 -> 0 | H30: ='C3C'!H85 -> 0 | I30: 0 | K30: ='C3C'!K85 -> 0
A31: Street Lighting | I31: 0
A32: Other | C32: ='C3C'!C86 -> 3510 | D32: ='C3C'!D86 -> 705 | E32: ='C3C'!E86 -> 705 | F32: ='C3C'!F86 -> 0 | G32: ='C3C'!G86 -> 1020 | H32: ='C3C'!H86 -> 0 | I32: 1020 | K32: ='C3C'!K86 -> 705
A33: Housing | I33: 0
A34: Health | C34: =SUM(C35:C37) -> 0 | D34: =SUM(D35:D37) -> 0 | E34: 0 | F34: 0 | G34: 0 | H34: 0 | I34: 0 | K34: 0
A35: Clinics | C35: ='C3C'!C52 -> 0 | D35: ='C3C'!D52 -> 0 | E35: ='C3C'!E52 -> 0 | F35: ='C3C'!F52 -> 0 | G35: ='C3C'!G52 -> 0 | H35: ='C3C'!H52 -> 0 | I35: 0 | K35: ='C3C'!K52 -> 0
A36: Ambulance | I36: 0
A37: Other | C37: ='C3C'!C51 -> 0 | D37: ='C3C'!D51 -> 0 | E37: ='C3C'!E51 -> 0 | F37: ='C3C'!F51 -> 0 | G37: ='C3C'!G51 -> 0 | H37: ='C3C'!H51 -> 0 | I37: 0 | K37: ='C3C'!K51 -> 0
A38: Economic and environmental services | C38: =C39+C43+C49 -> 6020 | D38: =D39+D43+D49 -> 2000 | E38: 2000 | F38: 250 | G38: 3160 | H38: 4390 | I38: -1230 | J38: -0.2801822323 | K38: 2000
A39: Planning and development | C39: =SUM(C40:C42) -> 0 | D39: =SUM(D40:D42) -> 0 | E39: 0 | F39: 0 | G39: 0 | H39: 0 | I39: 0 | K39: 0
A40: Economic Development/Planning | I40: 0
A41: Town Planning/Building enforcement | I41: 0
A42: Licensing & Regulation | I42: 0
A43: Road transport | C43: =SUM(C44:C48) -> 6020 | D43: =SUM(D44:D48) -> 2000 | E43: 2000 | F43: 250 | G43: 3160 | H43: 4390 | I43: -1230 | J43: -0.2801822323 | K43: 2000
A44: Roads | C44: ='C3C'!C141 -> 0 | D44: ='C3C'!D141 -> 400 | E44: ='C3C'!E141 -> 400 | F44: ='C3C'!F141 -> 0 | G44: ='C3C'!G141 -> 0 | H44: ='C3C'!H138 -> 4390 | I44: -4390 | J44: -1 | K44: ='C3C'!K141 -> 400
A45: Public Buses | I45: 0
A46: Parking Garages | I46: 0
A47: Vehicle Licensing and Testing | C47: ='C3C'!C142 -> 5450 | D47: ='C3C'!D142 -> 1500 | E47: ='C3C'!E142 -> 1500 | F47: ='C3C'!F142 -> 250 | G47: ='C3C'!G142 -> 2950 | H47: ='C3C'!H142 -> 0 | I47: 2950 | K47: ='C3C'!K142 -> 1500
A48: Other | C48: ='C3C'!C140 -> 570 | D48: ='C3C'!D140 -> 100 | E48: ='C3C'!E140 -> 100 | F48: ='C3C'!F140 -> 0 | G48: ='C3C'!G140 -> 210 | H48: ='C3C'!H140 -> 0 | I48: 210 | K48: ='C3C'!K140 -> 100
A49: Environmental protection | C49: =SUM(C50:C52) -> 0 | D49: =SUM(D50:D52) -> 0 | E49: 0 | F49: 0 | G49: 0 | H49: 0 | I49: 0 | K49: 0
A50: Pollution Control | I50: 0
A51: Biodiversity & Landscape | I51: 0
A52: Other | I52: 0
A53: Trading services | C53: =C54+C57+C60+C64 -> 15836586.13 | D53: =D54+D57+D60+D64 -> 17114230 | E53: 17114230 | F53: 2205708.78 | G53: 8836760.5 | H53: 7496314 | I53: 1340446.5 | J53: 0.1788140812 | K53: =K54+K57+K60+K64 -> 17114230
A54: Electricity | C54: =SUM(C55:C56) -> 6957425.31 | D54: =SUM(D55:D56) -> 7567234 | E54: 7567234 | F54: 821907.86 | G54: 3823352.2 | H54: 3167677 | I54: 655675.2 | J54: 0.2069892858 | K54: 7567234
A55: Electricity Distribution | C55: ='C3C'!C161+'C3C'!C162 -> 6957425.31 | D55: ='C3C'!D161+'C3C'!D162 -> 7567234 | E55: ='C3C'!E161+'C3C'!E162 -> 7567234 | F55: ='C3C'!F161+'C3C'!F162 -> 821907.86 | G55: ='C3C'!G161+'C3C'!G162 -> 3823352.2 | H55: ='C3C'!H161+'C3C'!H162 -> 3167677 | I55: 655675.2 | J55: 0.2069892858 | K55: ='C3C'!K161+'C3C'!K162 -> 7567234
A56: Electricity Generation | C56: ='C3C'!C163 -> 0 | D56: ='C3C'!D163 -> 0 | E56: ='C3C'!E163 -> 0 | F56: ='C3C'!F163 -> 0 | G56: ='C3C'!G163 -> 0 | H56: ='C3C'!H163 -> 0 | I56: 0 | K56: ='C3C'!K163 -> 0
A57: Water | C57: =SUM(C58:C59) -> 3713009.93 | D57: =SUM(D58:D59) -> 3881454 | E57: 3881454 | F57: 628950.83 | G57: 2114668.61 | H57: 1735617 | I57: 379051.61 | J57: 0.2183958846 | K57: 3881454
A58: Water Distribution | C58: ='C3C'!C150 -> 0 | D58: ='C3C'!D150 -> 0 | E58: ='C3C'!E150 -> 0 | F58: ='C3C'!F150 -> 0 | G58: ='C3C'!G150 -> 0 | H58: ='C3C'!H150 -> 0 | I58: 0 | K58: ='C3C'!K150 -> 0
A59: Water Storage | C59: ='C3C'!C151 -> 3713009.93 | D59: ='C3C'!D151 -> 3881454 | E59: ='C3C'!E151 -> 3881454 | F59: ='C3C'!F151 -> 628950.83 | G59: ='C3C'!G151 -> 2114668.61 | H59: ='C3C'!H151 -> 1735617 | I59: 379051.61 | J59: 0.2183958846 | K59: ='C3C'!K151 -> 3881454
A60: Waste water management | C60: =SUM(C61:C63) -> 2384737.15 | D60: =SUM(D61:D63) -> 2615933 | E60: 2615933 | F60: 509069.93 | G60: 1439116.35 | H60: 1112491 | I60: 326625.35 | J60: 0.2935981954 | K60: 2615933
A61: Sewerage | C61: ='C3C'!C128 -> 2384737.15 | D61: ='C3C'!D128 -> 2615933 | E61: ='C3C'!E128 -> 2615933 | F61: ='C3C'!F128 -> 509069.93 | G61: ='C3C'!G128 -> 1439116.35 | H61: ='C3C'!H128 -> 1112491 | I61: 326625.35 | J61: 0.2935981954 | K61: ='C3C'!K128 -> 2615933
A62: Storm Water Management | I62: 0
A63: Public Toilets | I63: 0
A64: Waste management | C64: =SUM(C65) -> 2781413.74 | D64: =SUM(D65) -> 3049609 | E64: 3049609 | F64: 245780.16 | G64: 1459623.34 | H64: 1480529 | I64: -20905.66 | J64: -0.01412039886 | K64: 3049609
A65: Solid Waste | C65: ='C3C'!C117 -> 2781413.74 | D65: ='C3C'!D117 -> 3049609 | E65: ='C3C'!E117 -> 3049609 | F65: ='C3C'!F117 -> 245780.16 | G65: ='C3C'!G117 -> 1459623.34 | H65: ='C3C'!H117 -> 1480529 | I65: -20905.66 | J65: -0.01412039886 | K65: ='C3C'!K117 -> 3049609
A66: Other | C66: =SUM(C67:C71) -> 0 | D66: =SUM(D67:D71) -> 0 | E66: 0 | F66: 0 | G66: 0 | H66: 0 | I66: 0 | K66: 0
A67: Air Transport | I67: 0
A68: Abattoirs | I68: 0
A69: Tourism | I69: 0
A70: Forestry | I70: 0
A71: Markets | I71: =G71-H71 -> 0 | J71: =IF(I71=0,"",I71/H71) -> 
A72: ="Total "&A5 -> Total Revenue - Standard | B72: 2 | C72: =C6+C16+C38+C53+C66 -> 51310179.35 | D72: 49277084 | E72: 49277084 | F72: 5610536.97 | G72: 23052338.84 | H72: 29920366.22 | I72: =G72-H72 -> -6868027.38 | J72: =IF(I72=0,"",I72/H72) -> -0.22954356 | K72: =K6+K16+K38+K53+K66 -> 49277084
A74: Expenditure - Standard
A75: =A6 -> Municipal governance and administration | C75: =C76+C79+C80 -> 26656645.67 | D75: 23490993 | E75: 23490993 | F75: 2880930.53 | G75: 12279162.94 | H75: 10814372 | I75: =G75-H75 -> 1464790.94 | J75: =IF(I75=0,"",I75/H75) -> 0.1354485438 | K75: 23490993
A76: =A7 -> Executive and council | C76: =SUM(C77:C78) -> 19505528.96 | D76: 15228330 | E76: 15228330 | F76: 2064002.77 | G76: 8347808.18 | H76: 7758156 | I76: 589652.18 | J76: 0.07600416645 | K76: 15228330
A77: Mayor and Council | C77: ='C3C'!C174 -> 19505528.96 | D77: ='C3C'!D174 -> 15228330 | E77: ='C3C'!E174 -> 15228330 | F77: ='C3C'!F174 -> 2064002.77 | G77: ='C3C'!G174 -> 8347808.18 | H77: ='C3C'!H174 -> 7758156 | I77: 589652.18 | J77: 0.07600416645 | K77: ='C3C'!K174 -> 15228330
A78: Municipal Manager | I78: 0
A79: Budget and treasury office | C79: ='C3C'!C185 -> 5774723.63 | D79: ='C3C'!D185 -> 6652409 | E79: ='C3C'!E185 -> 6652409 | F79: ='C3C'!F185 -> 693294.59 | G79: ='C3C'!G185 -> 3190290.98 | H79: ='C3C'!H185 -> 2395135 | I79: 795155.98 | J79: 0.3319879589 | K79: ='C3C'!K185 -> 6652409
A80: Corporate services | C80: =SUM(C81:C84) -> 1376393.08 | D80: 1610254 | E80: 1610254 | F80: 123633.17 | G80: 741063.78 | H80: 661081 | I80: 79982.78 | J80: 0.1209878668 | K80: 1610254
A81: Human Resources | C81: ='C3C'!C196 -> 1376393.08 | D81: ='C3C'!D196 -> 1610254 | E81: ='C3C'!E196 -> 1610254 | F81: ='C3C'!F196 -> 123633.17 | G81: ='C3C'!G196 -> 741063.78 | H81: ='C3C'!H196 -> 661081 | I81: 79982.78 | J81: 0.1209878668 | K81: ='C3C'!K196 -> 1610254
A82: Information Technology | I82: 0
A83: Property Services | I83: 0
A84: Other Admin | I84: 0
A85: Community and public safety | C85: =C86+C95+C96+C102+C103 -> 1685294.792 | D85: 1593442 | E85: 1593442 | F85: 106601.59 | G85: 732131.3 | H85: 657157 | I85: 74974.3 | J85: 0.1140888707 | K85: 1593442
A86: Community and social services | C86: =SUM(C87:C94) -> 965270.532 | D86: 985250 | E86: 985250 | F86: 67515.97 | G86: 455735.92 | H86: 432657 | I86: 23078.92 | J86: 0.05334230118 | K86: 985250
A87: Libraries and Archives | C87: ='C3C'!C231 -> 721740.032 | D87: ='C3C'!D231 -> 725876 | E87: ='C3C'!E231 -> 725876 | F87: ='C3C'!F231 -> 56616.03 | G87: ='C3C'!G231 -> 375032.82 | H87: ='C3C'!H231 -> 0 | I87: 375032.82 | K87: ='C3C'!K231 -> 725876
A88: Museums & Art Galleries etc | C88: ='C3C'!C232 -> 111501.16 | D88: ='C3C'!D232 -> 124123 | E88: ='C3C'!E232 -> 124123 | F88: ='C3C'!F232 -> 1275.41 | G88: ='C3C'!G232 -> 13927.91 | H88: ='C3C'!H232 -> 0 | I88: 13927.91 | K88: ='C3C'!K232 -> 124123
A89: Community halls and Facilities | I89: 0
A90: Cemeteries & Crematoriums | C90: ='C3C'!C230 -> 132029.34 | D90: ='C3C'!D230 -> 135251 | E90: ='C3C'!E230 -> 135251 | F90: ='C3C'!F230 -> 9624.53 | G90: ='C3C'!G230 -> 66775.19 | H90: ='C3C'!H230 -> 432657 | I90: -365881.81 | J90: -0.8456625225 | K90: ='C3C'!K230 -> 135251
A91: Child Care | I91: 0
A92: Aged Care | I92: 0
A93: Other Community | I93: 0
A94: Other Social | I94: 0
A95: Sport and recreation | C95: ='C3C'!C262 -> 617660.17 | D95: ='C3C'!D262 -> 515489 | E95: ='C3C'!E262 -> 515489 | F95: ='C3C'!F262 -> 32558.64 | G95: ='C3C'!G262 -> 234326.58 | H95: ='C3C'!H262 -> 181229 | I95: 53097.58 | J95: 0.2929861115 | K95: ='C3C'!K262 -> 515489
A96: Public safety | C96: =SUM(C97:C101) -> 80776.78 | D96: 71471 | E96: 71471 | F96: 5960.05 | G96: 36132.5 | H96: 34072 | I96: 2060.5 | J96: 0.06047487673 | K96: 71471
A97: Police | I97: 0
A98: Fire | C98: ='C3C'!C252 -> 14770.99 | D98: ='C3C'!D252 -> 16728 | E98: ='C3C'!E252 -> 16728 | F98: ='C3C'!F252 -> 1022.49 | G98: ='C3C'!G252 -> 7157.53 | H98: ='C3C'!H252 -> 34072 | I98: -26914.47 | J98: -0.7899292674 | K98: ='C3C'!K252 -> 16728
A99: Civil Defence | C99: ='C3C'!C253 -> 26856.32 | D99: ='C3C'!D253 -> 35568 | E99: ='C3C'!E253 -> 35568 | F99: ='C3C'!F253 -> 0 | G99: ='C3C'!G253 -> 2721.69 | H99: ='C3C'!H253 -> 0 | I99: 2721.69 | K99: ='C3C'!K253 -> 35568
A100: Street Lighting | I100: 0
A101: Other | C101: ='C3C'!C254 -> 39149.47 | D101: ='C3C'!D254 -> 19175 | E101: ='C3C'!E254 -> 19175 | F101: ='C3C'!F254 -> 4937.56 | G101: ='C3C'!G254 -> 26253.28 | H101: ='C3C'!H254 -> 0 | I101: 26253.28 | K101: ='C3C'!K254 -> 19175
A102: Housing | I102: 0
A103: Health | C103: =SUM(C104:C106) -> 21587.31 | D103: 21232 | E103: 21232 | F103: 566.93 | G103: 5936.3 | H103: 9199 | I103: -3262.7 | J103: -0.3546798565 | K103: 21232
A104: Clinics | C104: ='C3C'!C220 -> 20632.23 | D104: ='C3C'!D220 -> 21232 | E104: ='C3C'!E220 -> 21232 | F104: ='C3C'!F220 -> 111.75 | G104: ='C3C'!G220 -> 3480.93 | H104: ='C3C'!H220 -> 0 | I104: 3480.93 | K104: ='C3C'!K220 -> 21232
A105: Ambulance | I105: 0
A106: Other | C106: ='C3C'!C219 -> 955.08 | D106: ='C3C'!D219 -> 0 | E106: ='C3C'!E219 -> 0 | F106: ='C3C'!F219 -> 455.18 | G106: ='C3C'!G219 -> 2455.37 | H106: ='C3C'!H219 -> 9199 | I106: -6743.63 | J106: -0.7330829438 | K106: ='C3C'!K219 -> 0
A107: Economic and environmental services | C107: =C108+C112+C118 -> 2341797.45 | D107: 2822438 | E107: 2822438 | F107: 122027.99 | G107: 897018.2 | H107: 934285 | I107: -37266.8 | J107: -0.03988804273 | K107: 2822438
A108: Planning and development | C108: =SUM(C109:C111) -> 0 | D108: 0 | E108: 0 | F108: 0 | G108: 0 | H108: 0 | I108: 0 | K108: 0
A109: Economic Development/Planning | I109: 0
A110: Town Planning/Building enforcement | I110: 0
A111: Licensing & Regulation | I111: 0
A112: Road transport | C112: =SUM(C113:C117) -> 2341797.45 | D112: 2822438 | E112: 2822438 | F112: 122027.99 | G112: 897018.2 | H112: 934285 | I112: -37266.8 | J112: -0.03988804273 | K112: 2822438
A113: Roads | C113: ='C3C'!C309 -> 733662.57 | D113: ='C3C'!D309 -> 605290 | E113: ='C3C'!E309 -> 605290 | F113: ='C3C'!F309 -> 34632.51 | G113: ='C3C'!G309 -> 232475.17 | H113: ='C3C'!H306 -> 934285 | I113: -701809.83 | J113: -0.7511731752 | K113: ='C3C'!K309 -> 605290
A114: Public Buses | I114: 0
A115: Parking Garages | I115: 0
A116: Vehicle Licensing and Testing | C116: ='C3C'!C310 -> 147598.19 | D116: ='C3C'!D310 -> 143172 | E116: ='C3C'!E310 -> 143172 | F116: ='C3C'!F310 -> 6686.19 | G116: ='C3C'!G310 -> 78592.12 | H116: ='C3C'!H310 -> 0 | I116: 78592.12 | K116: ='C3C'!K310 -> 143172
A117: Other | C117: ='C3C'!C308 -> 1460536.69 | D117: ='C3C'!D308 -> 2073976 | E117: ='C3C'!E308 -> 2073976 | F117: ='C3C'!F308 -> 80709.29 | G117: ='C3C'!G308 -> 585950.91 | H117: ='C3C'!H308 -> 0 | I117: 585950.91 | K117: ='C3C'!K308 -> 2073976
A118: Environmental protection | C118: =SUM(C119:C121) -> 0 | D118: 0 | E118: 0 | F118: 0 | G118: 0 | H118: 0 | I118: 0 | K118: 0
A119: Pollution Control | I119: 0
A120: Biodiversity & Landscape | I120: 0
A121: Other | I121: 0
A122: Trading services | C122: =C123+C126+C129+C133 -> 12534730.9 | D122: =D123+D126+D129+D133 -> 13096211 | E122: 13096211 | F122: 899338.79 | G122: 5988691.38 | H122: 5932017 | I122: 56674.38 | J122: 0.009553981386 | K122: =K123+K126+K129+K133 -> 13096211
A123: Electricity | C123: =SUM(C124:C125) -> 6753283.96 | D123: 7540456 | E123: 7540456 | F123: 574271.12 | G123: 3894474.23 | H123: 4084278 | I123: -189803.77 | J123: -0.04647180481 | K123: 7540456
A124: Electricity Distribution | C124: ='C3C'!C329+'C3C'!C330 -> 497994.1 | D124: ='C3C'!D329+'C3C'!D330 -> 510368 | E124: ='C3C'!E329+'C3C'!E330 -> 510368 | F124: ='C3C'!F329+'C3C'!F330 -> 90114.52 | G124: ='C3C'!G329+'C3C'!G330 -> 319665.38 | H124: ='C3C'!H329+'C3C'!H330 -> 4084278 | I124: -3764612.62 | J124: -0.9217327077 | K124: ='C3C'!K329+'C3C'!K330 -> 510368
A125: Electricity Generation | C125: ='C3C'!C331 -> 6255289.86 | D125: ='C3C'!D331 -> 7030088 | E125: ='C3C'!E331 -> 7030088 | F125: ='C3C'!F331 -> 484156.6 | G125: ='C3C'!G331 -> 3574808.85 | H125: ='C3C'!H331 -> 0 | I125: 3574808.85 | K125: ='C3C'!K331 -> 7030088
A126: Water | C126: =SUM(C127:C128) -> 1018738.12 | D126: 858255 | E126: 858255 | F126: 63850.01 | G126: 393605.13 | H126: 413189 | I126: -19583.87 | J126: -0.04739688133 | K126: 858255
A127: Water Distribution | C127: ='C3C'!C318 -> 351326.51 | D127: ='C3C'!D318 -> 279865 | E127: ='C3C'!E318 -> 279865 | F127: ='C3C'!F318 -> 29960.47 | G127: ='C3C'!G318 -> 188252.95 | H127: ='C3C'!H318 -> 413189 | I127: -224936.05 | J127: -0.5443902185 | K127: ='C3C'!K318 -> 279865
A128: Water Storage | C128: ='C3C'!C319 -> 667411.61 | D128: ='C3C'!D319 -> 578390 | E128: ='C3C'!E319 -> 578390 | F128: ='C3C'!F319 -> 33889.54 | G128: ='C3C'!G319 -> 205352.18 | H128: ='C3C'!H319 -> 0 | I128: 205352.18 | K128: ='C3C'!K319 -> 578390
A129: Waste water management | C129: =SUM(C130:C132) -> 2288126.71 | D129: 2388575 | E129: 2388575 | F129: 247667.14 | G129: 1542840.43 | H129: 946896 | I129: 595944.43 | J129: 0.6293662979 | K129: 2388575
A130: Sewerage | C130: ='C3C'!C296 -> 2288126.71 | D130: ='C3C'!D296 -> 2388575 | E130: ='C3C'!E296 -> 2388575 | F130: ='C3C'!F296 -> 247667.14 | G130: ='C3C'!G296 -> 1542840.43 | H130: ='C3C'!H296 -> 946896 | I130: 595944.43 | J130: 0.6293662979 | K130: ='C3C'!K296 -> 2388575
A131: Storm Water Management | I131: 0
A132: Public Toilets | I132: 0
A133: Waste management | C133: =SUM(C134) -> 2474582.11 | D133: 2308925 | E133: 2308925 | F133: 13550.52 | G133: 157771.59 | H133: 487654 | I133: -329882.41 | J133: -0.6764681721 | K133: 2308925
A134: Solid Waste | C134: ='C3C'!C285 -> 2474582.11 | D134: ='C3C'!D285 -> 2308925 | E134: ='C3C'!E285 -> 2308925 | F134: ='C3C'!F285 -> 13550.52 | G134: ='C3C'!G285 -> 157771.59 | H134: ='C3C'!H285 -> 487654 | I134: -329882.41 | J134: -0.6764681721 | K134: ='C3C'!K285 -> 2308925
A135: Other | C135: =SUM(C136:C140) -> 0 | D135: 0 | E135: 0 | F135: 0 | G135: 0 | H135: 0 | I135: 0 | K135: 0
A136: Air Transport | I136: 0
A137: Abattoirs | I137: 0
A138: Tourism | I138: 0
A139: Forestry | I139: =G139-H139 -> 0 | J139: =IF(I139=0,"",I139/H139) -> 
A140: =A71 -> Markets | I140: =G140-H140 -> 0 | J140: =IF(I140=0,"",I140/H140) -> 
A141: ="Total "&A74 -> Total Expenditure - Standard | B141: 3 | C141: =C75+C85+C107+C122+C135 -> 43218468.81 | D141: =D75+D85+D107+D122+D135 -> 41003084 | E141: 41003084 | F141: 4008898.9 | G141: 19897003.82 | H141: 18337831 | I141: 1559172.82 | J141: =IF(I141=0,"",I141/H141) -> 0.08502493125 | K141: =K75+K85+K107+K122+K135 -> 41003084
A142: =result -> Surplus/ (Deficit) for the year | C142: =C72-C141 -> 8091710.538 | D142: 8274000 | E142: 8274000 | F142: 1601638.07 | G142: 3155335.02 | H142: 11582535.22 | I142: =G142-H142 -> -8427200.2 | J142: =IF(I142=0,"",I142/H142) -> -0.7275782063 | K142: 8274000
A143: =head27a -> References
A144: 1. Government Finance Statistics Functions and Sub-functions are standardised to assist national and international accounts and comparison
A145: 2. Total Revenue by Standard Classification must reconcile to total operating revenue shown in Financial Performance (revenue and expenditure)
A146: 3. Total Expenditure by Standard Classification must reconcile to total operating expenditure shown in Financial Performance (revenue and expenditure)
A147: 4. All amounts must be classified under a Standard (modified GFS) classification. The GFS function 'Other' is only for Abbatoirs, Air Transport, Markets and Tourism - and if used must be supported by footnotes. Nothing else may be placed under 'Other'. Assign associate share to relevant classification
A150: check oprev balance | C150: =C72-'C4-FinPerf RE'!C23-'C4-FinPerf RE'!C40-'C4-FinPerf RE'!C42 -> -0.1000000071 | D150: =D72-'C4-FinPerf RE'!D23-'C4-FinPerf RE'!D40-'C4-FinPerf RE'!D42 -> 0 | E150: =E72-'C4-FinPerf RE'!E23-'C4-FinPerf RE'!E40-'C4-FinPerf RE'!E42 -> 0 | F150: =F72-'C4-FinPerf RE'!F23-'C4-FinPerf RE'!F40-'C4-FinPerf RE'!F42 -> 0 | G150: =G72-'C4-FinPerf RE'!G23-'C4-FinPerf RE'!G40-'C4-FinPerf RE'!G42 -> 0 | H150: =H72-'C4-FinPerf RE'!H23-'C4-FinPerf RE'!H40-'C4-FinPerf RE'!H42 -> -291421.4931 | I150: =I72-'C4-FinPerf RE'!I23-'C4-FinPerf RE'!I40-'C4-FinPerf RE'!I42 -> 291421.4931 | K150: =K72-'C4-FinPerf RE'!K23-'C4-FinPerf RE'!K40-'C4-FinPerf RE'!K42 -> 0
A151: check opexp balance | C151: =C141-'C4-FinPerf RE'!C37 -> 0 | D151: =D141-'C4-FinPerf RE'!D37 -> 0 | E151: =E141-'C4-FinPerf RE'!E37 -> 0 | F151: =F141-'C4-FinPerf RE'!F37 -> 0 | G151: =G141-'C4-FinPerf RE'!G37 -> 0 | H151: =H141-'C4-FinPerf RE'!H37 -> -291422.0048 | I151: =I141-'C4-FinPerf RE'!I37 -> 291422.0048 | K151: =K141-'C4-FinPerf RE'!K37 -> 0

Sheet C3-FinPerf V
A1: =muni& " - "&S71C& " - "&date -> NC074 Kareeberg - Table C3 Monthly Budget Statement - Financial Performance (revenue and expenditure by municipal vote) - Mid-Year Assessment
A2: =Vdesc -> Vote Description | B2: =head27 -> Ref | C2: =Head1 -> 2011/12 | D2: =Head2 -> Budget Year 2012/13
C3: =Head5 -> Audited Outcome | D3: =Head6 -> Original Budget | E3: =Head7 -> Adjusted Budget | F3: =Head38 -> Monthly actual | G3: =Head39 -> YearTD actual | H3: =Head40 -> YearTD budget | I3: =Head41 -> YTD variance | J3: =Head41 -> YTD variance | K3: =Head8 -> Full Year Forecast
A4: R thousands | J4: %
A5: Revenue by Vote | B5: 1
A6: ='Org structure'!A2 -> Vote 1 - Executive and Council | C6: ='C3C'!C6 -> 27276996.75 | D6: ='C3C'!D6 -> 22923669 | E6: ='C3C'!E6 -> 22923669 | F6: ='C3C'!F6 -> 2558225.46 | G6: ='C3C'!G6 -> 7772853.48 | H6: ='C3C'!H6 -> 17984435 | I6: =G6-H6 -> -10211581.52 | J6: =IF(I6=0,"",I6/H6) -> -0.5678010747 | K6: ='C3C'!K6 -> 22923669
A7: ='Org structure'!A3 -> Vote 2 - Budget and Treasury | C7: ='C3C'!C17 -> 8127735.27 | D7: ='C3C'!D17 -> 9211930 | E7: ='C3C'!E17 -> 9211930 | F7: ='C3C'!F17 -> 844765.63 | G7: ='C3C'!G17 -> 6430903.06 | H7: ='C3C'!H17 -> 4425961 | I7: =G7-H7 -> 2004942.06 | J7: =IF(I7=0,"",I7/H7) -> 0.4529958714 | K7: ='C3C'!K17 -> 9211930
A8: ='Org structure'!A4 -> Vote 3 - Corporate Services | C8: ='C3C'!C28 -> 0 | D8: ='C3C'!D28 -> 0 | E8: ='C3C'!E28 -> 0 | F8: ='C3C'!F28 -> 0 | G8: ='C3C'!G28 -> 0 | H8: ='C3C'!H28 -> 0 | I8: 0 | K8: ='C3C'!K28 -> 0
A9: ='Org structure'!A5 -> Vote 4 - Planning and Development | C9: ='C3C'!C39 -> 0 | D9: ='C3C'!D39 -> 0 | E9: ='C3C'!E39 -> 0 | F9: ='C3C'!F39 -> 0 | G9: ='C3C'!G39 -> 0 | H9: ='C3C'!H39 -> 0 | I9: 0 | K9: ='C3C'!K39 -> 0
A10: ='Org structure'!A6 -> Vote 5 - Health | C10: ='C3C'!C50 -> 0 | D10: ='C3C'!D50 -> 0 | E10: ='C3C'!E50 -> 0 | F10: ='C3C'!F50 -> 0 | G10: ='C3C'!G50 -> 0 | H10: ='C3C'!H50 -> 0 | I10: 0 | K10: ='C3C'!K50 -> 0
A11: ='Org structure'!A7 -> Vote 6 - Community and Social Services | C11: ='C3C'!C61 -> 11121.2 | D11: ='C3C'!D61 -> 6650 | E11: ='C3C'!E61 -> 6650 | F11: ='C3C'!F61 -> 525.6 | G11: ='C3C'!G61 -> 3417.8 | H11: ='C3C'!H61 -> 3743.886779 | I11: -326.0867789 | J11: -0.0870984616 | K11: ='C3C'!K61 -> 6650
A12: ='Org structure'!A8 -> Vote 7 - Housing | C12: ='C3C'!C72 -> 0 | D12: ='C3C'!D72 -> 0 | E12: ='C3C'!E72 -> 0 | F12: ='C3C'!F72 -> 0 | G12: ='C3C'!G72 -> 0 | H12: ='C3C'!H72 -> 0 | I12: 0 | K12: ='C3C'!K72 -> 0
A13: ='Org structure'!A9 -> Vote 8 - Public Safety | C13: ='C3C'!C83 -> 3510 | D13: ='C3C'!D83 -> 705 | E13: ='C3C'!E83 -> 705 | F13: ='C3C'!F83 -> 0 | G13: ='C3C'!G83 -> 1020 | H13: ='C3C'!H83 -> 0 | I13: 1020 | K13: ='C3C'!K83 -> 705
A14: ='Org structure'!A10 -> Vote 9 - Sport and Recreation | C14: ='C3C'!C94 -> 48210 | D14: ='C3C'!D94 -> 17900 | E14: ='C3C'!E94 -> 17900 | F14: ='C3C'!F94 -> 1061.5 | G14: ='C3C'!G94 -> 4224 | H14: ='C3C'!H94 -> 5522.333333 | I14: -1298.333333 | J14: -0.2351059335 | K14: ='C3C'!K94 -> 17900
A15: ='Org structure'!A11 -> Vote 10 - Environmental Protection | C15: ='C3C'!C105 -> 0 | D15: ='C3C'!D105 -> 0 | E15: ='C3C'!E105 -> 0 | F15: ='C3C'!F105 -> 0 | G15: ='C3C'!G105 -> 0 | H15: ='C3C'!H105 -> 0 | I15: 0 | K15: ='C3C'!K105 -> 0
A16: ='Org structure'!A12 -> Vote 11 - Solid Waste Management | C16: ='C3C'!C116 -> 2781413.74 | D16: ='C3C'!D116 -> 3049609 | E16: ='C3C'!E116 -> 3049609 | F16: ='C3C'!F116 -> 245780.16 | G16: ='C3C'!G116 -> 1459623.34 | H16: ='C3C'!H116 -> 1480529 | I16: -20905.66 | J16: -0.01412039886 | K16: ='C3C'!K116 -> 3049609
A17: ='Org structure'!A13 -> Vote 12 - Waste Water Management | C17: ='C3C'!C127 -> 2384737.15 | D17: ='C3C'!D127 -> 2615933 | E17: ='C3C'!E127 -> 2615933 | F17: ='C3C'!F127 -> 509069.93 | G17: ='C3C'!G127 -> 1439116.35 | H17: ='C3C'!H127 -> 1112491 | I17: 326625.35 | J17: 0.2935981954 | K17: ='C3C'!K127 -> 2615933
A18: ='Org structure'!A14 -> Vote 13 - Road Transport | C18: ='C3C'!C138 -> 6020 | D18: ='C3C'!D138 -> 2000 | E18: ='C3C'!E138 -> 2000 | F18: ='C3C'!F138 -> 250 | G18: ='C3C'!G138 -> 3160 | H18: ='C3C'!H138 -> 4390 | I18: -1230 | J18: -0.2801822323 | K18: ='C3C'!K138 -> 2000
A19: ='Org structure'!A15 -> Vote 14 - Water | C19: ='C3C'!C149 -> 3713009.93 | D19: ='C3C'!D149 -> 3881454 | E19: ='C3C'!E149 -> 3881454 | F19: ='C3C'!F149 -> 628950.83 | G19: ='C3C'!G149 -> 2114668.61 | H19: ='C3C'!H149 -> 1735617 | I19: 379051.61 | J19: 0.2183958846 | K19: ='C3C'!K149 -> 3881454
A20: ='Org structure'!A16 -> Vote 15 - Electricity | C20: ='C3C'!C160 -> 6957425.31 | D20: ='C3C'!D160 -> 7567234 | E20: ='C3C'!E160 -> 7567234 | F20: ='C3C'!F160 -> 821907.86 | G20: ='C3C'!G160 -> 3823352.2 | H20: ='C3C'!H160 -> 3167677 | I20: 655675.2 | J20: 0.2069892858 | K20: ='C3C'!K160 -> 7567234
A21: Total Revenue by Vote | B21: 2 | C21: =SUM(C6:C20) -> 51310179.35 | D21: =SUM(D6:D20) -> 49277084 | E21: 49277084 | F21: 5610536.97 | G21: 23052338.84 | H21: 29920366.22 | I21: -6868027.38 | J21: -0.22954356 | K21: =SUM(K6:K20) -> 49277084
A23: Expenditure by Vote | B23: 1
A24: ='Org structure'!A2 -> Vote 1 - Executive and Council | C24: ='C3C'!C174 -> 19505528.96 | D24: ='C3C'!D174 -> 15228330 | E24: ='C3C'!E174 -> 15228330 | F24: ='C3C'!F174 -> 2064002.77 | G24: ='C3C'!G174 -> 8347808.18 | H24: ='C3C'!H174 -> 7758156 | I24: =G24-H24 -> 589652.18 | J24: =IF(I24=0,"",I24/H24) -> 0.07600416645 | K24: ='C3C'!K174 -> 15228330
A25: ='Org structure'!A3 -> Vote 2 - Budget and Treasury | C25: ='C3C'!C185 -> 5774723.63 | D25: ='C3C'!D185 -> 6652409 | E25: ='C3C'!E185 -> 6652409 | F25: ='C3C'!F185 -> 693294.59 | G25: ='C3C'!G185 -> 3190290.98 | H25: ='C3C'!H185 -> 2395135 | I25: 795155.98 | J25: 0.3319879589 | K25: ='C3C'!K185 -> 6652409
A26: ='Org structure'!A4 -> Vote 3 - Corporate Services | C26: ='C3C'!C196 -> 1376393.08 | D26: ='C3C'!D196 -> 1610254 | E26: ='C3C'!E196 -> 1610254 | F26: ='C3C'!F196 -> 123633.17 | G26: ='C3C'!G196 -> 741063.78 | H26: ='C3C'!H196 -> 661081 | I26: 79982.78 | J26: 0.1209878668 | K26: ='C3C'!K196 -> 1610254
A27: ='Org structure'!A5 -> Vote 4 - Planning and Development | C27: ='C3C'!C207 -> 0 | D27: ='C3C'!D207 -> 0 | E27: ='C3C'!E207 -> 0 | F27: ='C3C'!F207 -> 0 | G27: ='C3C'!G207 -> 0 | H27: ='C3C'!H207 -> 0 | I27: 0 | K27: ='C3C'!K207 -> 0
A28: ='Org structure'!A6 -> Vote 5 - Health | C28: ='C3C'!C218 -> 21587.31 | D28: ='C3C'!D218 -> 21232 | E28: ='C3C'!E218 -> 21232 | F28: ='C3C'!F218 -> 566.93 | G28: ='C3C'!G218 -> 5936.3 | H28: ='C3C'!H218 -> 9199 | I28: -3262.7 | J28: -0.3546798565 | K28: ='C3C'!K218 -> 21232
A29: ='Org structure'!A7 -> Vote 6 - Community and Social Services | C29: ='C3C'!C229 -> 965270.532 | D29: ='C3C'!D229 -> 985250 | E29: ='C3C'!E229 -> 985250 | F29: ='C3C'!F229 -> 67515.97 | G29: ='C3C'!G229 -> 455735.92 | H29: ='C3C'!H229 -> 432657 | I29: 23078.92 | J29: 0.05334230118 | K29: ='C3C'!K229 -> 985250
A30: ='Org structure'!A8 -> Vote 7 - Housing | C30: ='C3C'!C240 -> 0 | D30: ='C3C'!D240 -> 0 | E30: ='C3C'!E240 -> 0 | F30: ='C3C'!F240 -> 0 | G30: ='C3C'!G240 -> 0 | H30: ='C3C'!H240 -> 0 | I30: 0 | J30: =IF(I30=0,"",I30/H30) ->  | K30: ='C3C'!K240 -> 0
A31: ='Org structure'!A9 -> Vote 8 - Public Safety | C31: ='C3C'!C251 -> 80776.78 | D31: ='C3C'!D251 -> 71471 | E31: ='C3C'!E251 -> 71471 | F31: ='C3C'!F251 -> 5960.05 | G31: ='C3C'!G251 -> 36132.5 | H31: ='C3C'!H251 -> 34072 | I31: 2060.5 | J31: 0.06047487673 | K31: ='C3C'!K251 -> 71471
A32: ='Org structure'!A10 -> Vote 9 - Sport and Recreation | C32: ='C3C'!C262 -> 617660.17 | D32: ='C3C'!D262 -> 515489 | E32: ='C3C'!E262 -> 515489 | F32: ='C3C'!F262 -> 32558.64 | G32: ='C3C'!G262 -> 234326.58 | H32: ='C3C'!H262 -> 181229 | I32: 53097.58 | J32: 0.2929861115 | K32: ='C3C'!K262 -> 515489
A33: ='Org structure'!A11 -> Vote 10 - Environmental Protection | C33: ='C3C'!C273 -> 0 | D33: ='C3C'!D273 -> 0 | E33: ='C3C'!E273 -> 0 | F33: ='C3C'!F273 -> 0 | G33: ='C3C'!G273 -> 0 | H33: ='C3C'!H273 -> 0 | I33: 0 | J33: =IF(I33=0,"",I33/H33) ->  | K33: ='C3C'!K273 -> 0
A34: ='Org structure'!A12 -> Vote 11 - Solid Waste Management | C34: ='C3C'!C284 -> 2474582.11 | D34: ='C3C'!D284 -> 2308925 | E34: ='C3C'!E284 -> 2308925 | F34: ='C3C'!F284 -> 13550.52 | G34: ='C3C'!G284 -> 157771.59 | H34: ='C3C'!H284 -> 487654 | I34: -329882.41 | J34: =IF(I34=0,"",I34/H34) -> -0.6764681721 | K34: ='C3C'!K284 -> 2308925
A35: ='Org structure'!A13 -> Vote 12 - Waste Water Management | C35: ='C3C'!C295 -> 2288126.71 | D35: ='C3C'!D295 -> 2388575 | E35: ='C3C'!E295 -> 2388575 | F35: ='C3C'!F295 -> 247667.14 | G35: ='C3C'!G295 -> 1542840.43 | H35: ='C3C'!H295 -> 946896 | I35: 595944.43 | J35: =IF(I35=0,"",I35/H35) -> 0.6293662979 | K35: ='C3C'!K295 -> 2388575
A36: ='Org structure'!A14 -> Vote 13 - Road Transport | C36: ='C3C'!C306 -> 2341797.45 | D36: ='C3C'!D306 -> 2822438 | E36: ='C3C'!E306 -> 2822438 | F36: ='C3C'!F306 -> 122027.99 | G36: ='C3C'!G306 -> 897018.2 | H36: ='C3C'!H306 -> 934285 | I36: -37266.8 | J36: =IF(I36=0,"",I36/H36) -> -0.03988804273 | K36: ='C3C'!K306 -> 2822438
A37: ='Org structure'!A15 -> Vote 14 - Water | C37: ='C3C'!C317 -> 1018738.12 | D37: ='C3C'!D317 -> 858255 | E37: ='C3C'!E317 -> 858255 | F37: ='C3C'!F317 -> 63850.01 | G37: ='C3C'!G317 -> 393605.13 | H37: ='C3C'!H317 -> 413189 | I37: -19583.87 | J37: =IF(I37=0,"",I37/H37) -> -0.04739688133 | K37: ='C3C'!K317 -> 858255
A38: ='Org structure'!A16 -> Vote 15 - Electricity | C38: ='C3C'!C328 -> 6753283.96 | D38: ='C3C'!D328 -> 7540456 | E38: ='C3C'!E328 -> 7540456 | F38: ='C3C'!F328 -> 574271.12 | G38: ='C3C'!G328 -> 3894474.23 | H38: ='C3C'!H328 -> 4084278 | I38: -189803.77 | J38: -0.04647180481 | K38: ='C3C'!K328 -> 7540456
A39: Total Expenditure by Vote | B39: 2 | C39: =SUM(C24:C38) -> 43218468.81 | D39: =SUM(D24:D38) -> 41003084 | E39: 41003084 | F39: 4008898.9 | G39: 19897003.82 | H39: 18337831 | I39: 1559172.82 | J39: =IF(I39=0,"",I39/H39) -> 0.08502493125 | K39: =SUM(K24:K38) -> 41003084
A40: =result -> Surplus/ (Deficit) for the year | B40: 2 | C40: =C21-C39 -> 8091710.538 | D40: 8274000 | E40: 8274000 | F40: 1601638.07 | G40: 3155335.02 | H40: 11582535.22 | I40: =I21-I39 -> -8427200.2 | J40: =IF(I40=0,"",I40/H40) -> -0.7275782063 | K40: =K21-K39 -> 8274000
A41: =head27a -> References
A42: 1. Insert 'Vote'; e.g. Department, if different to standard classification structure
A43: 2. Must reconcile to Monthly Budget Statement - Financial Performance Statement (standard classification)

Sheet C3C
A1: =muni& " - "&S71C& " - "&"A"& " - "&date -> NC074 Kareeberg - Table C3 Monthly Budget Statement - Financial Performance (revenue and expenditure by municipal vote) - A - Mid-Year Assessment
A2: =Vdesc -> Vote Description | B2: =head27 -> Ref | C2: =Head1 -> 2011/12 | D2: =Head2 -> Budget Year 2012/13 | L2: =Head4 -> 
A3: R thousand | C3: =Head5 -> Audited Outcome | D3: =Head6 -> Original Budget | E3: =Head7 -> Adjusted Budget | F3: =Head38 -> Monthly actual | G3: =Head39 -> YearTD actual | H3: =Head40 -> YearTD budget | I3: =Head41 -> YTD variance | J3: =Head41 -> YTD variance | K3: =Head8 -> Full Year Forecast | L3: =Head12 -> Forecast 2010/11 | M3: =Head13 -> Forecast 2011/12 | N3: =Head14 -> Forecast 2012/13 | O3: =Head15 -> Forecast 2013/14 | P3: =Head16 -> Forecast 2014/15 | Q3: =Head17 -> Forecast 2015/16 | R3: =Head18 -> Forecast 2016/17 | S3: =Head19 -> Forecast 2017/18 | T3: =Head20 -> Forecast 2018/19 | U3: =Head21 -> Forecast 2019/20 | V3: =Head22 -> Forecast 2020/21 | W3: =Head23 -> Forecast 2021/22
J4: %
A5: Revenue by Vote | B5: 1
A6: ='Org structure'!A2 -> Vote 1 - Executive and Council | C6: =SUM(C7:C16) -> 27276996.75 | D6: =SUM(D7:D16) -> 22923669 | E6: 22923669 | F6: 2558225.46 | G6: 7772853.48 | H6: 17984435 | I6: =G6-H6 -> -10211581.52 | J6: =IF(I6=0,"",I6/H6) -> -0.5678010747 | K6: 22923669
A7: ='Org structure'!E3 -> 1.1 - Executive and Council | C7: 27276996.75 | D7: 22923669 | E7: 22923669 | F7: 2558225.46 | G7: 7772853.48 | H7: 17984435 | I7: -10211581.52 | J7: -0.5678010747 | K7: =E7 -> 22923669
A8: ='Org structure'!E4 -> 0 | I8: 0
A9: ='Org structure'!E5 -> 0 | I9: 0
A10: ='Org structure'!E6 -> 0 | I10: 0
A11: ='Org structure'!E7 -> 0 | I11: 0
A12: ='Org structure'!E8 -> 0 | I12: 0
A13: ='Org structure'!E9 -> 0 | I13: 0
A14: ='Org structure'!E10 -> 0 | I14: 0
A15: ='Org structure'!E11 -> 0 | I15: 0
A16: ='Org structure'!E12 -> 0 | I16: 0
A17: ='Org structure'!A3 -> Vote 2 - Budget and Treasury | C17: =SUM(C18:C27) -> 8127735.27 | D17: =SUM(D18:D27) -> 9211930 | E17: 9211930 | F17: 844765.63 | G17: 6430903.06 | H17: 4425961 | I17: 2004942.06 | J17: 0.4529958714 | K17: 9211930
A18: ='Org structure'!E14 -> 2.1 - Official Housing | C18: 2760 | D18: 2904 | E18: 2904 | F18: 240 | G18: 1440 | H18: 4425961 | I18: -4424521 | J18: -0.9996746469 | K18: =E18 -> 2904
A19: ='Org structure'!E15 -> 2.2 - Rates | C19: 5436304.51 | D19: 7417891 | E19: 7417891 | F19: 494341 | G19: 4812796.7 | I19: 4812796.7 | K19: 7417891
A20: ='Org structure'!E16 -> 2.3 - Commonage | C20: 469884.28 | D20: 361838 | E20: 361838 | F20: 67450.5 | G20: 233804.55 | I20: 233804.55 | K20: 361838
A21: ='Org structure'!E17 -> 2.4 - Municipal Buildings | C21: 22719 | D21: 31532 | E21: 31532 | F21: 1787 | G21: 12802 | I21: 12802 | K21: 31532
A22: ='Org structure'!E18 -> 2.5 - Budget and Treasury Office | C22: 2196067.48 | D22: 1397465 | E22: 1397465 | F22: 280947.13 | G22: 1370059.81 | I22: 1370059.81 | K22: 1397465
A23: ='Org structure'!E19 -> 2.6 - Airport | C23: 0 | D23: 300 | E23: 300 | F23: 0 | G23: 0 | I23: 0 | K23: 300
A24: ='Org structure'!E20 -> 2.7 - Abattoir | C24: 0 | D24: 0 | E24: 0 | F24: 0 | G24: 0 | I24: 0
A25: ='Org structure'!E21 -> 0 | I25: 0
A26: ='Org structure'!E22 -> 0 | I26: 0
A27: ='Org structure'!E23 -> 0 | I27: 0
A28: ='Org structure'!A4 -> Vote 3 - Corporate Services | C28: =SUM(C29:C38) -> 0 | D28: 0 | E28: 0 | F28: 0 | G28: 0 | H28: 0 | I28: 0 | K28: 0
A29: ='Org structure'!E25 -> 3.1 - Corporate Services | C29: 0 | D29: 0 | E29: 0 | F29: 0 | G29: 0 | H29: 0 | I29: 0 | K29: =E29 -> 0
A30: ='Org structure'!E26 -> 0 | I30: 0
A31: ='Org structure'!E27 -> 0 | I31: 0
A32: ='Org structure'!E28 -> 0 | I32: 0
A33: ='Org structure'!E29 -> 0 | I33: 0
A34: ='Org structure'!E30 -> 0 | I34: 0
A35: ='Org structure'!E31 -> 0 | I35: 0
A36: ='Org structure'!E32 -> 0 | I36: 0
A37: ='Org structure'!E33 -> 0 | I37: 0
A38: ='Org structure'!E34 -> 0 | I38: 0
A39: ='Org structure'!A5 -> Vote 4 - Planning and Development | C39: =SUM(C40:C49) -> 0 | D39: 0 | E39: 0 | F39: 0 | G39: 0 | H39: 0 | I39: 0 | K39: 0
A40: ='Org structure'!E36 -> 4.1 - [Name of sub-vote] | I40: 0
A41: ='Org structure'!E37 -> 0 | I41: 0
A42: ='Org structure'!E38 -> 0 | I42: 0
A43: ='Org structure'!E39 -> 0 | I43: 0
A44: ='Org structure'!E40 -> 0 | I44: 0
A45: ='Org structure'!E41 -> 0 | I45: 0
A46: ='Org structure'!E42 -> 0 | I46: 0
A47: ='Org structure'!E43 -> 0 | I47: 0
A48: ='Org structure'!E44 -> 0 | I48: 0
A49: ='Org structure'!E45 -> 0 | I49: 0
A50: ='Org structure'!A6 -> Vote 5 - Health | C50: =SUM(C51:C60) -> 0 | D50: =SUM(D51:D60) -> 0 | E50: 0 | F50: 0 | G50: 0 | H50: 0 | I50: 0 | K50: 0
A51: ='Org structure'!E47 -> 5.1 - Health | C51: 0 | D51: 0 | E51: 0 | F51: 0 | G51: 0 | H51: 0 | I51: 0 | K51: =E51 -> 0
A52: ='Org structure'!E48 -> 5.2 - Clinics | C52: 0 | D52: 0 | E52: 0 | F52: 0 | G52: 0 | H52: 0 | I52: 0
A53: ='Org structure'!E49 -> 0 | I53: 0
A54: ='Org structure'!E50 -> 0 | I54: 0
A55: ='Org structure'!E51 -> 0 | I55: 0
A56: ='Org structure'!E52 -> 0 | I56: 0
A57: ='Org structure'!E53 -> 0 | I57: 0
A58: ='Org structure'!E54 -> 0 | I58: 0
A59: ='Org structure'!E55 -> 0 | I59: 0
A60: ='Org structure'!E56 -> 0 | I60: 0
A61: ='Org structure'!A7 -> Vote 6 - Community and Social Services | C61: =SUM(C62:C71) -> 11121.2 | D61: =SUM(D62:D71) -> 6650 | E61: 6650 | F61: 525.6 | G61: 3417.8 | H61: 3743.886779 | I61: -326.0867789 | J61: -0.0870984616 | K61: 6650
A62: ='Org structure'!E58 -> 6.1 - Cemetry | C62: 9745 | D62: 5920 | E62: 5920 | F62: 500 | G62: 2750 | H62: 3743.886779 | I62: -993.8867789 | J62: -0.2654692403 | K62: =E62 -> 5920
A63: ='Org structure'!E59 -> 6.2 - Library | C63: 1376.2 | D63: 730 | E63: 730 | F63: 25.6 | G63: 667.8 | I63: 667.8 | K63: 730
A64: ='Org structure'!E60 -> 6.3 - Museum | C64: 0 | D64: 0 | E64: 0 | F64: 0 | G64: 0 | I64: 0 | K64: 0
A65: ='Org structure'!E61 -> 0 | I65: 0
A66: ='Org structure'!E62 -> 0 | I66: 0
A67: ='Org structure'!E63 -> 0 | I67: 0
A68: ='Org structure'!E64 -> 0 | I68: 0
A69: ='Org structure'!E65 -> 0 | I69: 0
A70: ='Org structure'!E66 -> 0 | I70: =G70-H70 -> 0 | J70: =IF(I70=0,"",I70/H70) -> 
A71: ='Org structure'!E67 -> 0 | I71: 0
A72: ='Org structure'!A8 -> Vote 7 - Housing | C72: =SUM(C73:C82) -> 0 | D72: 0 | E72: 0 | F72: 0 | G72: 0 | H72: 0 | I72: 0 | K72: 0
A73: ='Org structure'!E69 -> 7.1 - [Name of sub-vote] | I73: 0
A74: ='Org structure'!E70 -> 0 | I74: 0
A75: ='Org structure'!E71 -> 0 | I75: 0
A76: ='Org structure'!E72 -> 0 | I76: 0
A77: ='Org structure'!E73 -> 0 | I77: 0
A78: ='Org structure'!E74 -> 0 | I78: 0
A79: ='Org structure'!E75 -> 0 | I79: 0
A80: ='Org structure'!E76 -> 0 | I80: 0
A81: ='Org structure'!E77 -> 0 | I81: 0
A82: ='Org structure'!E78 -> 0 | I82: 0
A83: ='Org structure'!A9 -> Vote 8 - Public Safety | C83: =SUM(C84:C93) -> 3510 | D83: =SUM(D84:D93) -> 705 | E83: 705 | F83: 0 | G83: 1020 | H83: 0 | I83: 1020 | K83: 705
A84: ='Org structure'!E80 -> 8.1 - Fire Service | C84: 0 | D84: 0 | E84: 0 | F84: 0 | G84: 0 | H84: 0 | I84: 0 | K84: =E84 -> 0
A85: ='Org structure'!E81 -> 8.2 - Civil Defence | C85: 0 | D85: 0 | E85: 0 | F85: 0 | G85: 0 | I85: 0 | K85: 0
A86: ='Org structure'!E82 -> 8.3 - Pound | C86: 3510 | D86: 705 | E86: 705 | F86: 0 | G86: 1020 | I86: 1020 | K86: 705
A87: ='Org structure'!E83 -> 0 | I87: 0
A88: ='Org structure'!E84 -> 0 | I88: 0
A89: ='Org structure'!E85 -> 0 | I89: 0
A90: ='Org structure'!E86 -> 0 | I90: 0
A91: ='Org structure'!E87 -> 0 | I91: 0
A92: ='Org structure'!E88 -> 0 | I92: 0
A93: ='Org structure'!E89 -> 0 | I93: 0
A94: ='Org structure'!A10 -> Vote 9 - Sport and Recreation | C94: =SUM(C95:C104) -> 48210 | D94: =SUM(D95:D104) -> 17900 | E94: 17900 | F94: 1061.5 | G94: 4224 | H94: 5522.333333 | I94: -1298.333333 | J94: -0.2351059335 | K94: 17900
A95: ='Org structure'!E91 -> 9.1 - Nature Reserve | C95: 26450 | D95: 5100 | E95: 5100 | F95: 0 | G95: 0 | H95: 5522.333333 | I95: -5522.333333 | J95: -1 | K95: =E95 -> 5100
A96: ='Org structure'!E92 -> 9.2 - Parks and Gardens | C96: 0 | D96: 700 | E96: 700 | F96: 0 | G96: 0 | I96: 0 | K96: 700
A97: ='Org structure'!E93 -> 9.3 - Swimming Pool | C97: 15040 | D97: 9000 | E97: 9000 | F97: 694 | G97: 694 | I97: 694 | K97: 9000
A98: ='Org structure'!E94 -> 9.4 - Caravan Park | C98: 6720 | D98: 3100 | E98: 3100 | F98: 367.5 | G98: 3530 | I98: 3530 | K98: 3100
A99: ='Org structure'!E95 -> 0 | I99: 0
A100: ='Org structure'!E96 -> 0 | I100: 0
A101: ='Org structure'!E97 -> 0 | I101: 0
A102: ='Org structure'!E98 -> 0 | I102: 0
A103: ='Org structure'!E99 -> 0 | I103: 0
A104: ='Org structure'!E100 -> 0 | I104: 0
A105: ='Org structure'!A11 -> Vote 10 - Environmental Protection | C105: =SUM(C106:C115) -> 0 | D105: =SUM(D106:D115) -> 0 | E105: 0 | F105: 0 | G105: 0 | H105: 0 | I105: 0 | K105: 0
A106: ='Org structure'!E102 -> 10.1 - [Name of sub-vote] | I106: 0
A107: ='Org structure'!E103 -> 0 | I107: 0
A108: ='Org structure'!E104 -> 0 | I108: 0
A109: ='Org structure'!E105 -> 0 | I109: 0
A110: ='Org structure'!E106 -> 0 | I110: 0
A111: ='Org structure'!E107 -> 0 | I111: 0
A112: ='Org structure'!E108 -> 0 | I112: 0
A113: ='Org structure'!E109 -> 0 | I113: 0
A114: ='Org structure'!E110 -> 0 | I114: 0
A115: ='Org structure'!E111 -> 0 | I115: 0
A116: ='Org structure'!A12 -> Vote 11 - Solid Waste Management | C116: =SUM(C117:C126) -> 2781413.74 | D116: =SUM(D117:D126) -> 3049609 | E116: 3049609 | F116: 245780.16 | G116: 1459623.34 | H116: 1480529 | I116: -20905.66 | J116: -0.01412039886 | K116: 3049609
A117: ='Org structure'!E113 -> 11.1 - Refuse removal | C117: 2781413.74 | D117: 3049609 | E117: 3049609 | F117: 245780.16 | G117: 1459623.34 | H117: 1480529 | I117: -20905.66 | J117: -0.01412039886 | K117: =E117 -> 3049609
A118: ='Org structure'!E114 -> 0 | I118: 0
A119: ='Org structure'!E115 -> 0 | I119: 0
A120: ='Org structure'!E116 -> 0 | I120: 0
A121: ='Org structure'!E117 -> 0 | I121: 0
A122: ='Org structure'!E118 -> 0 | I122: 0
A123: ='Org structure'!E119 -> 0 | I123: 0
A124: ='Org structure'!E120 -> 0 | I124: 0
A125: ='Org structure'!E121 -> 0 | I125: 0
A126: ='Org structure'!E122 -> 0 | I126: 0
A127: ='Org structure'!A13 -> Vote 12 - Waste Water Management | C127: =SUM(C128:C137) -> 2384737.15 | D127: =SUM(D128:D137) -> 2615933 | E127: 2615933 | F127: 509069.93 | G127: 1439116.35 | H127: 1112491 | I127: 326625.35 | J127: 0.2935981954 | K127: 2615933
A128: ='Org structure'!E124 -> 12.1 - Sewerage | C128: 2384737.15 | D128: 2615933 | E128: 2615933 | F128: 509069.93 | G128: 1439116.35 | H128: 1112491 | I128: 326625.35 | J128: 0.2935981954 | K128: =E128 -> 2615933
A129: ='Org structure'!E125 -> 0 | I129: 0
A130: ='Org structure'!E126 -> 0 | I130: 0
A131: ='Org structure'!E127 -> 0 | I131: 0
A132: ='Org structure'!E128 -> 0 | I132: 0
A133: ='Org structure'!E129 -> 0 | I133: 0
A134: ='Org structure'!E130 -> 0 | I134: =G134-H134 -> 0 | J134: =IF(I134=0,"",I134/H134) -> 
A135: ='Org structure'!E131 -> 0 | I135: 0
A136: ='Org structure'!E132 -> 0 | I136: 0
A137: ='Org structure'!E133 -> 0 | I137: 0
A138: ='Org structure'!A14 -> Vote 13 - Road Transport | C138: =SUM(C139:C148) -> 6020 | D138: =SUM(D139:D148) -> 2000 | E138: 2000 | F138: 250 | G138: 3160 | H138: 4390 | I138: -1230 | J138: -0.2801822323 | K138: 2000
A139: ='Org structure'!E135 -> 13.1 - Main Roads | C139: 0 | D139: 0 | E139: 0 | F139: 0 | G139: 0 | H139: 4390 | I139: -4390 | J139: -1 | K139: =E139 -> 0
A140: ='Org structure'!E136 -> 13.2 - Public Works | C140: 570 | D140: 100 | E140: 100 | F140: 0 | G140: 210 | I140: 210 | K140: 100
A141: ='Org structure'!E137 -> 13.3 - Streets and Pavements | C141: 0 | D141: 400 | E141: 400 | F141: 0 | G141: 0 | I141: 0 | K141: 400
A142: ='Org structure'!E138 -> 13.4 - Traffic and licencing | C142: 5450 | D142: 1500 | E142: 1500 | F142: 250 | G142: 2950 | I142: 2950 | K142: 1500
A143: ='Org structure'!E139 -> 0 | I143: 0
A144: ='Org structure'!E140 -> 0 | I144: 0
A145: ='Org structure'!E141 -> 0 | I145: 0
A146: ='Org structure'!E142 -> 0 | I146: 0
A147: ='Org structure'!E143 -> 0 | I147: 0
A148: ='Org structure'!E144 -> 0 | I148: 0
A149: ='Org structure'!A15 -> Vote 14 - Water | C149: =SUM(C150:C159) -> 3713009.93 | D149: =SUM(D150:D159) -> 3881454 | E149: 3881454 | F149: 628950.83 | G149: 2114668.61 | H149: 1735617 | I149: 379051.61 | J149: 0.2183958846 | K149: 3881454
A150: ='Org structure'!E146 -> 14.1 - Water Distribution | C150: 0 | D150: 0 | E150: 0 | F150: 0 | G150: 0 | H150: 0 | I150: 0 | K150: =E150 -> 0
A151: ='Org structure'!E147 -> 14.2 - Water Storage | C151: 3713009.93 | D151: 3881454 | E151: 3881454 | F151: 628950.83 | G151: 2114668.61 | H151: 1735617 | I151: 379051.61 | J151: 0.2183958846 | K151: 3881454
A152: ='Org structure'!E148 -> 0 | I152: 0
A153: ='Org structure'!E149 -> 0 | I153: 0
A154: ='Org structure'!E150 -> 0 | I154: 0
A155: ='Org structure'!E151 -> 0 | I155: 0
A156: ='Org structure'!E152 -> 0 | I156: 0
A157: ='Org structure'!E153 -> 0 | I157: 0
A158: ='Org structure'!E154 -> 0 | I158: 0
A159: ='Org structure'!E155 -> 0 | I159: 0
A160: ='Org structure'!A16 -> Vote 15 - Electricity | C160: =SUM(C161:C170) -> 6957425.31 | D160: =SUM(D161:D170) -> 7567234 | E160: 7567234 | F160: 821907.86 | G160: 3823352.2 | H160: 3167677 | I160: 655675.2 | J160: 0.2069892858 | K160: 7567234
A161: ='Org structure'!E157 -> 15.1 - Electricity Administration | C161: 6957425.31 | D161: 7567234 | E161: 7567234 | F161: 821907.86 | G161: 3823352.2 | H161: 3167677 | I161: 655675.2 | J161: 0.2069892858 | K161: =E161 -> 7567234
A162: ='Org structure'!E158 -> 15.2 - Electricity Distribution | C162: 0 | D162: 0 | E162: 0 | F162: 0 | G162: 0 | I162: 0 | K162: 0
A163: ='Org structure'!E159 -> 15.3 - Electricity Generation | C163: 0 | D163: 0 | E163: 0 | F163: 0 | G163: 0 | I163: 0 | K163: 0
A164: ='Org structure'!E160 -> 0 | I164: 0
A165: ='Org structure'!E161 -> 0 | I165: 0
A166: ='Org structure'!E162 -> 0 | I166: 0
A167: ='Org structure'!E163 -> 0 | I167: 0
A168: ='Org structure'!E164 -> 0 | I168: 0
A169: ='Org structure'!E165 -> 0 | I169: 0
A170: ='Org structure'!E166 -> 0 | I170: 0 | L170: =SUM(L78:L81) -> 0 | M170: 0 | N170: 0 | O170: 0 | P170: 0 | Q170: 0 | R170: 0 | S170: 0 | T170: 0 | U170: 0 | V170: 0 | W170: 0
A171: Total Revenue by Vote | B171: 2 | C171: =C6+C17+C28+C39+C50+C61+C72+C83+C94+C105+C116+C127+C138+C149+C160 -> 51310179.35 | D171: =D6+D17+D28+D39+D50+D61+D72+D83+D94+D105+D116+D127+D138+D149+D160 -> 49277084 | E171: 49277084 | F171: 5610536.97 | G171: 23052338.84 | H171: 29920366.22 | I171: -6868027.38 | J171: -0.22954356 | K171: 49277084
I172: 0
A173: Expenditure by Vote | B173: 1 | I173: 0
A174: ='Org structure'!A2 -> Vote 1 - Executive and Council | C174: =SUM(C175:C184) -> 19505528.96 | D174: 15228330 | E174: 15228330 | F174: 2064002.77 | G174: 8347808.18 | H174: 7758156 | I174: 589652.18 | J174: 0.07600416645 | K174: 15228330
A175: ='Org structure'!E3 -> 1.1 - Executive and Council | C175: 19505528.96 | D175: 15228330 | E175: 15228330 | F175: 2064002.77 | G175: 8347808.18 | H175: 7758156 | I175: 589652.18 | J175: 0.07600416645 | K175: =E175 -> 15228330
A176: ='Org structure'!E4 -> 0 | I176: 0
A177: ='Org structure'!E5 -> 0 | I177: 0
A178: ='Org structure'!E6 -> 0 | I178: 0
A179: ='Org structure'!E7 -> 0 | I179: 0
A180: ='Org structure'!E8 -> 0 | I180: 0
A181: ='Org structure'!E9 -> 0 | I181: 0
A182: ='Org structure'!E10 -> 0 | I182: 0
A183: ='Org structure'!E11 -> 0 | I183: 0
A184: ='Org structure'!E12 -> 0 | I184: 0
A185: ='Org structure'!A3 -> Vote 2 - Budget and Treasury | C185: =SUM(C186:C195) -> 5774723.63 | D185: =SUM(D186:D195) -> 6652409 | E185: =SUM(E186:E195) -> 6652409 | F185: 693294.59 | G185: 3190290.98 | H185: 2395135 | I185: 795155.98 | J185: 0.3319879589 | K185: 6652409
A186: ='Org structure'!E14 -> 2.1 - Official Housing | C186: 1701.6 | D186: 3553 | E186: 3553 | F186: 75 | G186: 603 | H186: 2395135 | I186: -2394532 | J186: -0.9997482397 | K186: =E186 -> 3553
A187: ='Org structure'!E15 -> 2.2 - Rates | C187: 0 | D187: 0 | E187: 0 | F187: 0 | G187: 0 | I187: 0 | K187: 0
A188: ='Org structure'!E16 -> 2.3 - Commonage | C188: 71294.35 | D188: 73207 | E188: 73207 | F188: 2044.96 | G188: 18144.78 | I188: 18144.78 | K188: 73207
A189: ='Org structure'!E17 -> 2.4 - Municipal Buildings | C189: 175704.01 | D189: 153578 | E189: 153578 | F189: 8392.01 | G189: 70512.47 | I189: 70512.47 | K189: 153578
A190: ='Org structure'!E18 -> 2.5 - Budget and Treasury Office | C190: 5481611.2 | D190: 6376880 | E190: 6376880 | F190: 679918.66 | G190: 3072433.92 | I190: 3072433.92 | K190: 6376880
A191: ='Org structure'!E19 -> 2.6 - Airport | C191: 44388.17 | D191: 44662 | E191: 44662 | F191: 2863.96 | G191: 28567.81 | I191: 28567.81 | K191: 44662
A192: ='Org structure'!E20 -> 2.7 - Abattoir | C192: 24.3 | D192: 529 | E192: 529 | F192: 0 | G192: 29 | I192: 29 | K192: 529
A193: ='Org structure'!E21 -> 0 | I193: 0
A194: ='Org structure'!E22 -> 0 | I194: 0
A195: ='Org structure'!E23 -> 0 | I195: 0
A196: ='Org structure'!A4 -> Vote 3 - Corporate Services | C196: =SUM(C197:C206) -> 1376393.08 | D196: 1610254 | E196: 1610254 | F196: 123633.17 | G196: 741063.78 | H196: 661081 | I196: 79982.78 | J196: 0.1209878668 | K196: 1610254
A197: ='Org structure'!E25 -> 3.1 - Corporate Services | C197: 1376393.08 | D197: 1610254 | E197: 1610254 | F197: 123633.17 | G197: 741063.78 | H197: 661081 | I197: 79982.78 | J197: 0.1209878668 | K197: =E197 -> 1610254
A198: ='Org structure'!E26 -> 0 | I198: =G198-H198 -> 0 | J198: =IF(I198=0,"",I198/H198) -> 
A199: ='Org structure'!E27 -> 0 | I199: 0
A200: ='Org structure'!E28 -> 0 | I200: 0
... 147 more rows

Sheet C4-FinPerf RE
A1: =muni& " - "&S71B& " - "&date -> NC074 Kareeberg - Table C4 Monthly Budget Statement - Financial Performance (revenue and expenditure) - Mid-Year Assessment
A2: =desc -> Description | B2: =head27 -> Ref | C2: =Head1 -> 2011/12 | D2: =Head2 -> Budget Year 2012/13
C3: =Head5 -> Audited Outcome | D3: =Head6 -> Original Budget | E3: =Head7 -> Adjusted Budget | F3: =Head38 -> Monthly actual | G3: =Head39 -> YearTD actual | H3: =Head40 -> YearTD budget | I3: =Head41 -> YTD variance | J3: =Head41 -> YTD variance | K3: =Head8 -> Full Year Forecast
A4: R thousands | J4: %
A5: Revenue By Source
A6: Property rates | C6: 3878346.51 | D6: 4526502 | E6: 4526502 | F6: 0 | G6: 4318455.7 | H6: 4526502 | I6: =G6-H6 -> -208046.3 | J6: =IF(I6=0,"",I6/H6) -> -0.04596182659 | K6: 4526502
A7: Property rates - penalties & collection charges | C7: 199288.41 | D7: 190000 | E7: 190000 | F7: 15854.73 | G7: 95124.63 | H7: 100364 | I7: -5239.37 | J7: -0.05220367861 | K7: 190000
A8: Service charges - electricity revenue | C8: 6631019.31 | D8: 7240298 | E8: 7240298 | F8: 495661.86 | G8: 3497046.2 | H8: 3167677 | I8: 329369.2 | J8: 0.1039781518 | K8: 7240298
A9: Service charges - water revenue | C9: 3386633.93 | D9: 3554778 | E9: 3554778 | F9: 302704.83 | G9: 1788412.61 | H9: 1756255 | I9: 32157.61 | J9: 0.01831033079 | K9: 3554778
A10: Service charges - sanitation revenue | C10: 2058501.15 | D10: 2289697 | E10: 2289697 | F10: 182833.93 | G10: 1112880.35 | H10: 1131234 | I10: -18353.65 | J10: -0.01622445047 | K10: 2289697
A11: Service charges - refuse revenue | C11: 2780237.5 | D11: 3048829 | E11: 3048829 | F11: 245577.36 | G11: 1458825.66 | H11: 1506287 | I11: -47461.34 | J11: -0.03150882933 | K11: 3048829
A12: Service charges - other | C12: 0 | D12: 0 | E12: 0 | F12: 0 | G12: 0 | H12: 0 | I12: 0 | K12: 0
A13: Rental of facilities and equipment | C13: 522383.28 | D13: 410674 | E13: 410674 | F13: 70711.5 | G13: 254910.55 | H13: 199684.8819 | I13: 55225.66809 | J13: 0.2765640922 | K13: 410674
A14: Interest earned - external investments | C14: 925183.86 | D14: 1297000 | E14: 1297000 | F14: 50526.24 | G14: 284354.07 | H14: 105452 | I14: 178902.07 | J14: 1.696526097 | K14: 1297000
A15: Interest earned - outstanding debtors | C15: 3676.78 | D15: 3300 | E15: 3300 | F15: 278.22 | G15: 1706.63 | H15: 1836 | I15: -129.37 | J15: -0.07046296296 | K15: 3300
A16: Dividends received | C16: 0 | D16: 0 | E16: 0 | F16: 0 | G16: 0 | H16: 0 | I16: 0 | K16: 0
A17: Fines | C17: 22806.2 | D17: 12230 | E17: 12230 | F17: 455.6 | G17: 2827.8 | H17: 2680 | I17: 147.8 | J17: 0.05514925373 | K17: 12230
A18: Licences and permits | C18: 11202 | D18: 7420 | E18: 7420 | F18: 429 | G18: 3261 | H18: 2461.573614 | I18: 799.4263862 | J18: 0.3247623316 | K18: 7420
A19: Agency services | C19: 123618.56 | D19: 97000 | E19: 97000 | F19: 8017.24 | G19: 59627.01 | H19: 40224.96982 | I19: 19402.04018 | J19: 0.4823382161 | K19: 97000
A20: Transfers recognised - operational | C20: 18650665.12 | D20: 15906000 | E20: 15906000 | F20: 3980000 | G20: 8956000 | H20: 11925666.67 | I20: -2969666.667 | J20: -0.2490147301 | K20: 15906000
A21: Other revenue | C21: 1907116.53 | D21: 1119356 | E21: 1119356 | F21: 257486.46 | G21: 1218906.63 | H21: 745462.6212 | I21: 473444.0088 | J21: 0.6351009364 | K21: 1119356
A22: Gains on disposal of PPE | C22: 0 | D22: 0 | E22: 0 | F22: 0 | G22: 0 | H22: 0 | I22: 0 | K22: 0
A23: Total Revenue (excluding capital transfers and contributions) | C23: =SUM(C6:C22) -> 41100679.14 | D23: 39703084 | E23: 39703084 | F23: 5610536.97 | G23: 23052338.84 | H23: 25211787.71 | I23: -2159448.873 | J23: -0.08565235031 | K23: =SUM(K6:K22) -> 39703084
A25: Expenditure By Type
A26: Employee related costs | C26: 11033999.02 | D26: 11561371 | E26: 11561371 | F26: 947599.15 | G26: 5645628.5 | H26: 4889091 | I26: =G26-H26 -> 756537.5 | J26: =IF(I26=0,"",I26/H26) -> 0.1547399097 | K26: 11561371
A27: Remuneration of councillors | C27: 1687658.86 | D27: 1880988 | E27: 1880988 | F27: 139551.73 | G27: 838277.11 | H27: 717493 | I27: 120784.11 | J27: 0.1683418654 | K27: 1880988
A28: Debt impairment | C28: 0 | D28: 225000 | E28: 225000 | F28: 0 | G28: 0 | H28: 0 | I28: 0 | K28: 225000
A29: Depreciation & asset impairment | C29: 2825147.05 | D29: 3135177 | E29: 3135177 | F29: 0 | G29: 0 | H29: 0 | I29: 0 | K29: 3135177
A30: Finance charges | C30: 826755 | D30: 418601 | E30: 418601 | F30: 0 | G30: 0 | H30: 0 | I30: 0 | K30: 418601
A31: Bulk purchases | C31: 6283488.93 | D31: 7000035 | E31: 7000035 | F31: 481656.6 | G31: 3557531.85 | H31: 2855437 | I31: 702094.85 | J31: 0.2458800002 | K31: 7000035
A32: Other materials | C32: 715358.31 | D32: 379200 | E32: 379200 | F32: 68188.63 | G32: 217277.27 | H32: 199456 | I32: 17821.27 | J32: 0.08934938031 | K32: 379200
A33: Contracted services | C33: 0 | D33: 428479 | E33: 428479 | F33: 2359.43 | G33: 136862.56 | H33: 225376.3381 | I33: -88513.77814 | J33: -0.392737671 | K33: 428479
A34: Transfers and grants | C34: 15620999.12 | D34: 11133903 | E34: 11133903 | F34: 1824951 | G34: 6580951 | H34: 4779268.667 | I34: 1801682.333 | J34: 0.3769786674 | K34: 11133903
A35: Other expenditure | C35: 4143961.062 | D35: 4838330 | E35: 4838330 | F35: 544592.36 | G35: 2920475.53 | H35: 4963131 | I35: -2042655.47 | J35: -0.4115658986 | K35: 4838330
A36: Loss on disposal of PPE | C36: 81101.46 | D36: 2000 | E36: 2000 | F36: 0 | G36: 0 | H36: 0 | I36: 0 | K36: 2000
A37: Total Expenditure | C37: =SUM(C26:C36) -> 43218468.81 | D37: =SUM(D26:D36) -> 41003084 | E37: =SUM(E26:E36) -> 41003084 | F37: 4008898.9 | G37: 19897003.82 | H37: 18629253 | I37: 1267750.815 | J37: 0.06805161833 | K37: 41003084
A39: Surplus/(Deficit) | C39: =C23-C37 -> -2117789.672 | D39: -1300000 | E39: -1300000 | F39: 1601638.07 | G39: 3155335.02 | H39: 6582534.708 | I39: =I23-I37 -> -3427199.688 | J39: -0.5206504546 | K39: =K23-K37 -> -1300000
A40: Transfers recognised - capital | C40: 10088203.31 | D40: 9574000 | E40: 9574000 | F40: 0 | G40: 0 | H40: 5000000 | I40: =G40-H40 -> -5000000 | J40: -1 | K40: 9574000
A41: Contributions recognised - capital | I41: =G41-H41 -> 0
A42: Contributed assets | C42: 121297 | D42: 0 | E42: 0 | F42: 0 | G42: 0 | H42: =E42/12*Contacts!$A$85 -> 0 | I42: =G42-H42 -> 0 | K42: =E42 -> 0
A43: Surplus/(Deficit) after capital transfers & contributions | C43: =C39+SUM(C40:C42) -> 8091710.638 | D43: 8274000 | E43: 8274000 | F43: 1601638.07 | G43: 3155335.02 | H43: 11582534.71 | K43: =K39+SUM(K40:K42) -> 8274000
A44: Taxation | I44: =G44-H44 -> 0 | J44: =IF(I44=0,"",I44/H44) -> 
A45: Surplus/(Deficit) after taxation | C45: =C43-C44 -> 8091710.638 | D45: 8274000 | E45: 8274000 | F45: 1601638.07 | G45: 3155335.02 | H45: 11582534.71 | K45: =K43-K44 -> 8274000
A46: Attributable to minorities
A47: Surplus/(Deficit) attributable to municipality | C47: =SUM(C45:C46) -> 8091710.638 | D47: 8274000 | E47: 8274000 | F47: 1601638.07 | G47: 3155335.02 | H47: 11582534.71 | K47: =SUM(K45:K46) -> 8274000
A48: Share of surplus/ (deficit) of associate
A49: Surplus/ (Deficit) for the year | C49: =C47+C48 -> 8091710.638 | D49: 8274000 | E49: 8274000 | F49: 1601638.07 | G49: 3155335.02 | H49: 11582534.71 | K49: =K47+K48 -> 8274000
A50: =head27a -> References
A51: 1. Material variances to be explained on Table SC1
A54: =A23&" including capital transfers/contributions etc" -> Total Revenue (excluding capital transfers and contributions) including capital transfers/contributions etc | C54: =C23+SUM(C40:C42) -> 51310179.45 | D54: 49277084 | E54: 49277084 | F54: 5610536.97 | G54: 23052338.84 | H54: 30211787.71 | K54: =K23+SUM(K40:K42) -> 49277084

Sheet C5-Capex
A1: =muni& " - "&S71D& " - "&date -> NC074 Kareeberg - Table C5 Monthly Budget Statement - Capital Expenditure (municipal vote, standard classification and funding) - Mid-Year Assessment
A2: =Vdesc -> Vote Description | B2: =head27 -> Ref | C2: =Head1 -> 2011/12 | D2: =Head2 -> Budget Year 2012/13
C3: =Head5 -> Audited Outcome | D3: =Head6 -> Original Budget | E3: =Head7 -> Adjusted Budget | F3: =Head38 -> Monthly actual | G3: =Head39 -> YearTD actual | H3: =Head40 -> YearTD budget | I3: =Head41 -> YTD variance | J3: =Head41 -> YTD variance | K3: =Head8 -> Full Year Forecast
A4: R thousands | B4: 1 | J4: %
A5: Multi-Year expenditure appropriation | B5: 2
A6: ='Org structure'!A2 -> Vote 1 - Executive and Council | C6: ='C5C'!C7 -> 0 | D6: ='C5C'!D7 -> 0 | E6: ='C5C'!E7 -> 0 | F6: ='C5C'!F7 -> 0 | G6: ='C5C'!G7 -> 0 | H6: ='C5C'!H7 -> 0 | I6: =G6-H6 -> 0 | J6: =IF(I6=0,"",I6/H6) ->  | K6: ='C5C'!K7 -> 0
A7: ='Org structure'!A3 -> Vote 2 - Budget and Treasury | C7: ='C5C'!C18 -> 0 | D7: ='C5C'!D18 -> 0 | E7: ='C5C'!E18 -> 0 | F7: ='C5C'!F18 -> 0 | G7: ='C5C'!G18 -> 0 | H7: ='C5C'!H18 -> 0 | I7: =G7-H7 -> 0 | J7: =IF(I7=0,"",I7/H7) ->  | K7: ='C5C'!K18 -> 0
A8: ='Org structure'!A4 -> Vote 3 - Corporate Services | C8: ='C5C'!C29 -> 0 | D8: ='C5C'!D29 -> 0 | E8: ='C5C'!E29 -> 0 | F8: ='C5C'!F29 -> 0 | G8: ='C5C'!G29 -> 0 | H8: ='C5C'!H29 -> 0 | I8: =G8-H8 -> 0 | J8: =IF(I8=0,"",I8/H8) ->  | K8: ='C5C'!K29 -> 0
A9: ='Org structure'!A5 -> Vote 4 - Planning and Development | C9: ='C5C'!C40 -> 0 | D9: ='C5C'!D40 -> 0 | E9: ='C5C'!E40 -> 0 | F9: ='C5C'!F40 -> 0 | G9: ='C5C'!G40 -> 0 | H9: ='C5C'!H40 -> 0 | I9: 0 | K9: ='C5C'!K40 -> 0
A10: ='Org structure'!A6 -> Vote 5 - Health | C10: ='C5C'!C51 -> 0 | D10: ='C5C'!D51 -> 0 | E10: ='C5C'!E51 -> 0 | F10: ='C5C'!F51 -> 0 | G10: ='C5C'!G51 -> 0 | H10: ='C5C'!H51 -> 0 | I10: 0 | K10: ='C5C'!K51 -> 0
A11: ='Org structure'!A7 -> Vote 6 - Community and Social Services | C11: ='C5C'!C62 -> 0 | D11: ='C5C'!D62 -> 0 | E11: ='C5C'!E62 -> 0 | F11: ='C5C'!F62 -> 0 | G11: ='C5C'!G62 -> 0 | H11: ='C5C'!H62 -> 0 | I11: 0 | K11: ='C5C'!K62 -> 0
A12: ='Org structure'!A8 -> Vote 7 - Housing | C12: ='C5C'!C73 -> 0 | D12: ='C5C'!D73 -> 0 | E12: ='C5C'!E73 -> 0 | F12: ='C5C'!F73 -> 0 | G12: ='C5C'!G73 -> 0 | H12: ='C5C'!H73 -> 0 | I12: 0 | K12: ='C5C'!K73 -> 0
A13: ='Org structure'!A9 -> Vote 8 - Public Safety | C13: ='C5C'!C84 -> 0 | D13: ='C5C'!D84 -> 0 | E13: ='C5C'!E84 -> 0 | F13: ='C5C'!F84 -> 0 | G13: ='C5C'!G84 -> 0 | H13: ='C5C'!H84 -> 0 | I13: 0 | K13: ='C5C'!K84 -> 0
A14: ='Org structure'!A10 -> Vote 9 - Sport and Recreation | C14: ='C5C'!C95 -> 0 | D14: ='C5C'!D95 -> 0 | E14: ='C5C'!E95 -> 0 | F14: ='C5C'!F95 -> 0 | G14: ='C5C'!G95 -> 0 | H14: ='C5C'!H95 -> 0 | I14: 0 | K14: ='C5C'!K95 -> 0
A15: ='Org structure'!A11 -> Vote 10 - Environmental Protection | C15: ='C5C'!C106 -> 0 | D15: ='C5C'!D106 -> 0 | E15: ='C5C'!E106 -> 0 | F15: ='C5C'!F106 -> 0 | G15: ='C5C'!G106 -> 0 | H15: ='C5C'!H106 -> 0 | I15: 0 | K15: ='C5C'!K106 -> 0
A16: ='Org structure'!A12 -> Vote 11 - Solid Waste Management | C16: ='C5C'!C117 -> 0 | D16: ='C5C'!D117 -> 0 | E16: ='C5C'!E117 -> 0 | F16: ='C5C'!F117 -> 0 | G16: ='C5C'!G117 -> 0 | H16: ='C5C'!H117 -> 0 | I16: 0 | K16: ='C5C'!K117 -> 0
A17: ='Org structure'!A13 -> Vote 12 - Waste Water Management | C17: ='C5C'!C128 -> 0 | D17: ='C5C'!D128 -> 0 | E17: ='C5C'!E128 -> 0 | F17: ='C5C'!F128 -> 0 | G17: ='C5C'!G128 -> 0 | H17: ='C5C'!H128 -> 0 | I17: 0 | K17: ='C5C'!K128 -> 0
A18: ='Org structure'!A14 -> Vote 13 - Road Transport | C18: ='C5C'!C139 -> 0 | D18: ='C5C'!D139 -> 0 | E18: ='C5C'!E139 -> 0 | F18: ='C5C'!F139 -> 0 | G18: ='C5C'!G139 -> 0 | H18: ='C5C'!H139 -> 0 | I18: =G18-H18 -> 0 | J18: =IF(I18=0,"",I18/H18) ->  | K18: ='C5C'!K139 -> 0
A19: ='Org structure'!A15 -> Vote 14 - Water | C19: ='C5C'!C150 -> 0 | D19: ='C5C'!D150 -> 0 | E19: ='C5C'!E150 -> 0 | F19: ='C5C'!F150 -> 0 | G19: ='C5C'!G150 -> 0 | H19: ='C5C'!H150 -> 0 | I19: =G19-H19 -> 0 | J19: =IF(I19=0,"",I19/H19) ->  | K19: ='C5C'!K150 -> 0
A20: ='Org structure'!A16 -> Vote 15 - Electricity | C20: ='C5C'!C161 -> 0 | D20: ='C5C'!D161 -> 0 | E20: ='C5C'!E161 -> 0 | F20: ='C5C'!F161 -> 0 | G20: ='C5C'!G161 -> 0 | H20: ='C5C'!H161 -> 0 | I20: =G20-H20 -> 0 | J20: =IF(I20=0,"",I20/H20) ->  | K20: ='C5C'!K161 -> 0
A21: Total Capital Multi-year expenditure | B21: 4,7 | C21: =SUM(C6:C20) -> 0 | D21: =SUM(D6:D20) -> 0 | E21: 0 | F21: 0 | G21: 0 | H21: 0 | I21: 0 | J21: =IF(I21=0,"",I21/H21) ->  | K21: =SUM(K6:K20) -> 0
A23: Single Year expenditure appropriation | B23: 2
A24: ='Org structure'!A2 -> Vote 1 - Executive and Council | C24: ='C5C'!C176 -> 6327.92 | D24: ='C5C'!D176 -> 0 | E24: ='C5C'!E176 -> 0 | F24: ='C5C'!F176 -> 0 | G24: ='C5C'!G176 -> 0 | H24: ='C5C'!H176 -> 0 | I24: ='C5C'!I176 -> 0 | J24: =IF(I24=0,"",I24/H24) ->  | K24: ='C5C'!K176 -> 0
A25: ='Org structure'!A3 -> Vote 2 - Budget and Treasury | C25: ='C5C'!C187 -> 150507.43 | D25: ='C5C'!D187 -> 0 | E25: ='C5C'!E187 -> 0 | F25: ='C5C'!F187 -> 0 | G25: ='C5C'!G187 -> 0 | H25: ='C5C'!H187 -> 0 | I25: ='C5C'!I187 -> 0 | J25: =IF(I25=0,"",I25/H25) ->  | K25: ='C5C'!K187 -> 0
A26: ='Org structure'!A4 -> Vote 3 - Corporate Services | C26: ='C5C'!C198 -> 0 | D26: ='C5C'!D198 -> 0 | E26: ='C5C'!E198 -> 0 | F26: ='C5C'!F198 -> 0 | G26: ='C5C'!G198 -> 0 | H26: ='C5C'!H198 -> 0 | I26: ='C5C'!I198 -> 0 | K26: ='C5C'!K198 -> 0
A27: ='Org structure'!A5 -> Vote 4 - Planning and Development | C27: ='C5C'!C209 -> 0 | D27: ='C5C'!D209 -> 0 | E27: ='C5C'!E209 -> 0 | F27: ='C5C'!F209 -> 0 | G27: ='C5C'!G209 -> 0 | H27: ='C5C'!H209 -> 0 | I27: ='C5C'!I209 -> 0 | K27: ='C5C'!K209 -> 0
A28: ='Org structure'!A6 -> Vote 5 - Health | C28: ='C5C'!C220 -> 0 | D28: ='C5C'!D220 -> 0 | E28: ='C5C'!E220 -> 0 | F28: ='C5C'!F220 -> 0 | G28: ='C5C'!G220 -> 0 | H28: ='C5C'!H220 -> 0 | I28: ='C5C'!I220 -> 0 | K28: ='C5C'!K220 -> 0
A29: ='Org structure'!A7 -> Vote 6 - Community and Social Services | C29: ='C5C'!C231 -> 185627.94 | D29: ='C5C'!D231 -> 0 | E29: ='C5C'!E231 -> 0 | F29: ='C5C'!F231 -> 0 | G29: ='C5C'!G231 -> 166865.53 | H29: ='C5C'!H231 -> 0 | I29: ='C5C'!I231 -> 166865.53 | K29: ='C5C'!K231 -> 0
A30: ='Org structure'!A8 -> Vote 7 - Housing | C30: ='C5C'!C242 -> 0 | D30: ='C5C'!D242 -> 0 | E30: ='C5C'!E242 -> 0 | F30: ='C5C'!F242 -> 0 | G30: ='C5C'!G242 -> 0 | H30: ='C5C'!H242 -> 0 | I30: ='C5C'!I242 -> 0 | K30: ='C5C'!K242 -> 0
A31: ='Org structure'!A9 -> Vote 8 - Public Safety | C31: ='C5C'!C253 -> 0 | D31: ='C5C'!D253 -> 0 | E31: ='C5C'!E253 -> 0 | F31: ='C5C'!F253 -> 0 | G31: ='C5C'!G253 -> 0 | H31: ='C5C'!H253 -> 0 | I31: ='C5C'!I253 -> 0 | K31: ='C5C'!K253 -> 0
A32: ='Org structure'!A10 -> Vote 9 - Sport and Recreation | C32: ='C5C'!C264 -> 0 | D32: ='C5C'!D264 -> 0 | E32: ='C5C'!E264 -> 0 | F32: ='C5C'!F264 -> 0 | G32: ='C5C'!G264 -> 0 | H32: ='C5C'!H264 -> 0 | I32: ='C5C'!I264 -> 0 | K32: ='C5C'!K264 -> 0
A33: ='Org structure'!A11 -> Vote 10 - Environmental Protection | C33: ='C5C'!C275 -> 0 | D33: ='C5C'!D275 -> 0 | E33: ='C5C'!E275 -> 0 | F33: ='C5C'!F275 -> 0 | G33: ='C5C'!G275 -> 0 | H33: ='C5C'!H275 -> 0 | I33: ='C5C'!I275 -> 0 | K33: ='C5C'!K275 -> 0
A34: ='Org structure'!A12 -> Vote 11 - Solid Waste Management | C34: ='C5C'!C286 -> 0 | D34: ='C5C'!D286 -> 0 | E34: ='C5C'!E286 -> 0 | F34: ='C5C'!F286 -> 0 | G34: ='C5C'!G286 -> 0 | H34: ='C5C'!H286 -> 0 | I34: ='C5C'!I286 -> 0 | K34: ='C5C'!K286 -> 0
A35: ='Org structure'!A13 -> Vote 12 - Waste Water Management | C35: ='C5C'!C297 -> 2267533 | D35: ='C5C'!D297 -> 0 | E35: ='C5C'!E297 -> 0 | F35: ='C5C'!F297 -> 0 | G35: ='C5C'!G297 -> 0 | H35: ='C5C'!H297 -> 0 | I35: ='C5C'!I297 -> 0 | K35: ='C5C'!K297 -> 0
A36: ='Org structure'!A14 -> Vote 13 - Road Transport | C36: ='C5C'!C308 -> 7601819.03 | D36: ='C5C'!D308 -> 9574000 | E36: ='C5C'!E308 -> 9574000 | F36: ='C5C'!F308 -> 0 | G36: ='C5C'!G308 -> 0 | H36: ='C5C'!H308 -> 5000000 | I36: ='C5C'!I308 -> -5000000 | J36: -1 | K36: ='C5C'!K308 -> 9574000
A37: ='Org structure'!A15 -> Vote 14 - Water | C37: ='C5C'!C319 -> 13294.33 | D37: ='C5C'!D319 -> 0 | E37: ='C5C'!E319 -> 0 | F37: ='C5C'!F319 -> 0 | G37: ='C5C'!G319 -> 0 | H37: ='C5C'!H319 -> 0 | I37: ='C5C'!I319 -> 0 | K37: ='C5C'!K319 -> 0
A38: ='Org structure'!A16 -> Vote 15 - Electricity | C38: ='C5C'!C330 -> 0 | D38: ='C5C'!D330 -> 0 | E38: ='C5C'!E330 -> 0 | F38: ='C5C'!F330 -> 0 | G38: ='C5C'!G330 -> 0 | H38: ='C5C'!H330 -> 0 | I38: ='C5C'!I330 -> 0 | K38: ='C5C'!K330 -> 0
A39: Total Capital single-year expenditure | B39: 4 | C39: =SUM(C24:C38) -> 10225109.65 | D39: 9574000 | E39: 9574000 | F39: 0 | G39: 166865.53 | H39: 5000000 | I39: -4833134.47 | J39: -0.966626894 | K39: =SUM(K24:K38) -> 9574000
A40: Total Capital Expenditure | C40: =C39+C21 -> 10225109.65 | D40: 9574000 | E40: 9574000 | F40: 0 | G40: 166865.53 | H40: 5000000 | I40: -4833134.47 | J40: =IF(I40=0,"",I40/H40) -> -0.966626894 | K40: =K39+K21 -> 9574000
A42: Capital Expenditure - Standard Classification
A43: ='C2-FinPerf SC'!A29 -> Governance and administration | C43: =SUM(C44:C46) -> 156835.35 | D43: 0 | E43: 0 | F43: 0 | G43: 0 | H43: 0 | I43: =G43-H43 -> 0 | J43: =IF(I43=0,"",I43/H43) ->  | K43: =SUM(K44:K46) -> 0
A44: ='C2-FinPerf SC'!A30 -> Executive and council | C44: 6327.92 | I44: 0 | J44: =IF(I44=0,"",I44/H44) -> 
A45: ='C2-FinPerf SC'!A31 -> Budget and treasury office | C45: 150507.43 | I45: 0
A46: ='C2-FinPerf SC'!A32 -> Corporate services | I46: 0
A47: ='C2-FinPerf SC'!A33 -> Community and public safety | C47: =SUM(C48:C52) -> 185627.94 | D47: 0 | E47: 0 | F47: 0 | G47: 166865.53 | H47: 0 | I47: 166865.53 | K47: =SUM(K48:K52) -> 0
A48: ='C2-FinPerf SC'!A34 -> Community and social services | C48: 185627.94 | G48: 166865.53 | I48: 166865.53
A49: ='C2-FinPerf SC'!A35 -> Sport and recreation | I49: 0
A50: ='C2-FinPerf SC'!A36 -> Public safety | I50: 0
A51: ='C2-FinPerf SC'!A37 -> Housing | I51: 0
A52: ='C2-FinPerf SC'!A38 -> Health | I52: 0
A53: ='C2-FinPerf SC'!A39 -> Economic and environmental services | C53: =SUM(C54:C56) -> 7601819.03 | D53: 0 | E53: 0 | F53: 0 | G53: 0 | H53: 5000000 | I53: -5000000 | J53: -1 | K53: =SUM(K54:K56) -> 0
A54: ='C2-FinPerf SC'!A40 -> Planning and development | I54: 0
A55: ='C2-FinPerf SC'!A41 -> Road transport | C55: 7601819.03 | H55: 5000000 | I55: -5000000 | J55: -1
A56: ='C2-FinPerf SC'!A42 -> Environmental protection | I56: 0
A57: ='C2-FinPerf SC'!A43 -> Trading services | C57: =SUM(C58:C61) -> 2280827.33 | D57: 0 | E57: 0 | F57: 0 | G57: 0 | H57: 0 | I57: 0 | K57: =SUM(K58:K61) -> 0
A58: ='C2-FinPerf SC'!A44 -> Electricity | I58: 0
A59: ='C2-FinPerf SC'!A45 -> Water | C59: 13294.33 | I59: 0
A60: ='C2-FinPerf SC'!A46 -> Waste water management | C60: 2267533 | I60: 0
A61: ='C2-FinPerf SC'!A47 -> Waste management | I61: 0
A62: ='C2-FinPerf SC'!A48 -> Other | I62: 0
A63: Total Capital Expenditure - Standard Classification | B63: 3 | C63: =C43+C47+C53+C57+C62 -> 10225109.65 | D63: =D43+D47+D53+D57+D62 -> 0 | E63: 0 | F63: 0 | G63: 166865.53 | H63: 5000000 | I63: -4833134.47 | J63: -0.966626894 | K63: =K43+K47+K53+K57+K62 -> 0
A65: Funded by:
A66: National Government | C66: 9781712.99 | D66: 9574000 | E66: =D66 -> 9574000 | G66: =F66 -> 0 | H66: 5000000 | I66: =G66-H66 -> -5000000 | J66: =IF(I66=0,"",I66/H66) -> -1 | K66: =E66 -> 9574000
A67: Provincial Government | C67: 306924.84 | G67: 166865.53 | I67: 166865.53
A68: District Municipality | I68: 0
A69: Other transfers and grants | I69: 0
A70: Transfers recognised - capital | C70: =SUM(C66:C69) -> 10088637.83 | D70: 9574000 | E70: 9574000 | F70: 0 | G70: 166865.53 | H70: 5000000 | I70: -4833134.47 | J70: -0.966626894 | K70: =SUM(K66:K69) -> 9574000
A71: Public contributions & donations | B71: 5 | C71: 121296.9 | I71: 0
A72: Borrowing | B72: 6 | I72: 0
A73: Internally generated funds | C73: 15174.92 | I73: 0
A74: Total Capital Funding | C74: =SUM(C70:C73) -> 10225109.65 | D74: 9574000 | E74: 9574000 | F74: =SUM(F70:F73) -> 0 | G74: =SUM(G70:G73) -> 166865.53 | H74: =SUM(H70:H73) -> 5000000 | I74: -4833134.47 | J74: -0.966626894 | K74: 9574000
A75: =head27a -> References
A76: 1. Municipalities may choose to appropriate for capital expenditure for three years or for one year (if one year appropriation projected expenditure required for yr2 and yr3).
A77: 2. Include capital component of PPP unitary payment
A78: 3. Capital expenditure by standard classification must reconcile to the total of multi-year and single year appropriations
A79: 4. Include expenditure on investment property, intangible and biological assets
A80: 5. Must reconcile to Monthly Budget Statement Financial Performance (revenue and expenditure)
A81: 6. Include finance leases and PPP capital funding component of unitary payment - total borrowing/repayments to reconcile to changes in Table SA17
A86: check balance | C86: =C40-C74 -> 0 | D86: =D40-D74 -> 0 | E86: 0 | F86: 0 | G86: 0 | H86: 0 | K86: 0

Sheet C5C
A1: =muni& " - "&S71D& " - "&"A"& " - "&date -> NC074 Kareeberg - Table C5 Monthly Budget Statement - Capital Expenditure (municipal vote, standard classification and funding) - A - Mid-Year Assessment
A2: =Vdesc -> Vote Description | B2: =head27 -> Ref | C2: =Head1 -> 2011/12 | D2: =Head2 -> Budget Year 2012/13 | L2: =Head4 -> 
A3: R thousand | C3: =Head5 -> Audited Outcome | D3: =Head6 -> Original Budget | E3: =Head7 -> Adjusted Budget | F3: =Head38 -> Monthly actual | G3: =Head39 -> YearTD actual | H3: =Head40 -> YearTD budget | I3: =Head41 -> YTD variance | J3: =Head41 -> YTD variance | K3: =Head8 -> Full Year Forecast | L3: =Head12 -> Forecast 2010/11 | M3: =Head13 -> Forecast 2011/12 | N3: =Head14 -> Forecast 2012/13 | O3: =Head15 -> Forecast 2013/14 | P3: =Head16 -> Forecast 2014/15 | Q3: =Head17 -> Forecast 2015/16 | R3: =Head18 -> Forecast 2016/17 | S3: =Head19 -> Forecast 2017/18 | T3: =Head20 -> Forecast 2018/19 | U3: =Head21 -> Forecast 2019/20 | V3: =Head22 -> Forecast 2020/21 | W3: =Head23 -> Forecast 2021/22
J4: %
A5: Capital expenditure - Municipal Vote
A6: Expenditure of multi-year capital appropriation | B6: 1
A7: ='Org structure'!A2 -> Vote 1 - Executive and Council | C7: =SUM(C8:C17) -> 0 | D7: =SUM(D8:D17) -> 0 | E7: 0 | F7: 0 | G7: 0 | H7: 0 | I7: =G7-H7 -> 0 | J7: =IF(I7=0,"",I7/H7) ->  | K7: 0
A8: ='Org structure'!E3 -> 1.1 - Executive and Council | I8: 0
A9: ='Org structure'!E4 -> 0 | I9: 0
A10: ='Org structure'!E5 -> 0 | I10: 0
A11: ='Org structure'!E6 -> 0 | I11: 0
A12: ='Org structure'!E7 -> 0 | I12: 0
A13: ='Org structure'!E8 -> 0 | I13: 0
A14: ='Org structure'!E9 -> 0 | I14: 0
A15: ='Org structure'!E10 -> 0 | I15: 0
A16: ='Org structure'!E11 -> 0 | I16: 0
A17: ='Org structure'!E12 -> 0 | I17: 0
A18: ='Org structure'!A3 -> Vote 2 - Budget and Treasury | C18: =SUM(C19:C28) -> 0 | D18: =SUM(D19:D28) -> 0 | E18: 0 | F18: 0 | G18: 0 | H18: 0 | I18: 0 | K18: 0
A19: ='Org structure'!E14 -> 2.1 - Official Housing | I19: 0
A20: ='Org structure'!E15 -> 2.2 - Rates | I20: 0
A21: ='Org structure'!E16 -> 2.3 - Commonage | I21: 0
A22: ='Org structure'!E17 -> 2.4 - Municipal Buildings | I22: 0
A23: ='Org structure'!E18 -> 2.5 - Budget and Treasury Office | I23: 0
A24: ='Org structure'!E19 -> 2.6 - Airport | I24: 0
A25: ='Org structure'!E20 -> 2.7 - Abattoir | I25: 0
A26: ='Org structure'!E21 -> 0 | I26: 0
A27: ='Org structure'!E22 -> 0 | I27: 0
A28: ='Org structure'!E23 -> 0 | I28: 0
A29: ='Org structure'!A4 -> Vote 3 - Corporate Services | C29: =SUM(C30:C39) -> 0 | D29: 0 | E29: 0 | F29: 0 | G29: 0 | H29: 0 | I29: 0 | K29: 0
A30: ='Org structure'!E25 -> 3.1 - Corporate Services | I30: 0
A31: ='Org structure'!E26 -> 0 | I31: 0
A32: ='Org structure'!E27 -> 0 | I32: 0
A33: ='Org structure'!E28 -> 0 | I33: 0
A34: ='Org structure'!E29 -> 0 | I34: 0
A35: ='Org structure'!E30 -> 0 | I35: 0
A36: ='Org structure'!E31 -> 0 | I36: 0
A37: ='Org structure'!E32 -> 0 | I37: 0
A38: ='Org structure'!E33 -> 0 | I38: 0
A39: ='Org structure'!E34 -> 0 | I39: 0
A40: ='Org structure'!A5 -> Vote 4 - Planning and Development | C40: =SUM(C41:C50) -> 0 | D40: 0 | E40: 0 | F40: 0 | G40: 0 | H40: 0 | I40: 0 | K40: 0
A41: ='Org structure'!E36 -> 4.1 - [Name of sub-vote] | I41: 0
A42: ='Org structure'!E37 -> 0 | I42: 0
A43: ='Org structure'!E38 -> 0 | I43: 0
A44: ='Org structure'!E39 -> 0 | I44: 0
A45: ='Org structure'!E40 -> 0 | I45: 0
A46: ='Org structure'!E41 -> 0 | I46: 0
A47: ='Org structure'!E42 -> 0 | I47: 0
A48: ='Org structure'!E43 -> 0 | I48: 0
A49: ='Org structure'!E44 -> 0 | I49: 0
A50: ='Org structure'!E45 -> 0 | I50: 0
A51: ='Org structure'!A6 -> Vote 5 - Health | C51: =SUM(C52:C61) -> 0 | D51: =SUM(D52:D61) -> 0 | E51: 0 | F51: 0 | G51: 0 | H51: 0 | I51: 0 | K51: 0
A52: ='Org structure'!E47 -> 5.1 - Health | I52: 0
A53: ='Org structure'!E48 -> 5.2 - Clinics | I53: 0
A54: ='Org structure'!E49 -> 0 | I54: 0
A55: ='Org structure'!E50 -> 0 | I55: 0
A56: ='Org structure'!E51 -> 0 | I56: 0
A57: ='Org structure'!E52 -> 0 | I57: 0
A58: ='Org structure'!E53 -> 0 | I58: 0
A59: ='Org structure'!E54 -> 0 | I59: 0
A60: ='Org structure'!E55 -> 0 | I60: 0
A61: ='Org structure'!E56 -> 0 | I61: 0
A62: ='Org structure'!A6 -> Vote 5 - Health | C62: =SUM(C63:C72) -> 0 | D62: =SUM(D63:D72) -> 0 | E62: 0 | F62: 0 | G62: 0 | H62: 0 | I62: 0 | K62: 0
A63: ='Org structure'!E58 -> 6.1 - Cemetry | I63: 0
A64: ='Org structure'!E59 -> 6.2 - Library | I64: 0
A65: ='Org structure'!E60 -> 6.3 - Museum | I65: 0
A66: ='Org structure'!E61 -> 0 | I66: 0
A67: ='Org structure'!E62 -> 0 | I67: 0
A68: ='Org structure'!E63 -> 0 | I68: 0
A69: ='Org structure'!E64 -> 0 | I69: 0
A70: ='Org structure'!E65 -> 0 | I70: 0
A71: ='Org structure'!E66 -> 0 | I71: =G71-H71 -> 0 | J71: =IF(I71=0,"",I71/H71) -> 
A72: ='Org structure'!E67 -> 0 | I72: 0
A73: ='Org structure'!A8 -> Vote 7 - Housing | C73: =SUM(C74:C83) -> 0 | D73: 0 | E73: 0 | F73: 0 | G73: 0 | H73: 0 | I73: 0 | K73: 0
A74: ='Org structure'!E69 -> 7.1 - [Name of sub-vote] | I74: 0
A75: ='Org structure'!E70 -> 0 | I75: 0
A76: ='Org structure'!E71 -> 0 | I76: 0
A77: ='Org structure'!E72 -> 0 | I77: 0
A78: ='Org structure'!E73 -> 0 | I78: 0
A79: ='Org structure'!E74 -> 0 | I79: 0
A80: ='Org structure'!E75 -> 0 | I80: 0
A81: ='Org structure'!E76 -> 0 | I81: 0
A82: ='Org structure'!E77 -> 0 | I82: 0
A83: ='Org structure'!E78 -> 0 | I83: 0
A84: ='Org structure'!A9 -> Vote 8 - Public Safety | C84: =SUM(C85:C94) -> 0 | D84: =SUM(D85:D94) -> 0 | E84: 0 | F84: 0 | G84: 0 | H84: 0 | I84: 0 | K84: 0
A85: ='Org structure'!E80 -> 8.1 - Fire Service | I85: 0
A86: ='Org structure'!E81 -> 8.2 - Civil Defence | I86: 0
A87: ='Org structure'!E82 -> 8.3 - Pound | I87: 0
A88: ='Org structure'!E83 -> 0 | I88: 0
A89: ='Org structure'!E84 -> 0 | I89: 0
A90: ='Org structure'!E85 -> 0 | I90: 0
A91: ='Org structure'!E86 -> 0 | I91: 0
A92: ='Org structure'!E87 -> 0 | I92: 0
A93: ='Org structure'!E88 -> 0 | I93: 0
A94: ='Org structure'!E89 -> 0 | I94: 0
A95: ='Org structure'!A10 -> Vote 9 - Sport and Recreation | C95: =SUM(C96:C105) -> 0 | D95: =SUM(D96:D105) -> 0 | E95: 0 | F95: 0 | G95: 0 | H95: 0 | I95: 0 | K95: 0
A96: ='Org structure'!E91 -> 9.1 - Nature Reserve | I96: 0
A97: ='Org structure'!E92 -> 9.2 - Parks and Gardens | I97: 0
A98: ='Org structure'!E93 -> 9.3 - Swimming Pool | I98: 0
A99: ='Org structure'!E94 -> 9.4 - Caravan Park | I99: 0
A100: ='Org structure'!E95 -> 0 | I100: 0
A101: ='Org structure'!E96 -> 0 | I101: 0
A102: ='Org structure'!E97 -> 0 | I102: 0
A103: ='Org structure'!E98 -> 0 | I103: 0
A104: ='Org structure'!E99 -> 0 | I104: 0
A105: ='Org structure'!E100 -> 0 | I105: 0
A106: ='Org structure'!A11 -> Vote 10 - Environmental Protection | C106: =SUM(C107:C116) -> 0 | D106: =SUM(D107:D116) -> 0 | E106: 0 | F106: 0 | G106: 0 | H106: 0 | I106: 0 | K106: 0
A107: ='Org structure'!E102 -> 10.1 - [Name of sub-vote] | I107: 0
A108: ='Org structure'!E103 -> 0 | I108: 0
A109: ='Org structure'!E104 -> 0 | I109: 0
A110: ='Org structure'!E105 -> 0 | I110: 0
A111: ='Org structure'!E106 -> 0 | I111: 0
A112: ='Org structure'!E107 -> 0 | I112: 0
A113: ='Org structure'!E108 -> 0 | I113: 0
A114: ='Org structure'!E109 -> 0 | I114: 0
A115: ='Org structure'!E110 -> 0 | I115: 0
A116: ='Org structure'!E111 -> 0 | I116: 0
A117: ='Org structure'!A12 -> Vote 11 - Solid Waste Management | C117: =SUM(C118:C127) -> 0 | D117: =SUM(D118:D127) -> 0 | E117: 0 | F117: 0 | G117: 0 | H117: 0 | I117: 0 | K117: 0
A118: ='Org structure'!E113 -> 11.1 - Refuse removal | I118: 0
A119: ='Org structure'!E114 -> 0 | I119: 0
A120: ='Org structure'!E115 -> 0 | I120: 0
A121: ='Org structure'!E116 -> 0 | I121: 0
A122: ='Org structure'!E117 -> 0 | I122: 0
A123: ='Org structure'!E118 -> 0 | I123: 0
A124: ='Org structure'!E119 -> 0 | I124: 0
A125: ='Org structure'!E120 -> 0 | I125: 0
A126: ='Org structure'!E121 -> 0 | I126: 0
A127: ='Org structure'!E122 -> 0 | I127: 0
A128: ='Org structure'!A13 -> Vote 12 - Waste Water Management | C128: =SUM(C129:C138) -> 0 | D128: =SUM(D129:D138) -> 0 | E128: 0 | F128: 0 | G128: 0 | H128: 0 | I128: 0 | K128: 0
A129: ='Org structure'!E124 -> 12.1 - Sewerage | I129: 0
A130: ='Org structure'!E125 -> 0 | I130: 0
A131: ='Org structure'!E126 -> 0 | I131: 0
A132: ='Org structure'!E127 -> 0 | I132: 0
A133: ='Org structure'!E128 -> 0 | I133: 0
A134: ='Org structure'!E129 -> 0 | I134: 0
A135: ='Org structure'!E130 -> 0 | I135: =G135-H135 -> 0 | J135: =IF(I135=0,"",I135/H135) -> 
A136: ='Org structure'!E131 -> 0 | I136: 0
A137: ='Org structure'!E132 -> 0 | I137: 0
A138: ='Org structure'!E133 -> 0 | I138: 0
A139: ='Org structure'!A14 -> Vote 13 - Road Transport | C139: =SUM(C140:C149) -> 0 | D139: =SUM(D140:D149) -> 0 | E139: 0 | F139: 0 | G139: 0 | H139: 0 | I139: 0 | K139: 0
A140: ='Org structure'!E135 -> 13.1 - Main Roads | I140: 0
A141: ='Org structure'!E136 -> 13.2 - Public Works | I141: 0
A142: ='Org structure'!E137 -> 13.3 - Streets and Pavements | I142: 0
A143: ='Org structure'!E138 -> 13.4 - Traffic and licencing | I143: 0
A144: ='Org structure'!E139 -> 0 | I144: 0
A145: ='Org structure'!E140 -> 0 | I145: 0
A146: ='Org structure'!E141 -> 0 | I146: 0
A147: ='Org structure'!E142 -> 0 | I147: 0
A148: ='Org structure'!E143 -> 0 | I148: 0
A149: ='Org structure'!E144 -> 0 | I149: 0
A150: ='Org structure'!A15 -> Vote 14 - Water | C150: =SUM(C151:C160) -> 0 | D150: =SUM(D151:D160) -> 0 | E150: 0 | F150: 0 | G150: 0 | H150: 0 | I150: 0 | K150: 0
A151: ='Org structure'!E146 -> 14.1 - Water Distribution | I151: 0
A152: ='Org structure'!E147 -> 14.2 - Water Storage | I152: 0
A153: ='Org structure'!E148 -> 0 | I153: 0
A154: ='Org structure'!E149 -> 0 | I154: 0
A155: ='Org structure'!E150 -> 0 | I155: 0
A156: ='Org structure'!E151 -> 0 | I156: 0
A157: ='Org structure'!E152 -> 0 | I157: 0
A158: ='Org structure'!E153 -> 0 | I158: 0
A159: ='Org structure'!E154 -> 0 | I159: 0
A160: ='Org structure'!E155 -> 0 | I160: 0
A161: ='Org structure'!A16 -> Vote 15 - Electricity | C161: =SUM(C162:C171) -> 0 | D161: =SUM(D162:D171) -> 0 | E161: 0 | F161: 0 | G161: 0 | H161: 0 | I161: 0 | K161: 0
A162: ='Org structure'!E157 -> 15.1 - Electricity Administration | I162: 0
A163: ='Org structure'!E158 -> 15.2 - Electricity Distribution | I163: 0
A164: ='Org structure'!E159 -> 15.3 - Electricity Generation | I164: 0
A165: ='Org structure'!E160 -> 0 | I165: 0
A166: ='Org structure'!E161 -> 0 | I166: 0
A167: ='Org structure'!E162 -> 0 | I167: 0
A168: ='Org structure'!E163 -> 0 | I168: 0
A169: ='Org structure'!E164 -> 0 | I169: 0
A170: ='Org structure'!E165 -> 0 | I170: 0
A171: ='Org structure'!E166 -> 0 | I171: 0 | L171: =SUM(L79:L82) -> 0 | M171: 0 | N171: 0 | O171: 0 | P171: 0 | Q171: 0 | R171: 0 | S171: 0 | T171: 0 | U171: 0 | V171: 0 | W171: 0
A172: Total multi-year capital expenditure | C172: =C7+C18+C29+C40+C51+C62+C73+C84+C95+C106+C117+C128+C139+C150+C161 -> 0 | D172: =D7+D18+D29+D40+D51+D62+D73+D84+D95+D106+D117+D128+D139+D150+D161 -> 0 | E172: 0 | F172: 0 | G172: 0 | H172: 0 | I172: 0 | K172: 0
I173: 0
A174: Capital expenditure - Municipal Vote
A175: Expenditue of single-year capital appropriation | B175: 1 | I175: 0
A176: ='Org structure'!A2 -> Vote 1 - Executive and Council | C176: =SUM(C177:C186) -> 6327.92 | D176: =SUM(D177:D186) -> 0 | E176: 0 | F176: 0 | G176: 0 | H176: 0 | I176: 0 | K176: 0
A177: ='Org structure'!E3 -> 1.1 - Executive and Council | C177: 6327.92 | I177: 0
A178: ='Org structure'!E4 -> 0 | I178: 0
A179: ='Org structure'!E5 -> 0 | I179: 0
A180: ='Org structure'!E6 -> 0 | I180: 0
A181: ='Org structure'!E7 -> 0 | I181: 0
A182: ='Org structure'!E8 -> 0 | I182: 0
A183: ='Org structure'!E9 -> 0 | I183: 0
A184: ='Org structure'!E10 -> 0 | I184: 0
A185: ='Org structure'!E11 -> 0 | I185: 0
A186: ='Org structure'!E12 -> 0 | I186: 0
A187: ='Org structure'!A3 -> Vote 2 - Budget and Treasury | C187: =SUM(C188:C197) -> 150507.43 | D187: =SUM(D188:D197) -> 0 | E187: =SUM(E188:E197) -> 0 | F187: 0 | G187: 0 | H187: 0 | I187: 0 | K187: 0
A188: ='Org structure'!E14 -> 2.1 - Official Housing | I188: 0
A189: ='Org structure'!E15 -> 2.2 - Rates | I189: 0
A190: ='Org structure'!E16 -> 2.3 - Commonage | I190: 0
A191: ='Org structure'!E17 -> 2.4 - Municipal Buildings | C191: 121296.9 | I191: 0
A192: ='Org structure'!E18 -> 2.5 - Budget and Treasury Office | C192: 29210.53 | I192: 0
A193: ='Org structure'!E19 -> 2.6 - Airport | I193: 0
A194: ='Org structure'!E20 -> 2.7 - Abattoir | I194: 0
A195: ='Org structure'!E21 -> 0 | I195: 0
A196: ='Org structure'!E22 -> 0 | I196: 0
A197: ='Org structure'!E23 -> 0 | I197: 0
A198: ='Org structure'!A4 -> Vote 3 - Corporate Services | C198: =SUM(C199:C208) -> 0 | D198: 0 | E198: 0 | F198: 0 | G198: 0 | H198: 0 | I198: 0 | K198: 0
A199: ='Org structure'!E25 -> 3.1 - Corporate Services | I199: 0
A200: ='Org structure'!E26 -> 0 | I200: =G200-H200 -> 0 | J200: =IF(I200=0,"",I200/H200) -> 
... 145 more rows

Sheet C6-FinPos
A1: =muni& " - "&S71E& " - "&date -> NC074 Kareeberg - Table C6 Monthly Budget Statement - Financial Position - Mid-Year Assessment
A2: =desc -> Description | B2: =head27 -> Ref | C2: =Head1 -> 2011/12 | D2: =Head2 -> Budget Year 2012/13
C3: =Head5 -> Audited Outcome | D3: =Head6 -> Original Budget | E3: =Head7 -> Adjusted Budget | F3: =Head39 -> YearTD actual | G3: =Head8 -> Full Year Forecast
A4: R thousands | B4: 1
A5: ASSETS
A6: Current assets
A7: Cash | C7: 21602265 | D7: 2032153 | E7: =D7 -> 2032153 | F7: 740485.87 | G7: =E7 -> 2032153
A8: Call investment deposits | D8: 21134211 | E8: =D8 -> 21134211 | F8: 32091211.97 | G8: =E8 -> 21134211
A9: Consumer debtors | C9: =2149057+1350 -> 2150407 | D9: 3949501 | E9: 3949501 | F9: 2463714.99 | G9: 3949501
A10: Other debtors | C10: =14216 -> 14216 | D10: 10634 | E10: 10634 | F10: 38353.45 | G10: 10634
A11: Current portion of long-term receivables | C11: 9045 | D11: 6633 | E11: 6633 | F11: 4567.55 | G11: 6633
A12: Inventory
A13: Total current assets | C13: =SUM(C7:C12) -> 23775933 | D13: =SUM(D7:D12) -> 27133132 | E13: =SUM(E7:E12) -> 27133132 | F13: =SUM(F7:F12) -> 35338333.83 | G13: =SUM(G7:G12) -> 27133132
A15: Non current assets
A16: Long-term receivables | C16: 57003 | D16: 47964 | E16: =D16 -> 47964 | F16: 57003.05 | G16: =E16 -> 47964
A17: Investments
A18: Investment property | C18: 10214982 | D18: 10227346 | E18: =D18 -> 10227346 | F18: 10214982.43 | G18: =E18 -> 10227346
A19: Investments in Associate
A20: Property, plant and equipment | C20: =88863923+1448954 -> 90312877 | D20: 92248706 | E20: =D20 -> 92248706 | F20: 90415092.08 | G20: =E20 -> 92248706
A21: Agricultural
A22: Biological assets
A23: Intangible assets | C23: 92452 | D23: 155349 | E23: =D23 -> 155349 | F23: 92451.9 | G23: =E23 -> 155349
A24: Other non-current assets
A25: Total non current assets | C25: =SUM(C16:C24) -> 100677314 | D25: =SUM(D16:D24) -> 102679365 | E25: =SUM(E16:E24) -> 102679365 | F25: =SUM(F16:F24) -> 100779529.5 | G25: =SUM(G16:G24) -> 102679365
A26: TOTAL ASSETS | C26: =C13+C25 -> 124453247 | D26: =D13+D25 -> 129812497 | E26: =E13+E25 -> 129812497 | F26: =F13+F25 -> 136117863.3 | G26: =G13+G25 -> 129812497
A28: LIABILITIES
A29: Current liabilities
A30: Bank overdraft
A31: Borrowing
A32: Consumer deposits | C32: 268759 | D32: 302389 | E32: =D32 -> 302389 | F32: 272184 | G32: =E32 -> 302389
A33: Trade and other payables | C33: =877202+2068028+166413 -> 3111643 | D33: 1183270 | E33: 1183270 | F33: 11890357.28 | G33: 1183270
A34: Provisions | C34: 1347518 | F34: 907205.58
A35: Total current liabilities | C35: =SUM(C30:C34) -> 4727920 | D35: =SUM(D30:D34) -> 1485659 | E35: =SUM(E30:E34) -> 1485659 | F35: =SUM(F30:F34) -> 13069746.86 | G35: =SUM(G30:G34) -> 1485659
A37: Non current liabilities
A38: Borrowing
A39: Provisions | C39: 12904491 | D39: 8284407 | E39: =D39 -> 8284407 | F39: 12904490.81 | G39: =E39 -> 8284407
A40: Total non current liabilities | C40: =SUM(C38:C39) -> 12904491 | D40: =SUM(D38:D39) -> 8284407 | E40: =SUM(E38:E39) -> 8284407 | F40: =SUM(F38:F39) -> 12904490.81 | G40: =SUM(G38:G39) -> 8284407
A41: TOTAL LIABILITIES | C41: =C35+C40 -> 17632411 | D41: =D35+D40 -> 9770066 | E41: =E35+E40 -> 9770066 | F41: =F35+F40 -> 25974237.67 | G41: =G35+G40 -> 9770066
A43: NET ASSETS | B43: 2 | C43: =C26-C41 -> 106820836 | D43: =D26-D41 -> 120042431 | E43: =E26-E41 -> 120042431 | F43: =F26-F41 -> 110143625.6 | G43: =G26-G41 -> 120042431
A45: COMMUNITY WEALTH/EQUITY
A46: Accumulated Surplus/(Deficit) | C46: 95297681 | D46: 108520599 | E46: =D46 -> 108520599 | F46: 98619881.15 | G46: =E46 -> 108520599
A47: Reserves | C47: =11347812+120895+54450 -> 11523157 | D47: 11521832 | E47: 11521832 | F47: 11523744.47 | G47: 11521832
A48: TOTAL COMMUNITY WEALTH/EQUITY | B48: 2 | C48: =SUM(C46:C47) -> 106820838 | D48: =SUM(D46:D47) -> 120042431 | E48: =SUM(E46:E47) -> 120042431 | F48: =SUM(F46:F47) -> 110143625.6 | G48: =SUM(G46:G47) -> 120042431
A49: =head27a -> References
A50: 1. Material variances to be explained in Table SC1
A51: 2. Net assets must balance with Total Community Wealth/Equity
A54: check balance | C54: =C43-C48 -> -2 | D54: =D43-D48 -> 0 | E54: =E43-E48 -> 0 | F54: =F43-F48 -> 0 | G54: =G43-G48 -> 0

Sheet C7-CFlow
A1: =muni& " - "&S71F& " - "&date -> NC074 Kareeberg - Table C7 Monthly Budget Statement - Cash Flow - Mid-Year Assessment
A2: =desc -> Description | B2: =head27 -> Ref | C2: =Head1 -> 2011/12 | D2: =Head2 -> Budget Year 2012/13
C3: =Head5 -> Audited Outcome | D3: =Head6 -> Original Budget | E3: =Head7 -> Adjusted Budget | F3: =Head38 -> Monthly actual | G3: =Head39 -> YearTD actual | H3: =Head40 -> YearTD budget | I3: =Head41 -> YTD variance | J3: =Head41 -> YTD variance | K3: =Head8 -> Full Year Forecast
A4: R thousands | B4: 1 | J4: %
A5: CASH FLOW FROM OPERATING ACTIVITIES
A6: Receipts
A7: Ratepayers and other | C7: 24722146 | D7: 21101643 | E7: =D7 -> 21101643 | F7: 6969263.83 | G7: 19278745.55 | H7: 8377199.893 | I7: =G7-H7 -> 10901545.66 | J7: =IF(I7=0,"",I7/H7) -> 1.301335267 | K7: =D7 -> 21101643
A8: Government - operating | C8: 18650665 | D8: 15906000 | E8: =D8 -> 15906000 | F8: 3000000 | G8: 9932500 | H8: 6033333 | I8: =G8-H8 -> 3899167 | J8: =IF(I8=0,"",I8/H8) -> 0.6462708092 | K8: =E8 -> 15906000
A9: Government - capital | C9: 10088203 | D9: 9574000 | E9: 9574000 | H9: 5000000 | I9: =G9-H9 -> -5000000 | J9: -1 | K9: =E9 -> 9574000
A10: Interest | C10: 928861 | D10: 1300300 | E10: =D10 -> 1300300 | F10: 50804.46 | G10: 286060.7 | H10: 55823.07624 | I10: =G10-H10 -> 230237.6238 | J10: 4.124416626 | K10: 1300300
A11: Dividends | I11: =G11-H11 -> 0
A12: Payments
A13: Suppliers and employees | C13: -35453386 | D13: -30104609 | E13: =D13 -> -30104609 | F13: -3683195.35 | G13: -18173561.01 | H13: -14849984.34 | I13: =H13-G13 -> 3323576.671 | J13: -0.2238101129 | K13: =E13 -> -30104609
A14: Finance charges | C14: -826755 | E14: 0 | H14: 0 | I14: =H14-G14 -> 0 | K14: 0
A15: Transfers and Grants | C15: -7436334 | D15: -7168903 | E15: -7168903 | G15: 0 | H15: -4779268.667 | I15: =H15-G15 -> -4779268.667 | J15: 1 | K15: -7168903
A16: NET CASH FROM/(USED) OPERATING ACTIVITIES | C16: =SUM(C7:C11)+SUM(C13:C15) -> 10673400 | D16: 10608431 | E16: 10608431 | F16: 6336872.94 | G16: 11323745.24 | H16: -162897.0357 | I16: =SUM(I7:I11)-SUM(I13:I15) -> 11486642.28 | J16: -70.51474097 | K16: =SUM(K7:K11)+SUM(K13:K15) -> 10608431
A18: CASH FLOWS FROM INVESTING ACTIVITIES
A19: Receipts
A20: Proceeds on disposal of PPE | F20: 0 | G20: 64650 | I20: =G20-H20 -> 64650 | J20: =IF(I20=0,"",I20/H20) -> 
A21: Decrease (Increase) in non-current debtors | C21: 8692 | D21: 8032 | E21: =D21 -> 8032 | F21: 752.46 | G21: 4477.45 | H21: 4016 | I21: =G21-H21 -> 461.45 | J21: 0.1149028884 | K21: =E21 -> 8032
A22: Decrease (increase) other non-current receivables | I22: =G22-H22 -> 0
A23: Decrease (increase) in non-current investments | I23: =G23-H23 -> 0
A24: Payments
A25: Capital assets | C25: =-10246520-5039 -> -10251559 | D25: -9574000 | E25: =D25 -> -9574000 | F25: 0 | G25: -166865.53 | H25: -5000000 | I25: =H25-G25 -> -4833134.47 | J25: 0.966626894 | K25: =E25 -> -9574000
A26: NET CASH FROM/(USED) INVESTING ACTIVITIES | C26: =SUM(C20:C23)+C25 -> -10242867 | D26: =SUM(D20:D23)+D25 -> -9565968 | E26: -9565968 | F26: 752.46 | G26: -97738.08 | H26: -4995984 | I26: =H26-G26 -> -4898245.92 | J26: 0.9804366707 | K26: =SUM(K20:K23)+K25 -> -9565968
A28: CASH FLOWS FROM FINANCING ACTIVITIES
A29: Receipts
A30: Short term loans | I30: =G30-H30 -> 0 | J30: =IF(I30=0,"",I30/H30) -> 
A31: Borrowing long term/refinancing | I31: =G31-H31 -> 0
A32: Increase (decrease) in consumer deposits | C32: 24370 | D32: 29000 | E32: =D32 -> 29000 | F32: 1405 | G32: 3425 | H32: 14500 | I32: =G32-H32 -> -11075 | J32: -0.7637931034 | K32: =E32 -> 29000
A33: Payments
A34: Repayment of borrowing | I34: =H34-G34 -> 0
A35: NET CASH FROM/(USED) FINANCING ACTIVITIES | C35: =SUM(C30:C32)+C34 -> 24370 | D35: 29000 | E35: 29000 | F35: 1405 | G35: 3425 | H35: 14500 | I35: =H35-G35 -> 11075 | J35: 0.7637931034 | K35: =SUM(K30:K32)+K34 -> 29000
A37: NET INCREASE/ (DECREASE) IN CASH HELD | C37: =C16+C26+C35 -> 454903 | D37: 1071463 | E37: 1071463 | F37: 6339030.4 | G37: 11229432.16 | H37: -5144381.036 | K37: =K16+K26+K35 -> 1071463
A38: Cash/cash equivalents at beginning: | C38: 21147362 | D38: =C39 -> 21602265 | E38: =C39 -> 21602265 | G38: =E38 -> 21602265 | H38: =D38 -> 21602265 | K38: =G38 -> 21602265
A39: Cash/cash equivalents at month/year end: | C39: =C37+C38 -> 21602265 | D39: =D37+D38 -> 22673728 | E39: =E37+E38 -> 22673728 | G39: =G37+G38 -> 32831697.16 | H39: =H37+H38 -> 16457883.96 | K39: =K37+K38 -> 22673728
A40: References
A41: 1. Material variances to be explained in Table SC1

Sheet SC1
A1: =muni& " - "&S71G& " - "&date -> NC074 Kareeberg - Supporting Table SC1 Material variance explanations - Mid-Year Assessment
A2: =head27 -> Ref | B2: =desc -> Description
C3: Variance | D3: Reasons for material deviations | E3: Remedial or corrective steps/remarks
B4: R thousands
A5: 1 | B5: ='C4-FinPerf RE'!A5 -> Revenue By Source
B6: Service charges - electricity revenue | C6: 329369 | D6: Electricity usage has been higher due to extreme temperatures. Expenditure for bulk purchases has risen as well. | E6: Note is taken of the consumption.
B7: Rental of facilities and equipment | C7: 55225.66809 | D7: Rental of facilities are invoiced during the year | E7: No remedial steps are necessary.
B8: Interest earned - external investments | C8: 178902.07 | D8: The bulk of interest revenue was budgeted for in June 2013. | E8: No remedial steps are necessary.
B10: Licences and permits | C10: 799.4263862 | D10: No real pattern of purchases of licences and permits can be determined, thus this revenue source is budgeted for conservatively. | E10: No remedial steps are necessary.
B11: Agency services | C11: 19402.04018 | D11: No real pattern of renewal of vehicle licenses can be determined, thus this revenue source is budgeted for conservatively. | E11: No remedial steps are necessary.
B12: Transfers recognised - operational | C12: -2969666.667 | D12: All transfers are only accounted for in June 2013, only equitable share is recognised at this stage. | E12: No remedial steps are necessary. | J12: °C
B13: Other revenue | C13: 473444.0088 | D13: This is VAT income from MIG expenditure that was only budgeted for in June 2013. | E13: No remedial steps are necessary.
B14: Transfers recognised - capital | C14: -5000000 | D14: All transfers are only accounted for in June 2013, only equitable share is recognised at this stage. | E14: No remedial steps are necessary.
A15: 2 | B15: ='C4-FinPerf RE'!A25 -> Expenditure By Type
B16: Employee related costs | C16: 756537.5 | D16: Implementation of the Task evaluations will impact on the budget. | E16: Expenditure is monitored closely.
B17: Remuneration of councillors | C17: 120784.11 | E17: Expenditure is monitored closely.
B18: Bulk purchases | C18: 702094.85 | D18: Electricity usage has been higher due to extreme temperatures. Revenue for electricity has risen as well. | E18: Expenditure is monitored closely.
B19: Contracted services | C19: -88513.77814 | D19: Repairs and maintenance is not carried out as budgeted for due to a negative cash flow | E19: Expenditure is monitored closely.
B21: Transfers and grants | C21: 1801682.333 | D21: Equitable share is accounted for quarterly | E21: No remedial steps are necessary.
B22: Other expenditure | C22: -2042655.47 | D22: Other expenditure includes operational grant expenditure which will be accounted for in May-June 2013. | E22: No remedial steps are necessary.
A23: 3 | B23: =RIGHT('C5-Capex'!A40,19) -> Capital Expenditure
B24: Upgrading of roads | C24: -5000000 | D24: Expence on the project amounts to R 1 817 713 to date. Accounting for MIG will be done in June 2013. Also see table SC 7 | E24: Expenditure is monitored closely. | H24: 1817713.47
A26: 4 | B26: Financial Position
A31: 5 | B31: Cash Flow
A36: 6 | B36: Measureable performance
A41: 7 | B41: Municipal Entities
A47: =head27a -> References
A48: 1. Revenue for each source, vote and standard classification
A49: 2. Expenditure for each type, vote and standard classification
A50: 3. Capital expenditure for each vote and standard classification
A51: 4. Explain any material variances between the annual budget and the expected financial position based on current trends
A52: 5. Cash receipts by source and cash payments by type where not explained under revenue and expenditure
A53: 6. For Sept, Dec, Mar and Jun statements explain any material variances in achievement of measurable performance objectives

Sheet SC2
A1: =muni& " - "&S71H& " - "&Head57 -> NC074 Kareeberg - Supporting Table SC2 Monthly Budget Statement - performance indicators - Mid-Year Assessment
A2: Description of financial indicator | B2: Basis of calculation | C2: =head27 -> Ref | D2: =Head1 -> 2011/12 | E2: =Head2 -> Budget Year 2012/13
D3: =Head5 -> Audited Outcome | E3: =Head6 -> Original Budget | F3: =Head7 -> Adjusted Budget | G3: =Head39 -> YearTD actual | H3: =Head8 -> Full Year Forecast
A5: Borrowing Management
A7: Capital Charges to Operating Expenditure | B7: Interest & principal paid/Operating Expenditure | D7: =IF(ISERROR((D42-D43)/D45),0,((D42-D43)/D45)) -> 0.01912966893 | E7: =IF(ISERROR((E42+E44)/E45),0,((E42+E44)/E45)) -> 0.08667099285 | F7: =IF(ISERROR((F42+F44)/F45),0,((F42+F44)/F45)) -> 0.08667099285 | G7: =IF(ISERROR((G42+G44)/G45),0,((G42+G44)/G45)) -> 0 | H7: =IF(ISERROR((H42+H44)/H45),0,((H42+H44)/H45)) -> 0.05608331803
A8: Borrowed funding of 'own' capital expenditure | B8: Borrowings/Capital expenditure excl. transfers and grants | D8: =IF(ISERROR(D47/D46),0,(D47/D46)) -> 0 | E8: =IF(ISERROR(E47/E46),0,(E47/E46)) -> 0 | F8: =IF(ISERROR(F47/F46),0,(F47/F46)) -> 0 | G8: =IF(ISERROR(G47/G46),0,(G47/G46)) -> 0 | H8: =IF(ISERROR(H47/H46),0,(H47/H46)) -> 0
A9: Safety of Capital
A10: Debt to Equity | B10: Loans, Accounts Payable, Overdraft & Tax Provision/ Funds & Reserves | D10: =IF(ISERROR(D48/D49),0,(D48/D49)) -> 0.02912955055 | E10: =IF(ISERROR(E48/E49),0,(E48/E49)) -> 0.009857097946 | F10: =IF(ISERROR(F48/F49),0,(F48/F49)) -> 0.009857097946 | G10: =IF(ISERROR(G48/G49),0,(G48/G49)) -> 0.1079532039 | H10: =IF(ISERROR(H48/H49),0,(H48/H49)) -> 0.009857097946
A11: Gearing | B11: Long Term Borrowing/ Funds & Reserves | D11: =IF(ISERROR(D51/D50),0,(D51/D50)) -> 0 | E11: =IF(ISERROR(E51/E50),0,(E51/E50)) -> 0 | F11: =IF(ISERROR(F51/F50),0,(F51/F50)) -> 0 | G11: =IF(ISERROR(G51/G50),0,(G51/G50)) -> 0 | H11: =IF(ISERROR(H51/H50),0,(H51/H50)) -> 0
A12: Liquidity
A13: Current Ratio | B13: Current assets/current liabilities | C13: 1 | D13: =IF(ISERROR(D52/D53),0,(D52/D53)) -> 5.028835725 | E13: =IF(ISERROR(E52/E53),0,(E52/E53)) -> 18.26336461 | F13: =IF(ISERROR(F52/F53),0,(F52/F53)) -> 18.26336461 | G13: =IF(ISERROR(G52/G53),0,(G52/G53)) -> 2.703826953 | H13: =IF(ISERROR(H52/H53),0,(H52/H53)) -> 18.26336461
A14: Liquidity Ratio | B14: Monetary Assets/Current Liabilities | D14: =IF(ISERROR(D54/D53),0,(D54/D53)) -> 4.569084291 | E14: =IF(ISERROR(E54/E53),0,(E54/E53)) -> 15.59332525 | F14: =IF(ISERROR(F54/F53),0,(F54/F53)) -> 15.59332525 | G14: =IF(ISERROR(G54/G53),0,(G54/G53)) -> 2.512037776 | H14: =IF(ISERROR(H54/H53),0,(H54/H53)) -> 15.59332525
A15: Revenue Management
A16: Annual Debtors Collection Rate (Payment Level %) | B16: Last 12 Mths Receipts/ Last 12 Mths Billing
A17: Outstanding Debtors to Revenue | B17: Total Outstanding Debtors to Annual Revenue | D17: =IF(ISERROR(D59/D55),0,(D59/D55)) -> 0.05427333676 | E17: =IF(ISERROR(E59/E55),0,(E59/E55)) -> 0.1011188954 | F17: =IF(ISERROR(F59/F55),0,(F59/F55)) -> 0.1011188954 | G17: =IF(ISERROR(G59/G55),0,(G59/G55)) -> 0.1112094984 | H17: =IF(ISERROR(H59/H55),0,(H59/H55)) -> 0.1011188954
A18: Longstanding Debtors Recovered | B18: Debtors > 12 Mths Recovered/Total Debtors > 12 Months Old | D18: =IF(ISERROR(D64/D63),0,(D64/D63)) -> 0 | E18: =IF(ISERROR(E64/E63),0,(E64/E63)) -> 0 | F18: =IF(ISERROR(F64/F63),0,(F64/F63)) -> 0 | G18: =IF(ISERROR(G64/G63),0,(G64/G63)) -> 0 | H18: =IF(ISERROR(H64/H63),0,(H64/H63)) -> 0
A19: Creditors Management
A20: Creditors System Efficiency | B20: % of Creditors Paid Within Terms (within MFMA s 65(e)) | D20: 1 | E20: 1 | F20: 1 | G20: 1 | H20: 1
A21: Funding of Provisions
A22: Percentage Of Provisions Not Funded | B22: Unfunded Provisions/Total Provisions
A23: Other Indicators
A24: Electricity Distribution Losses | B24: % Volume (units purchased and generated less units sold)/units purchased and generated | C24: 2 | D24: 0.14 | E24: 0.1927078361 | F24: 0.1927078361 | G24: 0.12 | H24: 0.1927078361
A25: Water Distribution Losses | B25: % Volume (units purchased and own source less units sold)/Total units purchased and own source | C25: 2 | D25: 0 | E25: 0 | F25: 0 | G25: 0 | H25: 0
A26: Employee costs | B26: Employee costs/Total Revenue - capital revenue | D26: =IF(ISERROR(D40/D55),0,(D40/D55)) -> 0.2684626933 | E26: =IF(ISERROR(E40/E55),0,(E40/E55)) -> 0.2911957922 | F26: =IF(ISERROR(F40/F55),0,(F40/F55)) -> 0.2911957922 | G26: =IF(ISERROR(G40/G55),0,(G40/G55)) -> 0.2449048029 | H26: =IF(ISERROR(H40/H55),0,(H40/H55)) -> 0.2911957922
A27: Repairs & Maintenance | B27: R&M/Total Revenue - capital revenue | D27: =IF(ISERROR(D41/D55),0,(D41/D55)) -> 0 | E27: =IF(ISERROR(E41/E55),0,(E41/E55)) -> 0.0203429789 | F27: =IF(ISERROR(F41/F55),0,(F41/F55)) -> 0.0203429789 | G27: =IF(ISERROR(G41/G55),0,(G41/G55)) -> 0.003060342835 | H27: =IF(ISERROR(H41/H55),0,(H41/H55)) -> 0.008919705834
A28: Interest & Depreciation | B28: I&D/Total Revenue - capital revenue | D28: =IF(ISERROR((D42+D44)/D55),0,((D42+D44)/D55)) -> 0.08885259627 | E28: =IF(ISERROR((E42+E44)/E55),0,((E42+E44)/E55)) -> 0.08950886536 | F28: =IF(ISERROR((F42+F44)/F55),0,((F42+F44)/F55)) -> 0.08950886536 | G28: =IF(ISERROR((G42+G44)/G55),0,((G42+G44)/G55)) -> 0 | H28: =IF(ISERROR((H42+H44)/H55),0,((H42+H44)/H55)) -> 0.05791965682
A29: IDP regulation financial viability indicators
A30: i. Debt coverage | B30: (Total Operating Revenue - Operating Grants)/Debt service payments due within financial year) | D30: =ROUND((D55-D56)/D60,2) -> 1.51 | E30: =ROUND((E55-E56)/E60,2) -> 1.48 | F30: 1.48 | G30: 1.79 | H30: 1.48
A31: ii. O/S Service Debtors to Revenue | B31: Total outstanding service debtors/annual revenue received for services | D31: =ROUND(D59/D60,2) -> 0.15 | E31: =ROUND(E59/E60,2) -> 0.25 | F31: 0.25 | G31: 0.33 | H31: 0.25
A32: iii. Cost coverage | B32: (Available cash + Investments)/monthly fixed operational expenditure | D32: =ROUND(D61/D62,2) -> 6 | E32: =ROUND(E61/E62,2) -> 6.78 | F32: 6.78 | G32: 9.9 | H32: 6.78
A33: References
A34: 1. Consumer debtors > 12 months old are excluded from current assets.
A35: 2. Material variances to be explained.
A37: Calculations
A38: ='C6-FinPos'!A38 -> Borrowing | D38: ='C6-FinPos'!C38 -> 0 | E38: ='C6-FinPos'!D38 -> 0 | F38: ='C6-FinPos'!E38 -> 0 | G38: ='C6-FinPos'!F38 -> 0 | H38: 0
A39: Total Assets | D39: ='C6-FinPos'!C26 -> 124453247 | E39: ='C6-FinPos'!D26 -> 129812497 | F39: ='C6-FinPos'!E26 -> 129812497 | G39: ='C6-FinPos'!F26 -> 136117863.3 | H39: ='C6-FinPos'!G26 -> 129812497
A40: ='C4-FinPerf RE'!A26 -> Employee related costs | D40: ='C4-FinPerf RE'!C26 -> 11033999.02 | E40: ='C4-FinPerf RE'!D26 -> 11561371 | F40: ='C4-FinPerf RE'!E26 -> 11561371 | G40: ='C4-FinPerf RE'!G26 -> 5645628.5 | H40: ='C4-FinPerf RE'!K26 -> 11561371
A41: =A27 -> Repairs & Maintenance | D41: =SC13c!C76 -> 0 | E41: =SC13c!D76 -> 807679 | F41: =SC13c!E76 -> 807679 | G41: =SC13c!F76 -> 70548.06 | H41: =SC13c!G76 -> 354139.83
A42: Interest (finance charges) | D42: ='C4-FinPerf RE'!C30 -> 826755 | E42: ='C4-FinPerf RE'!D30 -> 418601 | F42: ='C4-FinPerf RE'!E30 -> 418601 | G42: ='C4-FinPerf RE'!G30 -> 0 | H42: ='C4-FinPerf RE'!K30 -> 418601
A43: Principal paid | D43: =-'C7-CFlow'!C34 -> 0 | E43: =-'C7-CFlow'!D34 -> 0 | F43: =-'C7-CFlow'!E34 -> 0 | G43: =-'C7-CFlow'!G34 -> 0 | H43: =-'C7-CFlow'!K34 -> 0
A44: Depreciation | D44: ='C4-FinPerf RE'!C29 -> 2825147.05 | E44: ='C4-FinPerf RE'!D29 -> 3135177 | F44: ='C4-FinPerf RE'!E29 -> 3135177 | H44: ='C4-FinPerf RE'!K27 -> 1880988
A45: Operating expenditure | D45: ='C4-FinPerf RE'!C37 -> 43218468.81 | E45: ='C4-FinPerf RE'!D37 -> 41003084 | F45: ='C4-FinPerf RE'!E37 -> 41003084 | G45: ='C4-FinPerf RE'!G37 -> 19897003.82 | H45: ='C4-FinPerf RE'!K37 -> 41003084
A46: ='C5-Capex'!A40 -> Total Capital Expenditure | D46: ='C5-Capex'!C40 -> 10225109.65 | E46: ='C5-Capex'!D40 -> 9574000 | F46: ='C5-Capex'!E40 -> 9574000 | G46: ='C5-Capex'!G40 -> 166865.53 | H46: ='C5-Capex'!K40 -> 9574000
A47: Borrowed funding for capital | D47: ='C5-Capex'!C72 -> 0 | E47: ='C5-Capex'!D72 -> 0 | F47: ='C5-Capex'!E72 -> 0 | G47: ='C5-Capex'!G72 -> 0 | H47: ='C5-Capex'!K72 -> 0
A48: Debt | D48: ='C6-FinPos'!C30+'C6-FinPos'!C31+'C6-FinPos'!C33+'C6-FinPos'!C38 -> 3111643 | E48: ='C6-FinPos'!D30+'C6-FinPos'!D31+'C6-FinPos'!D33+'C6-FinPos'!D38 -> 1183270 | F48: ='C6-FinPos'!E30+'C6-FinPos'!E31+'C6-FinPos'!E33+'C6-FinPos'!E38 -> 1183270 | G48: ='C6-FinPos'!F30+'C6-FinPos'!F31+'C6-FinPos'!F33+'C6-FinPos'!F38 -> 11890357.28 | H48: ='C6-FinPos'!G30+'C6-FinPos'!G31+'C6-FinPos'!G33+'C6-FinPos'!G38 -> 1183270
A49: Equity | D49: ='C6-FinPos'!C48 -> 106820838 | E49: ='C6-FinPos'!D48 -> 120042431 | F49: ='C6-FinPos'!E48 -> 120042431 | G49: ='C6-FinPos'!F48 -> 110143625.6 | H49: ='C6-FinPos'!G48 -> 120042431
A50: ='C6-FinPos'!A47 -> Reserves | D50: ='C6-FinPos'!C47 -> 11523157 | E50: ='C6-FinPos'!D47 -> 11521832 | F50: ='C6-FinPos'!E47 -> 11521832 | G50: ='C6-FinPos'!F47 -> 11523744.47 | H50: ='C6-FinPos'!G47 -> 11521832
A51: ='C6-FinPos'!A38 -> Borrowing | D51: ='C6-FinPos'!C38 -> 0 | E51: ='C6-FinPos'!D38 -> 0 | F51: ='C6-FinPos'!E38 -> 0 | G51: ='C6-FinPos'!F38 -> 0 | H51: ='C6-FinPos'!G38 -> 0
A52: ='C6-FinPos'!A6 -> Current assets | D52: ='C6-FinPos'!C13 -> 23775933 | E52: ='C6-FinPos'!D13 -> 27133132 | F52: ='C6-FinPos'!E13 -> 27133132 | G52: ='C6-FinPos'!F13 -> 35338333.83 | H52: ='C6-FinPos'!G13 -> 27133132
A53: ='C6-FinPos'!A29 -> Current liabilities | D53: ='C6-FinPos'!C35 -> 4727920 | E53: ='C6-FinPos'!D35 -> 1485659 | F53: ='C6-FinPos'!E35 -> 1485659 | G53: ='C6-FinPos'!F35 -> 13069746.86 | H53: ='C6-FinPos'!G35 -> 1485659
A54: Monetary assets | D54: ='C6-FinPos'!C7+'C6-FinPos'!C8 -> 21602265 | E54: ='C6-FinPos'!D7+'C6-FinPos'!D8 -> 23166364 | F54: ='C6-FinPos'!E7+'C6-FinPos'!E8 -> 23166364 | G54: ='C6-FinPos'!F7+'C6-FinPos'!F8 -> 32831697.84 | H54: ='C6-FinPos'!G7+'C6-FinPos'!G8 -> 23166364
A55: ='C4-FinPerf RE'!A23 -> Total Revenue (excluding capital transfers and contributions) | D55: ='C4-FinPerf RE'!C23 -> 41100679.14 | E55: ='C4-FinPerf RE'!D23 -> 39703084 | F55: ='C4-FinPerf RE'!E23 -> 39703084 | G55: ='C4-FinPerf RE'!G23 -> 23052338.84 | H55: ='C4-FinPerf RE'!K23 -> 39703084
A56: ='C4-FinPerf RE'!A20 -> Transfers recognised - operational | D56: ='C4-FinPerf RE'!C20 -> 18650665.12 | E56: ='C4-FinPerf RE'!D20 -> 15906000 | F56: ='C4-FinPerf RE'!E20 -> 15906000 | G56: ='C4-FinPerf RE'!G20 -> 8956000 | H56: ='C4-FinPerf RE'!K20 -> 15906000
A57: ='C4-FinPerf RE'!A40 -> Transfers recognised - capital | D57: ='C4-FinPerf RE'!C40 -> 10088203.31 | E57: ='C4-FinPerf RE'!D40 -> 9574000 | F57: ='C4-FinPerf RE'!E40 -> 9574000 | G57: ='C4-FinPerf RE'!G40 -> 0 | H57: ='C4-FinPerf RE'!K40 -> 9574000
A58: Debt service payments | D58: ='C7-CFlow'!C10+'C7-CFlow'!C34 -> 928861 | E58: ='C7-CFlow'!D10+'C7-CFlow'!D34 -> 1300300 | F58: ='C7-CFlow'!E10+'C7-CFlow'!E34 -> 1300300 | G58: ='C7-CFlow'!G14+'C7-CFlow'!G34 -> 0 | H58: ='C7-CFlow'!K14+'C7-CFlow'!K34 -> 0
A59: Outstanding debtors (receivables) | D59: ='C6-FinPos'!C9+'C6-FinPos'!C10+'C6-FinPos'!C11+'C6-FinPos'!C16 -> 2230671 | E59: ='C6-FinPos'!D9+'C6-FinPos'!D10+'C6-FinPos'!D11+'C6-FinPos'!D16 -> 4014732 | F59: ='C6-FinPos'!E9+'C6-FinPos'!E10+'C6-FinPos'!E11+'C6-FinPos'!E16 -> 4014732 | G59: ='C6-FinPos'!F9+'C6-FinPos'!F10+'C6-FinPos'!F11+'C6-FinPos'!F16 -> 2563639.04 | H59: ='C6-FinPos'!G9+'C6-FinPos'!G10+'C6-FinPos'!G11+'C6-FinPos'!G16 -> 4014732
A60: Annual services revenue | D60: =SUM('C4-FinPerf RE'!C8:C12) -> 14856391.89 | E60: =SUM('C4-FinPerf RE'!D8:D12) -> 16133602 | F60: =SUM('C4-FinPerf RE'!E8:E12) -> 16133602 | G60: =SUM('C4-FinPerf RE'!G8:G12) -> 7857164.82 | H60: =SUM('C4-FinPerf RE'!K8:K12) -> 16133602
A61: Cash + investments | B61: Including LT investments | D61: ='C6-FinPos'!C7+'C6-FinPos'!C8+'C6-FinPos'!C17-'C6-FinPos'!C30 -> 21602265 | E61: ='C6-FinPos'!D7+'C6-FinPos'!D8+'C6-FinPos'!D17-'C6-FinPos'!D30 -> 23166364 | F61: ='C6-FinPos'!E7+'C6-FinPos'!E8+'C6-FinPos'!E17-'C6-FinPos'!E30 -> 23166364 | G61: ='C6-FinPos'!F7+'C6-FinPos'!F8+'C6-FinPos'!F17-'C6-FinPos'!F30 -> 32831697.84 | H61: ='C6-FinPos'!G7+'C6-FinPos'!G8+'C6-FinPos'!G17-'C6-FinPos'!G30 -> 23166364
A62: Fixed operational expend. (monthly) | D62: ='C4-FinPerf RE'!$C$37/12 -> 3601539.068 | E62: ='C4-FinPerf RE'!$D$37/12 -> 3416923.667 | F62: ='C4-FinPerf RE'!$E$37/12 -> 3416923.667 | G62: ='C4-FinPerf RE'!$G$37/Contacts!A85 -> 3316167.303 | H62: =F62 -> 3416923.667
A63: Longstanding debtors outstanding | D63: ='C6-FinPos'!C16 -> 57003 | E63: ='C6-FinPos'!D16 -> 47964 | F63: ='C6-FinPos'!E16 -> 47964 | G63: ='C6-FinPos'!F16 -> 57003.05 | H63: ='C6-FinPos'!G16 -> 47964
A64: Longstanding debtors recovered
A65: Attorney collections

Sheet SC3
A1: =muni& " - "&S71I& " - "&Head57 -> NC074 Kareeberg - Supporting Table SC3 Monthly Budget Statement - aged debtors - Mid-Year Assessment
A2: =desc -> Description | B2: NT Code | C2: =Head2 -> Budget Year 2012/13
C3: 0-30 Days | D3: 31-60 Days | E3: 61-90 Days | F3: 91-120 Days | G3: 121-150 Dys | H3: 151-180 Dys | I3: 181 Dys-1 Yr | J3: Over 1Yr | K3: Total | L3: Bad Debts | M3: >90 days
A4: R thousands
A5: Debtors Age Analysis By Revenue Source
A6: Rates | B6: 1200 | C6: 17405.33 | D6: 19141.14 | E6: 17717.81 | F6: 8391.86 | G6: 9512.39 | H6: 1290487.61 | I6: 503629.83 | J6: 1213955.25 | K6: =SUM(C6:J6) -> 3080241.22 | M6: =SUM(F6:J6) -> 3025976.94
A7: Electricity | B7: 1300 | C7: 473268.95 | D7: 96485.42 | E7: 71980.33 | F7: 72037.99 | G7: 62238.15 | H7: 75934.35 | I7: 367027.63 | J7: 0 | K7: =SUM(C7:J7) -> 1218972.82 | M7: =SUM(F7:J7) -> 577238.12
A8: Water | B8: 1400 | C8: 179458.24 | D8: 71387.72 | E8: 24269.5 | F8: 31550.07 | G8: 20017.38 | H8: 16461.24 | I8: 126381.52 | J8: 0 | K8: =SUM(C8:J8) -> 469525.67 | M8: =SUM(F8:J8) -> 194410.21
A9: Sewerage / Sanitation | B9: 1500 | C9: 124666.33 | D9: 29666.33 | E9: 26850.08 | F9: 19247.62 | G9: 17879.75 | H9: 9746.84 | I9: 172251.33 | J9: 0 | K9: 400308.28 | M9: =SUM(F9:J9) -> 219125.54
A10: Refuse Removal | B10: 1600 | C10: 136264.15 | D10: 41264.15 | E10: 22168.55 | F10: 25884.78 | G10: 20199.29 | H10: 17485.73 | I10: 161055.39 | J10: 0 | K10: 424322.04 | M10: 224625.19
A11: Housing (Rental Revenue) | B11: 1700 | K11: 0 | M11: 0
A12: Other | B12: 1900 | C12: 593228.11 | K12: 593228.11 | M12: 0
A13: Total By Revenue Source | B13: 2000 | C13: =SUM(C6:C12) -> 1524291.11 | D13: 257944.76 | E13: 162986.27 | F13: 157112.32 | G13: 129846.96 | H13: 1410115.77 | I13: 1330345.7 | J13: 1213955.25 | K13: 6186598.14 | L13: 0 | M13: 4241376
A14: =Head1&" - totals only" -> 2011/12 - totals only | C14: 2634587.08 | D14: 353615.54 | E14: 227408.92 | F14: 63049.98 | G14: 16246.73 | H14: 0 | I14: 0 | J14: 1589914.47 | K14: =SUM(C14:J14) -> 4884822.72 | M14: 1669211.18
A15: Debtors Age Analysis By Customer Category
A16: Government | B16: 2200 | C16: 72542.42 | D16: 9990.37 | E16: 19480.06 | F16: 24900.17 | G16: 21340.97 | H16: 11473.79 | I16: 30628.23 | J16: 0 | K16: =SUM(C16:J16) -> 190356.01
A17: Business | B17: 2300 | C17: 162750.72 | D17: 22227.24 | E17: 3476 | F17: 2270.21 | G17: 4346.65 | H17: 5511.58 | I17: 30935 | J17: 0 | K17: =SUM(C17:J17) -> 231517.4
A18: Households | B18: 2400 | C18: 1274578.26 | D18: 220830.78 | E18: 138622.11 | F18: 129582.43 | G18: 104002.96 | H18: 1393023.41 | I18: 1262461.9 | J18: 1213955.25 | K18: =SUM(C18:J18) -> 5737057.1
A19: Other | B19: 2500 | C19: 14419.71 | D19: 4896.37 | E19: 1408.1 | F19: 359.51 | G19: 156.38 | H19: 106.99 | I19: 6320.57 | J19: 0 | K19: =SUM(C19:J19) -> 27667.63
A20: Total By Customer Category | B20: 2600 | C20: =SUM(C16:C19) -> 1524291.11 | D20: 257944.76 | E20: 162986.27 | F20: 157112.32 | G20: 129846.96 | H20: 1410115.77 | I20: 1330345.7 | J20: =SUM(J16:J19) -> 1213955.25 | K20: =SUM(K16:K19) -> 6186598.14 | L20: =SUM(L16:L19) -> 0
A21: Notes
A22: Material increases in value of debtors' categories compared to previous month to be explained
A23: Bad debts = amounts actually written off in the month
A24: Total by Revenue Source must reconcile with Total by Customer Group
C25: =C13-C20 -> 0 | D25: =D13-D20 -> 0 | E25: 0 | F25: 0 | G25: 0 | H25: 0 | I25: 0 | J25: 0 | K25: 0
C26: =IF(C25=0,"","MUST AGREE") ->  | D26: =IF(D25=0,"","MUST AGREE") -> 

Sheet SC4
A1: =muni& " - "&S71J& " - "&Head57 -> NC074 Kareeberg - Supporting Table SC4 Monthly Budget Statement - aged creditors - Mid-Year Assessment
A2: =desc -> Description | B2: NT Code | C2: =Head2 -> Budget Year 2012/13 | L2: Prior year totals for chart (same period)
C3: 0 - 30 Days | D3: 31 - 60 Days | E3: 61 - 90 Days | F3: 91 - 120 Days | G3: 121 - 150 Days | H3: 151 - 180 Days | I3: 181 Days - 1 Year | J3: Over 1 Year | K3: Total
A4: R thousands
A5: Creditors Age Analysis By Customer Type
A6: Bulk Electricity | B6: 0100 | K6: =SUM(C6:J6) -> 0 | L6: 473448.59
A7: Bulk Water | B7: 0200 | K7: =SUM(C7:J7) -> 0
A8: PAYE deductions | B8: 0300 | K8: 0 | L8: 182639.35
A9: VAT (output less input) | B9: 0400 | K9: 0
A10: Pensions / Retirement deductions | B10: 0500 | K10: 0 | L10: 138456.69
A11: Loan repayments | B11: 0600 | K11: 0
A12: Trade Creditors | B12: 0700 | K12: 0 | L12: 982522.31
A13: Auditor General | B13: 0800 | K13: 0 | L13: 163046.64
A14: Other | B14: 0900 | K14: =SUM(C14:J14) -> 0 | L14: 7075265.14
A15: Total By Customer Type | B15: 2600 | C15: =SUM(C6:C14) -> 0 | D15: =SUM(D6:D14) -> 0 | E15: 0 | F15: 0 | G15: 0 | H15: 0 | I15: 0 | J15: 0 | K15: =SUM(K6:K14) -> 0 | L15: =SUM(L6:L14) -> 9015378.72
A16: Notes
A17: Material increases in value of creditors' categories compared to previous month to be explained

Sheet SC5
A1: =muni& " - "&S71K& " - "&Head57 -> NC074 Kareeberg - Supporting Table SC5 Monthly Budget Statement - investment portfolio - Mid-Year Assessment
A2: Investments by maturity Name of institution & investment ID | B2: Ref | C2: Period of Investment | D2: Type of Investment | E2: Expiry date of investment | F2: Accrued interest for the month | G2: Yield for the month 1 (%) | H2: Market value at beginning of the month | I2: Change in market value | J2: Market value at end of the month
A3: R thousands | C3: Yrs/Months
A4: Municipality
A5: Capital Replacement Reserve | C5: 32 days | D5: fixed deposit | F5: 228560.95 | H5: 11347811.51 | I5: =J5-H5 -> 0 | J5: 11347811.51
A6: Housing Fund | C6: 1 day | D6: call deposit | F6: 587.9 | H6: 121150.41 | I6: =J6-H6 -> 332.55 | J6: 121482.96
A7: Job creation - De Bult | C7: 32 days | D7: notice deposit | F7: 370.35 | H7: 35211.61 | I7: 193.48 | J7: 35405.09
A8: Land development | C8: 1 day | D8: call deposit | F8: 122.39 | H8: 15282.54 | I8: 64.86 | J8: 15347.4
A9: Land development | C9: 32 days | D9: notice deposit | F9: 109.76 | H9: 13959.75 | I9: 57.5 | J9: 14017.25
A10: Land development | C10: 1 day | D10: call deposit | F10: 13.65 | H10: 27233.59 | I10: 6.79 | J10: 27240.38
A11: Civil Defence | C11: 32 days | D11: notice deposit | F11: 206.2 | H11: 17543.19 | I11: 110.78 | J11: 17653.97
A12: CMIP Kwaggakolk(vat) | C12: 1 day | D12: call deposit | F12: 71.11 | H12: 140312.96 | I12: 46.9 | J12: 140359.86
A13: MSIG | C13: 1 day | D13: call deposit | H13: 485936.62 | I13: 0 | J13: 485936.62
A14: MIG Sanitation interest/vat | C14: 1 day | D14: call deposit | F14: 32681.45 | H14: 1477022.13 | I14: 0 | J14: 1477022.13
A15: Electricity | C15: 1 day | D15: call deposit | F15: 15.26 | H15: 32758.91 | I15: 8.16 | J15: 32767.07
A16: Water Services Plan | C16: 1 day | D16: call deposit | F16: 0.77 | H16: 3064.11 | I16: 0.39 | J16: 3064.5
A17: CMIP-Saaipoort project 301 | C17: 1 day | D17: call deposit | F17: 0.76 | H17: 3363.05 | I17: 0.42 | J17: 3363.47
A18: Library Development Projects | C18: 1 day | D18: call deposit | F18: 0 | H18: 53513.62 | I18: 0 | J18: 53513.62
A19: EPWP - Paving/ Cleaning | C19: 1 day | D19: call deposit | F19: 10.32 | H19: 22145.9 | I19: 5.52 | J19: 22151.42
A20: Lotto Carnarvon | C20: 1 day | D20: call deposit | F20: 0.39 | H20: 1702.07 | I20: 0.21 | J20: 1702.28
A21: Lotto Vosburg | C21: 1 day | D21: call deposit | F21: 12.84 | H21: 29993.66 | I21: 7.49 | J21: 30001.15
A22: Finance Management Grant | C22: 1 day | D22: call deposit | H22: 224102.25 | I22: 0 | J22: 224102.25
A23: Transfer Fees Sub-Economic Housing | C23: 32 days | D23: notice deposit | F23: 1496.27 | H23: 120880.14 | I23: 800.4 | J23: 121680.54
A24: VB Cleaning Project | C24: 1 day | D24: call deposit | F24: 10.3 | H24: 23944.03 | I24: 5.97 | J24: 23950
A25: VAT - retention | C25: 1 day | D25: call deposit | F25: 4.92 | H25: 11111.54 | I25: 2.76 | J25: 11114.3
A26: Kreeberg Festival | C26: 1 day | D26: call deposit | H26: 700000 | I26: 0 | J26: 700000
A27: MIG | C27: 1 day | D27: call deposit | F27: 48021.67 | H27: 2182286.61 | I27: 3000000 | J27: 5182286.61
A28: Housing 81 | C28: 1 day | D28: call deposit | H28: 93632.07 | I28: 0 | J28: 93632.07
A29: Leave, PMS and Long Service Funds | C29: 1 day | D29: call deposit | H29: 1956625.85 | I29: 0 | J29: 1956625.85
A30: Provision for Employee benefits | C30: 1 day | D30: call deposit | H30: 3000000 | I30: 0 | J30: 3000000
A31: Retension | C31: 1 day | D31: call deposit | F31: 1010.08 | H31: 88958.19 | I31: 0 | J31: 88958.19
A32: Reserves | C32: 1 day | D32: call deposit | H32: 352115.68 | I32: 0 | J32: 352115.68
A33: General Account | C33: 1 day | D33: call deposit | F33: 104519.81 | H33: 3907905.8 | I33: 2600000 | J33: 6507905.8
A51: Municipality sub-total | F51: =SUM(F5:F50) -> 417827.15 | H51: =SUM(H5:H50) -> 26489567.79 | I51: =SUM(I5:I50) -> 5601644.18 | J51: =SUM(J5:J50) -> 32091211.97
A53: Entities
A61: Entities sub-total | F61: =SUM(F54:F60) -> 0 | H61: =SUM(H54:H60) -> 0 | I61: =SUM(I54:I60) -> 0 | J61: =SUM(J54:J60) -> 0
A63: TOTAL INVESTMENTS AND INTEREST | B63: 2 | F63: =F51+F61 -> 417827.15 | H63: =H51+H61 -> 26489567.79 | I63: =I51+I61 -> 5601644.18 | J63: =J51+J61 -> 32091211.97
A64: =head27a -> References
A65: 1. Yield is calculated as the annualised equivalent
A66: 2. Total market value must reconcile with the total of investments on the 'Financial Position statement'

Sheet SC6
A1: =muni& " - "&S71L& " - "&Head57 -> NC074 Kareeberg - Supporting Table SC6 Monthly Budget Statement - transfers and grant receipts - Mid-Year Assessment
A2: =desc -> Description | B2: =head27 -> Ref | C2: =Head1 -> 2011/12 | D2: =Head2 -> Budget Year 2012/13
C3: =Head5 -> Audited Outcome | D3: =Head6 -> Original Budget | E3: =Head7 -> Adjusted Budget | F3: =Head38 -> Monthly actual | G3: =Head39 -> YearTD actual | H3: =Head40 -> YearTD budget | I3: =Head41 -> YTD variance | J3: =Head41 -> YTD variance | K3: =Head8 -> Full Year Forecast
A4: R thousands | J4: %
A5: RECEIPTS: | B5: 1,2
A7: Operating Transfers and Grants
A8: National Government: | C8: =SUM(C9:C19) -> 13116000 | D8: 15241000 | E8: 15241000 | F8: 3980000 | G8: 11956000 | H8: 10160666.67 | I8: 995333.3333 | J8: =IF(I8=0,"",I8/H8) -> 0.09795945148 | K8: =SUM(K9:K19) -> 15241000
A9: Local Government Equitable Share | C9: 10466000 | D9: 11941000 | E9: =D9 -> 11941000 | F9: 3980000 | G9: 8956000 | H9: 7960666.667 | I9: =G9-H9 -> 995333.3333 | J9: 0.1250314044 | K9: =E9 -> 11941000
A10: Finance Management | C10: 1450000 | D10: 1500000 | E10: =D10 -> 1500000 | G10: 1500000 | H10: 1000000 | K10: =E10 -> 1500000
A11: Municipal Systems Improvement | C11: 1200000 | D11: 800000 | E11: 800000 | G11: 800000 | H11: 533333.3333 | K11: 800000
A12: EPWP Incentive | D12: 1000000 | E12: 1000000 | G12: 700000 | H12: 666666.6667 | K12: 1000000
B14: 3 | I14: 0
I15: 0
I16: 0
I17: 0
I18: 0
A19: Other transfers and grants [insert description] | I19: 0
A20: Provincial Government: | C20: =SUM(C21:C26) -> 7389413 | D20: 665000 | E20: 665000 | F20: 0 | G20: 332500 | H20: 443333.3333 | I20: -110833.3333 | J20: -0.25 | K20: =SUM(K21:K26) -> 665000
A21: Sport and Recreation | C21: =161728+339272 -> 501000 | D21: 665000 | E21: =D21 -> 665000 | G21: 332500 | H21: 443333.3333 | I21: =G21-H21 -> -110833.3333 | J21: -0.25 | K21: =D21 -> 665000
A22: Housing | C22: 2381969
A23: Water assistance | C23: =252849+387030 -> 639879 | I23: 0
A24: Northern Cape Tourism | B24: 4 | C24: =100000+59440 -> 159440 | I24: 0
A25: Expanded Public Works Programme | C25: =2670285+711840 -> 3382125 | I25: 0
A26: Job creation - Premier's office | C26: 325000 | I26: 0
A27: District Municipality: | C27: =SUM(C28:C29) -> 0 | D27: 0 | E27: 0 | F27: 0 | G27: 0 | H27: 0 | I27: 0 | K27: =SUM(K28:K29) -> 0
A28: [insert description] | I28: 0
I29: 0
A30: Other grant providers: | C30: =SUM(C31:C37) -> 1482243 | D30: 0 | E30: 0 | F30: 0 | G30: 0 | H30: 0 | I30: 0 | K30: =SUM(K31:K37) -> 0
A31: Sanitation interest | C31: =289576+1164203 -> 1453779 | I31: 0
A32: Geotechnical inspection | C32: 6371
A33: Job creation | C33: 11948
A34: Television fund | C34: 10145
I37: 0
A38: Total Operating Transfers and Grants | B38: 5 | C38: =C8+C20+C27+C30 -> 21987656 | D38: 15906000 | E38: 15906000 | F38: 3980000 | G38: 12288500 | H38: 10604000 | I38: 884500 | J38: 0.08341192003 | K38: =K8+K20+K27+K30 -> 15906000
A40: Capital Transfers and Grants
A41: =A8 -> National Government: | C41: =SUM(C42:C51) -> 7892000 | D41: 9574000 | E41: 9574000 | F41: 3000000 | G41: 7000000 | H41: 5000000 | I41: 2000000 | J41: =IF(I41=0,"",I41/H41) -> 0.4 | K41: 9574000
A42: Municipal Infrastructure Grant (MIG) | C42: 7892000 | D42: 9574000 | E42: =D42 -> 9574000 | F42: 3000000 | G42: 7000000 | H42: 5000000 | I42: =G42-H42 -> 2000000 | J42: 0.4 | K42: =E42 -> 9574000
I47: 0
I48: 0
I49: 0
I50: 0
A51: Other capital transfers [insert description] | I51: 0
A52: =A20 -> Provincial Government: | C52: =SUM(C53:C58) -> 0 | D52: 0 | E52: 0 | F52: 0 | G52: 0 | H52: 0 | I52: =G52-H52 -> 0 | J52: =IF(I52=0,"",I52/H52) ->  | K52: =SUM(K53:K58) -> 0
A53: [insert description] | I53: 0 | J53: =IF(I53=0,"",I53/H53) -> 
I58: 0
A59: =A27 -> District Municipality: | C59: =SUM(C60:C61) -> 0 | D59: 0 | E59: 0 | F59: 0 | G59: 0 | H59: 0 | I59: 0 | K59: =SUM(K60:K61) -> 0
A60: [insert description] | I60: 0
I61: 0
A62: =A30 -> Other grant providers: | C62: =SUM(C63:C68) -> 0 | D62: 0 | E62: 0 | F62: 0 | G62: 0 | H62: 0 | I62: 0 | K62: =SUM(K63:K68) -> 0
A63: [insert description] | I63: 0 | J63: =IF(I63=0,"",I63/H63) -> 
I68: 0
A69: Total Capital Transfers and Grants | B69: 5 | C69: =C41+C52+C59+C62 -> 7892000 | D69: =D41+D52+D59+D62 -> 9574000 | E69: 9574000 | F69: 3000000 | G69: 7000000 | H69: 5000000 | I69: 2000000 | J69: 0.4 | K69: 9574000
A71: TOTAL RECEIPTS OF TRANSFERS & GRANTS | B71: 5 | C71: =C38+C69 -> 29879656 | D71: 25480000 | E71: 25480000 | F71: 6980000 | G71: 19288500 | H71: 15604000 | I71: 2884500 | J71: 0.1848564471 | K71: 25480000
A72: =head27a -> References
A73: 1. Each grant is listed by name as gazetted together with the name of the transferring department or municipality, donor or other organisation
A74: 2. Grant expenditure must be separately listed for each grant received
A75: 3. Replacement of RSC levies
A76: 4. Housing subsidies for housing where ownership transferred
A77: 5. Total recurrent/capital grants and subsidies must reconcile to the 'Financial Performance' Statement

Sheet SC7
A1: =muni& " - "&S71M& " - "&Head57 -> NC074 Kareeberg - Supporting Table SC7 Monthly Budget Statement - transfers and grant expenditure - Mid-Year Assessment
A2: =desc -> Description | B2: =head27 -> Ref | C2: =Head1 -> 2011/12 | D2: =Head2 -> Budget Year 2012/13
C3: =Head5 -> Audited Outcome | D3: =Head6 -> Original Budget | E3: =Head7 -> Adjusted Budget | F3: =Head38 -> Monthly actual | G3: =Head39 -> YearTD actual | H3: =Head40 -> YearTD budget | I3: =Head41 -> YTD variance | J3: =Head41 -> YTD variance | K3: =Head8 -> Full Year Forecast
A4: R thousands | J4: %
A5: EXPENDITURE
A7: Operating expenditure of Transfers and Grants
A8: ='SC6'!A8 -> National Government: | C8: =SUM(C9:C15) -> 9870931 | D8: 10468903 | E8: 10468903 | F8: 1824951 | G8: 8170911.75 | H8: 6979268.667 | I8: 1191643.083 | J8: =IF(I8=0,"",I8/H8) -> 0.1707403942 | K8: =SUM(K9:K15) -> 10468903
A9: ='SC6'!A9 -> Local Government Equitable Share | C9: 7436334 | D9: 7168903 | E9: =D9 -> 7168903 | F9: 1824951 | G9: 6580951 | H9: 4779268.667 | I9: =G9-H9 -> 1801682.333 | J9: 0.3769786674 | K9: =E9 -> 7168903
A10: ='SC6'!A10 -> Finance Management | C10: 1324010 | D10: 1500000 | E10: =D10 -> 1500000 | G10: 1275897.75 | H10: 1000000 | I10: 275897.75 | J10: 0.27589775 | K10: =E10 -> 1500000
A11: ='SC6'!A11 -> Municipal Systems Improvement | C11: 1110587 | D11: 800000 | E11: 800000 | G11: 314063 | H11: 533333.3333 | I11: -219270.3333 | J11: -0.411131875 | K11: 800000
A12: ='SC6'!A12 -> EPWP Incentive | D12: 1000000 | E12: 1000000 | G12: 0 | H12: 666666.6667 | I12: -666666.6667 | J12: -1 | K12: 1000000
A13: ='SC6'!A17 -> 0 | I13: 0
A14: ='SC6'!A18 -> 0 | I14: 0
A15: ='SC6'!A19 -> Other transfers and grants [insert description] | I15: 0
A16: ='SC6'!A20 -> Provincial Government: | C16: =SUM(C17:C21) -> 2175431 | D16: 665000 | E16: 665000 | F16: 0 | G16: 291931.46 | H16: 443333.3333 | I16: -151401.8733 | J16: -0.341507985 | K16: =SUM(K17:K21) -> 665000
A17: ='SC6'!A21 -> Sport and Recreation | C17: 339272 | D17: 665000 | E17: =D17 -> 665000 | G17: 291931.46 | H17: 443333.3333 | I17: =G17-H17 -> -151401.8733 | J17: -0.341507985 | K17: =E17 -> 665000
A18: ='SC6'!A23 -> Water assistance | C18: =252850+387029 -> 639879 | I18: 0
A19: ='SC6'!A24 -> Northern Cape Tourism | C19: =100000+59440 -> 159440 | I19: 0
A20: ='SC6'!A25 -> Expanded Public Works Programme | C20: 711840 | I20: 0
A21: ='SC6'!A26 -> Job creation - Premier's office | C21: 325000 | I21: 0
A22: ='SC6'!A27 -> District Municipality: | C22: =SUM(C23:C24) -> 0 | D22: 0 | E22: 0 | F22: 0 | G22: 0 | H22: 0 | I22: 0 | K22: =SUM(K23:K24) -> 0
I23: 0
A24: ='SC6'!A28 -> [insert description] | I24: 0
A25: ='SC6'!A30 -> Other grant providers: | C25: =SUM(C26:C27) -> 1164203 | D25: 0 | E25: 0 | F25: 0 | G25: 0 | H25: 0 | I25: 0 | K25: =SUM(K26:K27) -> 0
I26: 0
A27: ='SC6'!A31 -> Sanitation interest | C27: 1164203 | I27: 0
A28: ='SC6'!A32 -> Geotechnical inspection | C28: 6371
A29: ='SC6'!A33 -> Job creation | C29: 11948
A30: ='SC6'!A34 -> Television fund | C30: 10145
A31: Total operating expenditure of Transfers and Grants: | C31: =C8+C16+C22+C25 -> 13210565 | D31: =D8+D16+D22+D25 -> 11133903 | E31: 11133903 | F31: 1824951 | G31: 8462843.21 | H31: 7422602 | I31: 1040241.21 | J31: 0.1401450879 | K31: =K8+K16+K22+K25 -> 11133903
A33: Capital expenditure of Transfers and Grants
A34: ='SC6'!A41 -> National Government: | C34: =SUM(C35:C40) -> 6966615 | D34: 9574000 | E34: 9574000 | F34: 0 | G34: 1817713.47 | H34: 5000000 | I34: -3182286.53 | J34: =IF(I34=0,"",I34/H34) -> -0.636457306 | K34: 9574000
A35: ='SC6'!A42 -> Municipal Infrastructure Grant (MIG) | C35: 6931076 | D35: 9574000 | E35: =D35 -> 9574000 | G35: 1817713.47 | H35: 5000000 | I35: =G35-H35 -> -3182286.53 | J35: -0.636457306 | K35: =E35 -> 9574000
A36: =A10 -> Finance Management | C36: 29211 | I36: 0
A37: =A11 -> Municipal Systems Improvement | C37: 6328 | I37: 0
A38: ='SC6'!A49 -> 0 | I38: 0
A39: ='SC6'!A50 -> 0 | I39: 0
A40: ='SC6'!A51 -> Other capital transfers [insert description] | I40: 0
A41: ='SC6'!A52 -> Provincial Government: | C41: =SUM(C42:C44) -> 2832013 | D41: 0 | E41: 0 | F41: 0 | G41: 0 | H41: 0 | I41: =G41-H41 -> 0 | K41: =SUM(K42:K44) -> 0
A42: =A17 -> Sport and Recreation | C42: 161728 | I42: 0
A43: =A20 -> Expanded Public Works Programme | C43: 2670285
A44: ='SC6'!A58 -> 0 | I44: 0
A45: ='SC6'!A59 -> District Municipality: | C45: =SUM(C46:C47) -> 0 | D45: 0 | E45: 0 | F45: 0 | G45: 0 | H45: 0 | I45: 0 | K45: =SUM(K46:K47) -> 0
I46: 0
A47: ='SC6'!A61 -> 0 | I47: 0
A48: ='SC6'!A62 -> Other grant providers: | C48: =SUM(C49:C50) -> 289576 | D48: 0 | E48: 0 | F48: 0 | G48: 0 | H48: 0 | I48: 0 | K48: =SUM(K49:K50) -> 0
I49: 0
A50: =A27 -> Sanitation interest | C50: 289576 | I50: 0
A51: Total capital expenditure of Transfers and Grants | C51: =C34+C41+C45+C48 -> 10088204 | D51: =D34+D41+D45+D48 -> 9574000 | E51: 9574000 | F51: 0 | G51: 1817713.47 | H51: 5000000 | I51: -3182286.53 | J51: =IF(I51=0,"",I51/H51) -> -0.636457306 | K51: 9574000
A53: TOTAL EXPENDITURE OF TRANSFERS AND GRANTS | C53: =C31+C51 -> 23298769 | D53: 20707903 | E53: 20707903 | F53: 1824951 | G53: 10280556.68 | H53: 12422602 | I53: -2142045.32 | J53: =IF(I53=0,"",I53/H53) -> -0.1724312926 | K53: 20707903
A54: =head27a -> References

Sheet SC8
A1: =muni& " - "&S71N& " - "&Head57 -> NC074 Kareeberg - Supporting Table SC8 Monthly Budget Statement - counillor and staff benefits - Mid-Year Assessment
A2: Summary of Employee and Councillor remuneration | B2: =head27 -> Ref | C2: =Head1 -> 2011/12 | D2: =Head2 -> Budget Year 2012/13
C3: =Head5 -> Audited Outcome | D3: =Head6 -> Original Budget | E3: =Head7 -> Adjusted Budget | F3: =Head38 -> Monthly actual | G3: =Head39 -> YearTD actual | H3: =Head40 -> YearTD budget | I3: =Head41 -> YTD variance | J3: =Head41 -> YTD variance | K3: =Head8 -> Full Year Forecast
A4: R thousands | J4: %
B5: 1 | C5: A | D5: B | E5: C | K5: D
A6: Councillors (Political Office Bearers plus Other)
A7: Basic Salaries and Wages | C7: 1215920.36 | D7: 1361610 | E7: =D7 -> 1361610 | F7: 100265.75 | G7: 601594.5 | H7: 526603.5 | I7: =G7-H7 -> 74991 | J7: =IF(I7=0,"",I7/H7) -> 0.1424050543 | K7: =E7 -> 1361610
A8: Pension and UIF Contributions | H8: 0 | I8: 0
A9: Medical Aid Contributions | H9: 0 | I9: 0
A10: Motor Vehicle Allowance | C10: 388331.92 | D10: 421117 | E10: =D10 -> 421117 | F10: 33421.94 | G10: 200531.64 | H10: 190887.4167 | I10: =G10-H10 -> 9644.223333 | J10: =IF(I10=0,"",I10/H10) -> 0.05052309629 | K10: =E10 -> 421117
A11: Cellphone Allowance | C11: 83405.99 | D11: 98261 | E11: 98261 | F11: 5864.04 | G11: 27620.83 | H11: 49130.5 | I11: =G11-H11 -> -21509.67 | J11: =IF(I11=0,"",I11/H11) -> -0.4378068613 | K11: 98261
A12: Housing Allowances | H12: 0 | I12: =G12-H12 -> 0 | J12: =IF(I12=0,"",I12/H12) -> 
A13: Other benefits and allowances | H13: 0 | I13: 0
A14: Sub Total - Councillors | C14: =SUM(C7:C13) -> 1687658.27 | D14: 1880988 | E14: 1880988 | F14: 139551.73 | G14: 829746.97 | H14: 766621.4167 | I14: 63125.55333 | J14: 0.08234253826 | K14: 1880988
A15: % increase | B15: 4 | D15: =IF(D14=0,"",(D14/C14)-1) -> 0.1145550219 | E15: =IF(E14=0,"",(E14/C14)-1) -> 0.1145550219 | K15: =IF(K14=0,"",(K14/C14)-1) -> 0.1145550219
A17: Senior Managers of the Municipality | B17: 3
A18: Basic Salaries and Wages | C18: 3137132.54 | D18: 2187838 | E18: =D18 -> 2187838 | F18: 215070 | G18: 1132810.9 | H18: 853919 | I18: =G18-H18 -> 278891.9 | J18: =IF(I18=0,"",I18/H18) -> 0.326602289 | K18: =E18 -> 2187838
A19: Pension and UIF Contributions | C19: =232953.17+6654.01 -> 239607.18 | D19: 289199 | E19: 289199 | F19: 25329.22 | G19: 150848.68 | H19: 137599.5 | I19: 13249.18 | J19: 0.09628799523 | K19: 289199
A20: Medical Aid Contributions | C20: 119677.94 | D20: 121691 | E20: 121691 | F20: 9612 | G20: 57664 | H20: 59845.5 | I20: -2181.5 | J20: -0.03645219774 | K20: 121691
A21: Overtime | G21: 0 | H21: 0 | I21: 0
A22: Performance Bonus | C22: 170528.47 | D22: 202543 | E22: =D22 -> 202543 | F22: 161882.1 | G22: 161882.1 | H22: 202543.02 | I22: =G22-H22 -> -40660.92 | J22: =IF(I22=0,"",I22/H22) -> -0.200752018 | K22: =E22 -> 202543
A23: Motor Vehicle Allowance | C23: 390585 | D23: 385779 | E23: 385779 | F23: 31998 | G23: 191988 | H23: 190786.5 | I23: =G23-H23 -> 1201.5 | J23: =IF(I23=0,"",I23/H23) -> 0.006297615397 | K23: 385779
A24: Cellphone Allowance | G24: 0 | H24: 0 | I24: =G24-H24 -> 0 | J24: =IF(I24=0,"",I24/H24) -> 
A25: Housing Allowances | C25: 0 | G25: 0 | H25: 0 | I25: =G25-H25 -> 0 | J25: =IF(I25=0,"",I25/H25) -> 
A26: Other benefits and allowances | D26: 16875 | E26: =D26 -> 16875 | F26: 23.8 | G26: 113.05 | H26: 8437.5 | I26: -8324.45 | J26: -0.9866014815 | K26: =E26 -> 16875
A27: Payments in lieu of leave | G27: 0 | H27: 0 | I27: 0
A28: Long service awards | G28: 0 | H28: 0 | I28: 0
A29: Post-retirement benefit obligations | B29: 2 | G29: 0 | H29: 0 | I29: 0
A30: Sub Total - Senior Managers of Municipality | C30: =SUM(C18:C29) -> 4057531.13 | D30: 3203925 | E30: 3203925 | F30: =SUM(F18:F29) -> 443915.12 | G30: =SUM(G18:G29) -> 1695306.73 | H30: =SUM(H18:H29) -> 1453131.02 | I30: 242175.71 | J30: =IF(I30=0,"",I30/H30) -> 0.1666578627 | K30: 3203925
A31: % increase | B31: 4 | D31: =IF(D30=0,"",(D30/C30)-1) -> -0.2103757439 | E31: =IF(E30=0,"",(E30/C30)-1) -> -0.2103757439 | K31: =IF(K30=0,"",(K30/C30)-1) -> -0.2103757439
A33: Other Municipal Staff
A34: Basic Salaries and Wages | C34: 5074581.265 | D34: 6239955 | E34: =D34 -> 6239955 | F34: 337099.75 | G34: 3022154.67 | H34: 2487536.5 | I34: =G34-H34 -> 534618.17 | J34: =IF(I34=0,"",I34/H34) -> 0.2149187238 | K34: =E34 -> 6239955
A35: Pension and UIF Contributions | C35: =860492.29+74154.32 -> 934646.61 | D35: =1056380 -> 1056380 | E35: 1056380 | F35: 90864.26 | G35: 555799.29 | H35: 512190 | I35: 43609.29 | J35: 0.08514279857 | K35: 1056380
A36: Medical Aid Contributions | C36: 283880.84 | D36: 356532 | E36: 356532 | F36: 26047.8 | G36: 156286.8 | H36: 175266 | I36: -18979.2 | J36: -0.1082879737 | K36: 356532
A37: Overtime | C37: 270201.23 | D37: 155000 | E37: 155000 | F37: 37769.4 | G37: 136235.98 | H37: 74072 | I37: 62163.98 | J37: 0.8392372286 | K37: 155000
A38: Performance Bonus | G38: 0 | H38: 0 | I38: 0
A39: Motor Vehicle Allowance | C39: 60000 | D39: 72000 | E39: =D39 -> 72000 | F39: 5325 | G39: 33574.19 | H39: 36000 | I39: =G39-H39 -> -2425.81 | J39: =IF(I39=0,"",I39/H39) -> -0.06738361111 | K39: =E39 -> 72000
A40: Cellphone Allowance | C40: 0 | G40: 0 | H40: 0 | I40: =G40-H40 -> 0 | J40: =IF(I40=0,"",I40/H40) -> 
A41: Housing Allowances | C41: 9354.92 | D41: =7200+17280 -> 24480 | E41: =D41 -> 24480 | F41: 867.91 | G41: 4867.46 | H41: 12240 | I41: =G41-H41 -> -7372.54 | J41: =IF(I41=0,"",I41/H41) -> -0.6023316993 | K41: =E41 -> 24480
A42: Other benefits and allowances | C42: 0 | D42: 277306 | E42: 277306 | F42: 5709.91 | G42: 41403.38 | H42: 138653 | I42: -97249.62 | J42: -0.7013885022 | K42: 277306
A43: Payments in lieu of leave | G43: 0 | H43: 0 | I43: 0
A44: Long service awards | G44: 0 | H44: 0 | I44: 0
A45: Post-retirement benefit obligations | B45: 2 | C45: 219664 | D45: 594394 | E45: =D45 -> 594394 | G45: 0 | H45: 0.02 | I45: -0.02 | J45: -1 | K45: =E45 -> 594394
A46: Sub Total - Other Municipal Staff | C46: =SUM(C34:C45) -> 6852328.865 | D46: 8776047 | E46: 8776047 | F46: =SUM(F34:F45) -> 503684.03 | G46: =SUM(G34:G45) -> 3950321.77 | H46: =SUM(H34:H45) -> 3435957.52 | I46: 514364.25 | J46: =IF(I46=0,"",I46/H46) -> 0.1497004101 | K46: 8776047
A47: % increase | B47: 4 | D47: =IF(D46=0,"",(D46/C46)-1) -> 0.2807393184 | E47: =IF(E46=0,"",(E46/C46)-1) -> 0.2807393184 | K47: =IF(K46=0,"",(K46/C46)-1) -> 0.2807393184
A49: Total Parent Municipality | C49: =C14+C30+C46 -> 12597518.27 | D49: =D14+D30+D46 -> 13860960 | E49: 13860960 | F49: 1087150.88 | G49: 6475375.47 | H49: 5655709.957 | I49: =G49-H49 -> 819665.5133 | J49: =IF(I49=0,"",I49/H49) -> 0.1449270772 | K49: 13860960
D50: =IF(D49=0,"",(D49/C49)-1) -> 0.1002929076 | E50: =IF(E49=0,"",(E49/C49)-1) -> 0.1002929076 | K50: =IF(K49=0,"",(K49/C49)-1) -> 0.1002929076
A51: Unpaid salary, allowances & benefits in arrears:
A53: Board Members of Entities
A54: Basic Salaries and Wages | I54: =G54-H54 -> 0 | J54: =IF(I54=0,"",I54/H54) -> 
A55: Pension and UIF Contributions | I55: 0
A56: Medical Aid Contributions | I56: 0
A57: Overtime | I57: =G57-H57 -> 0 | J57: =IF(I57=0,"",I57/H57) -> 
A58: Performance Bonus | I58: =G58-H58 -> 0 | J58: =IF(I58=0,"",I58/H58) -> 
A59: Motor Vehicle Allowance | I59: =G59-H59 -> 0 | J59: =IF(I59=0,"",I59/H59) -> 
A60: Cellphone Allowance | I60: =G60-H60 -> 0 | J60: =IF(I60=0,"",I60/H60) -> 
A61: Housing Allowances | I61: =G61-H61 -> 0 | J61: =IF(I61=0,"",I61/H61) -> 
A62: Other benefits and allowances | I62: 0
A63: Board Fees | I63: =G63-H63 -> 0 | J63: =IF(I63=0,"",I63/H63) -> 
A64: Payments in lieu of leave | I64: 0
A65: Long service awards | I65: 0
A66: Post-retirement benefit obligations | I66: 0
A67: Sub Total - Board Members of Entities | B67: 2 | C67: =SUM(C54:C66) -> 0 | D67: 0 | E67: 0 | F67: =SUM(F54:F66) -> 0 | G67: =SUM(G54:G66) -> 0 | H67: =SUM(H54:H66) -> 0 | I67: 0 | J67: =IF(I67=0,"",I67/H67) ->  | K67: 0
A68: % increase | B68: 4 | D68: =IF(D67=0,"",(D67/C67)-1) ->  | E68: =IF(E67=0,"",(E67/C67)-1) ->  | K68: =IF(K67=0,"",(K67/C67)-1) -> 
A70: Senior Managers of Entities
A71: Basic Salaries and Wages | I71: =G71-H71 -> 0 | J71: =IF(I71=0,"",I71/H71) -> 
A72: Pension and UIF Contributions | I72: 0
A73: Medical Aid Contributions | I73: 0
A74: Overtime | I74: 0
A75: Performance Bonus | I75: =G75-H75 -> 0 | J75: =IF(I75=0,"",I75/H75) -> 
A76: Motor Vehicle Allowance | I76: =G76-H76 -> 0 | J76: =IF(I76=0,"",I76/H76) -> 
A77: Cellphone Allowance | I77: =G77-H77 -> 0 | J77: =IF(I77=0,"",I77/H77) -> 
A78: Housing Allowances | I78: =G78-H78 -> 0 | J78: =IF(I78=0,"",I78/H78) -> 
A79: Other benefits and allowances | I79: 0
A80: Payments in lieu of leave | I80: 0
A81: Long service awards | I81: 0
A82: Post-retirement benefit obligations | B82: 2 | I82: 0
A83: Sub Total - Senior Managers of Entities | C83: =SUM(C71:C82) -> 0 | D83: 0 | E83: 0 | F83: =SUM(F71:F82) -> 0 | G83: =SUM(G71:G82) -> 0 | H83: =SUM(H71:H82) -> 0 | I83: 0 | J83: =IF(I83=0,"",I83/H83) ->  | K83: 0
A84: % increase | B84: 4 | D84: =IF(D83=0,"",(D83/C83)-1) ->  | E84: =IF(E83=0,"",(E83/C83)-1) ->  | K84: =IF(K83=0,"",(K83/C83)-1) -> 
A86: Other Staff of Entities
A87: Basic Salaries and Wages | I87: =G87-H87 -> 0 | J87: =IF(I87=0,"",I87/H87) -> 
A88: Pension and UIF Contributions | I88: 0
A89: Medical Aid Contributions | I89: =G89-H89 -> 0 | J89: =IF(I89=0,"",I89/H89) -> 
A90: Overtime | I90: =G90-H90 -> 0 | J90: =IF(I90=0,"",I90/H90) -> 
A91: Performance Bonus | I91: =G91-H91 -> 0 | J91: =IF(I91=0,"",I91/H91) -> 
A92: Motor Vehicle Allowance | I92: =G92-H92 -> 0 | J92: =IF(I92=0,"",I92/H92) -> 
A93: Cellphone Allowance | I93: 0
A94: Housing Allowances | I94: 0
A95: Other benefits and allowances | I95: 0
A96: Payments in lieu of leave | I96: 0
A97: Long service awards | I97: 0
A98: Post-retirement benefit obligations | I98: 0
A99: Sub Total - Other Staff of Entities | C99: =SUM(C87:C98) -> 0 | D99: 0 | E99: 0 | F99: 0 | G99: 0 | H99: 0 | I99: 0 | J99: =IF(I99=0,"",I99/H99) ->  | K99: =SUM(K87:K98) -> 0
A100: % increase | B100: 4 | D100: =IF(D99=0,"",(D99/C99)-1) ->  | E100: =IF(E99=0,"",(E99/C99)-1) ->  | K100: =IF(K99=0,"",(K99/C99)-1) -> 
A102: Total Municipal Entities | C102: =C67+C83+C99 -> 0 | D102: 0 | E102: 0 | F102: 0 | G102: 0 | H102: 0 | I102: =G102-H102 -> 0 | J102: =IF(I102=0,"",I102/H102) ->  | K102: =K67+K83+K99 -> 0
A104: TOTAL SALARY, ALLOWANCES & BENEFITS | C104: =C49+C102 -> 12597518.27 | D104: 13860960 | E104: 13860960 | F104: 1087150.88 | G104: 6475375.47 | H104: 5655709.957 | I104: =G104-H104 -> 819665.5133 | J104: =IF(I104=0,"",I104/H104) -> 0.1449270772 | K104: =K49+K102 -> 13860960
A105: % increase | B105: 4 | D105: =IF(D104=0,"",(D104/C104)-1) -> 0.1002929076 | E105: =IF(E104=0,"",(E104/C104)-1) -> 0.1002929076 | K105: =IF(K104=0,"",(K104/C104)-1) -> 0.1002929076
A106: TOTAL MANAGERS AND STAFF | C106: =C30+C46+C83+C99 -> 10909860 | D106: 11979972 | E106: 11979972 | F106: 947599.15 | G106: 5645628.5 | H106: 4889088.54 | I106: 756539.96 | J106: =IF(I106=0,"",I106/H106) -> 0.1547404908 | K106: =K30+K46+K83+K99 -> 11979972
A107: =head27a -> References
A108: 1. Include 'Loans and advances' where applicable if any reportable amounts until phased compliance with s164 of MFMA achieved
A109: 2. If benefits in kind are provided (e.g. provision of living quarters) the full market value must be shown as the cost to the municipality
A110: 3. s57 of the Systems Act
A111: 4. B/A, C/A, D/A
A112: Column Definitions:
A113: A. Audited actual 2005/06 (audited financial statements). If audited amounts unavailable, unaudited amounts must be provided with a note stating these are unaudited
A114: B. The original budget approved by council for the 2006/07 budget year.
A115: C. The budget for 2006/07 budget year as adjusted by council resolution in terms of section 28 of the MFMA.
A116: D. An estimate of final actual amounts (pre audit - 2006/07 budget year) at the time of preparing the budget for the 2007/08 budget year. This may differ from C.

Sheet SC9
A1: =muni& " - "&S71O& " - "&Head57 -> NC074 Kareeberg - Supporting Table SC9 Monthly Budget Statement - actuals and revised targets for cash receipts - Mid-Year Assessment
A2: =desc -> Description | B2: =head27 -> Ref | C2: =Head2 -> Budget Year 2012/13 | O2: ='Template names'!B5 -> 2012/13 Medium Term Revenue & Expenditure Framework
C3: July | D3: August | E3: Sept | F3: October | G3: Nov | H3: Dec | I3: January | J3: Feb | K3: March | L3: April | M3: May | N3: June | O3: =Head9 -> Budget Year 2012/13 | P3: =Head10 -> Budget Year +1 2013/14 | Q3: =Head11 -> Budget Year +2 2014/15
A4: R thousands | B4: 1 | C4: Outcome | D4: Outcome | E4: Outcome | F4: Outcome | G4: Outcome | H4: Outcome | I4: Budget | J4: Budget | K4: Budget | L4: Budget | M4: Budget | N4: Budget
A5: Cash Receipts By Source
A6: Property rates | C6: 267681.54 | D6: 596989.9 | E6: 622826.33 | F6: 1166881.53 | G6: 315655.71 | H6: 168802.11 | I6: 80219.54142 | J6: 328253.8435 | K6: 221242.0173 | L6: 77264.83297 | M6: 50095.84571 | N6: =O6-SUM(C6:M6) -> 177938.5991 | O6: 4073851.8 | P6: 4475364.66 | Q6: 4694104.305
A7: Property rates - penalties & collection charges | C7: 185.02 | D7: 4450.8 | E7: 1450.19 | F7: 9875.52 | G7: 6701.09 | H7: 1813.71 | I7: 3766.051897 | J7: 12193.61601 | K7: 534.7775633 | L7: 0 | M7: 76.11573785 | N7: 129953.1088 | O7: 171000 | P7: 179550 | Q7: 188527.5
A8: Service charges - electricity revenue | C8: =138602.85+114676.55 -> 253279.4 | D8: 271508.65 | E8: 391635.81 | F8: 315272.83 | G8: 324927.15 | H8: 369225.32 | I8: 244801.1654 | J8: 631628.4086 | K8: 720732.1654 | L8: 238459.0461 | M8: 272401.9846 | N8: 2482396.27 | O8: 6516268.2 | P8: 7745175 | Q8: 8661438
A9: Service charges - water revenue | C9: 132900.27 | D9: 269097.18 | E9: 167355.05 | F9: 188815.66 | G9: 155518.93 | H9: 210403.63 | I9: 142940.7006 | J9: 368811.1825 | K9: 420839.3393 | L9: 139237.5035 | M9: 159056.9656 | N9: 844323.7885 | O9: 3199300.2 | P9: 3945118.5 | Q9: 4640966.1
A10: Service charges - sanitation revenue | C10: 115541.4 | D10: 105244.12 | E10: 101775.48 | F10: 182022.35 | G10: 93899.87 | H10: 127083.94 | I10: 89751.80475 | J10: 231574.8355 | K10: 264243.0745 | L10: 87426.5844 | M10: 99871.13297 | N10: 562292.7078 | O10: 2060727.3 | P10: 2326689.9 | Q10: 2771785.8
A11: Service charges - refuse | C11: 168295.9 | D11: 143946.17 | E11: 137155.99 | F11: 143108.61 | G11: 118049.79 | H11: 170695.55 | I11: 120005.0529 | J11: 309633.3324 | K11: 353313.2757 | L11: 116896.0548 | M11: 133535.3716 | N11: 829311.0026 | O11: 2743946.1 | P11: 3184645.5 | Q11: 3682763.1
A12: Service charges - other | N12: 0 | O12: 0 | P12: 0 | Q12: 0
A13: Rental of facilities and equipment | C13: =240+60+36208.85+2495+850+42+10+650+540 -> 41095.85 | D13: 43545.38 | E13: 11789 | F13: 15136.98 | G13: 14405 | H13: 60432.04 | I13: 28932.60023 | J13: 147253.906 | K13: 9829.293823 | L13: 28022 | M13: 8794 | N13: 1437.949992 | O13: 410674 | P13: 431133 | Q13: 452689
A14: Interest earned - external investments | C14: 31873.11 | D14: 55749.53 | E14: 53226.37 | F14: 89126.88 | G14: 3851.94 | H14: 50526.24 | I14: 69948.91393 | J14: 21417.76598 | K14: 62277.97311 | L14: 831761.4115 | M14: 38017.02307 | N14: -10777.15763 | O14: 1297000 | P14: 1361850 | Q14: 1429943
A15: Interest earned - outstanding debtors | C15: 290.62 | D15: 288.17 | E15: 285.69 | F15: 283.21 | G15: 280.72 | H15: 278.22 | I15: 375.505776 | J15: 373.416934 | K15: 371.3183765 | L15: 369.219819 | M15: 367.1212615 | N15: -263.2121671 | O15: 3300 | P15: 3465 | Q15: 3638
A16: Dividends received | N16: 0 | O16: 0 | P16: 0 | Q16: 0
A17: Fines | C17: 47.4 | D17: 389.4 | E17: 317.2 | F17: 1680 | G17: 688.2 | H17: 455.6 | I17: 3248.05665 | J17: 391.5245355 | K17: 802.9854043 | L17: 1083.555373 | M17: 258.859197 | N17: 2867.21884 | O17: 12230 | P17: 12842 | Q17: 13484
A18: Licences and permits | C18: 636 | D18: 429 | E18: 333 | F18: 2307 | G18: 525 | H18: 429 | I18: 378.2409178 | J18: 273.1739962 | K18: 560.3569152 | L18: 1134.722753 | M18: 784.4996813 | N18: -369.9942639 | O18: 7420 | P18: 7791 | Q18: 8181
A19: Agency services | C19: 13672.74 | D19: 9421.3 | E19: 10519.55 | F19: 39924.98 | G19: 11684.79 | H19: 8017.24 | I19: 6310.16145 | J19: 4623.866933 | K19: 8375.313474 | L19: 7371.277795 | M19: 7305.636696 | N19: -30226.85635 | O19: 97000 | P19: 101850 | Q19: 106943
A20: Transfer receipts - operating | C20: =4976000+5500000 -> 10476000 | D20: 800000 | H20: 3980000 | J20: 3016667 | N20: -2366667 | O20: 15906000 | P20: 15167834 | Q20: 16266348
A21: Other revenue | C21: 1982.8 | D21: 22381.91768 | E21: 68189 | F21: 840220.2 | G21: 121199.97 | H21: 257486.46 | I21: 43096.47888 | J21: 31579.60143 | K21: 57200.83758 | L21: 50343.58 | M21: 49895.2713 | N21: 265649.8831 | O21: 1809226 | P21: 1772029 | Q21: 1837293
A22: Cash Receipts by Source | C22: =SUM(C6:C21) -> 11503482.05 | D22: 2323441.518 | E22: 1566858.66 | F22: 2994655.75 | G22: 1167388.16 | H22: 5405649.06 | I22: 833774.2748 | J22: 5104675.474 | K22: 2120322.728 | L22: 1579369.789 | M22: 820459.8274 | N22: 2887866.308 | O22: 38307943.6 | P22: 40715337.56 | Q22: 44758103.81
N23: =O23-SUM(C23:M23) -> 0
A24: Other Cash Flows by Source | N24: 0
A25: Transfer receipts - capital | C25: 4000000 | K25: 4574000 | N25: 1000000 | O25: 9574000 | P25: 10099000 | Q25: 10683000
A26: Contributions & Contributed assets | N26: 0
A27: Proceeds on disposal of PPE | N27: 0
A28: Short term loans | N28: 0
A29: Borrowing long term/refinancing | N29: 0
A30: Increase in consumer deposits | C30: 5630 | D30: 1700 | E30: 2500 | F30: 1700 | G30: 2000 | H30: 1700 | I30: 2416.666667 | J30: 2416.666667 | K30: 2416.666667 | L30: 2416.666667 | M30: 2416.666667 | N30: 1686.666667 | O30: 29000 | P30: 29000 | Q30: 29000
A31: Receipt of non-current debtors | C31: 740.06 | D31: 742.51 | E31: 744.99 | F31: 747.47 | G31: 749.96 | H31: 752.46 | I31: 669.3333333 | J31: 669.3333333 | K31: 669.3333333 | L31: 669.3333333 | M31: 669.3333333 | N31: 207.8833333 | O31: 8032 | P31: 8032 | Q31: 8032
A32: Receipt of non-current receivables | N32: 0
A33: Change in non-current investments | C33: =2954972.2-114676.55 -> 2840295.65 | D33: 4137394.782 | E33: 1377288.88 | F33: 6663910.49 | G33: 3046022.28 | H33: 6695718.82 | N33: -24760630.9
A34: Total Cash Receipts by Source | C34: =SUM(C22:C33) -> 18350147.76 | D34: 6463278.81 | E34: 2947392.53 | F34: 9661013.71 | G34: 4216160.4 | H34: 12103820.34 | I34: 836860.2748 | J34: 5107761.474 | K34: 6697408.728 | L34: 1582455.789 | M34: 823545.8274 | N34: -20870870.04 | O34: 47918975.6 | P34: 50851369.56 | Q34: 55478135.81
N35: =O35-SUM(C35:M35) -> 0
A36: Cash Payments by Type | N36: 0
A37: Employee related costs | C37: =593449.94+128826.72 -> 722276.66 | D37: 1281391.01 | E37: 898819.92 | F37: 907177.67 | G37: 888364.09 | H37: 947599.15 | I37: 774079 | J37: 793315 | K37: 995869 | L37: 1751182 | M37: 802609 | N37: 1217289.7 | O37: 11979972.2 | P37: 12849192.6 | Q37: 13553306.8
A38: Remuneration of councillors | C38: 128826.72 | D38: 142217.26 | E38: 138098.27 | F38: 139667.82 | G38: 141622.77 | H38: 139551.73 | I38: 328616 | J38: 147710 | K38: 148973 | L38: 148973 | M38: 148973 | N38: 127758.43 | O38: 1880988 | P38: 2035395 | Q38: 2238932
A39: Interest paid | C39: 0 | D39: 0 | E39: 0 | F39: 0 | G39: 0 | H39: 0 | I39: 0 | J39: 0 | K39: 0 | L39: 0 | M39: 0 | N39: 0 | O39: 0 | P39: 0 | Q39: 0
A40: Bulk purchases - Electricity | C40: 543446.05 | D40: 933914.1 | E40: 638154.47 | F40: 470353.52 | G40: 490007.11 | H40: 481656.6 | I40: 588966 | J40: 608182 | K40: 572209 | L40: 570801 | M40: 594842 | N40: 507503.15 | O40: 7000035 | P40: 8970602 | Q40: 11033137
A41: Bulk purchases - Water & Sewer | N41: 0
A42: Other materials | C42: 16702.12 | D42: 21872.17 | E42: 18569.94 | F42: 31828.68 | G42: 60115.73 | H42: 68188.63 | I42: 65146 | J42: 34513 | K42: 15386 | L42: 16775 | M42: 38689 | N42: -8586.27 | O42: 379200 | P42: 398311 | Q42: 418235
A43: Contracted services | C43: 20666.11 | D43: 46045.09 | E43: 31646.56 | F43: 30662.47 | G43: 5482.9 | H43: 2359.43 | I43: 73612.05943 | J43: 38998.14274 | K43: 17385.49023 | L43: 18954.99796 | M43: 43716.83552 | N43: 98948.91413 | O43: 428479 | P43: 452913 | Q43: 482052
A44: Grants and subsidies paid - other municipalities | N44: 0
A45: Grants and subsidies paid - other | C45: 4756000 | D45: 0 | E45: 0 | F45: 0 | G45: 0 | H45: 1824951 | I45: 0 | J45: 0 | K45: 2389634.333 | L45: 0 | M45: 0 | N45: -1801682.333 | O45: 7168903 | P45: 7953903 | Q45: 8832903
A46: General expenses | C46: 508492.46 | D46: 211944.26 | E46: 328297.61 | F46: 663297.72 | G46: 663851.12 | H46: 544592.36 | I46: 702405 | J46: 512059 | K46: 934426 | L46: 589182 | M46: =761392+2000 -> 763392 | N46: 2013995.47 | O46: =8433935+2000 -> 8435935 | P46: =8270059+2000 -> 8272059 | Q46: =8729190+2000 -> 8731190
A47: Cash Payments by Type | B47: =SUM(B37:B46) -> 0 | C47: =SUM(C37:C46) -> 6696410.12 | D47: =SUM(D37:D46) -> 2637383.89 | E47: 2053586.77 | F47: 2242987.88 | G47: 2249443.72 | H47: 4008898.9 | I47: 2532824.059 | J47: 2134777.143 | K47: 5073882.824 | L47: 3095867.998 | M47: 2392221.836 | N47: 2155227.061 | O47: 37273512.2 | P47: 40932375.6 | Q47: 45289755.8
N48: =O48-SUM(C48:M48) -> 0
A49: Other Cash Flows/Payments by Type
A50: Capital assets | E50: 166865.53 | K50: 4574000 | N50: =O50-SUM(C50:M50) -> 4833134.47 | O50: 9574000 | P50: 10099000 | Q50: 10683000
A51: Repayment of borrowing | N51: =O51-SUM(C51:M51) -> 0
A52: Other Cash Flows/Payments | C52: 10531773.69 | D52: 4549062.37 | E52: 859229.18 | F52: 7133756.02 | G52: 2440045.98 | H52: 7657535.23 | N52: =O52-SUM(C52:M52) -> -33171402.47
A53: Total Cash Payments by Type | B53: =SUM(B47:B52) -> 0 | C53: 17228183.81 | D53: 7186446.26 | E53: 3079681.48 | F53: 9376743.9 | G53: 4689489.7 | H53: 11666434.13 | I53: 2532824.059 | J53: 2134777.143 | K53: 9647882.824 | L53: 3095867.998 | M53: 2392221.836 | N53: -26183040.94 | O53: 46847512.2 | P53: 51031375.6 | Q53: 55972755.8
N54: =O54-SUM(C54:M54) -> 0
A55: NET INCREASE/(DECREASE) IN CASH HELD | B55: =B34-B53 -> 0 | C55: 1121963.95 | D55: -723167.45 | E55: -132288.95 | F55: 284269.81 | G55: -473329.3 | H55: 437386.21 | I55: -1695963.785 | J55: 2972984.332 | K55: -2950474.095 | L55: -1513412.209 | M55: -1568676.008 | N55: 5312170.895 | O55: 1071463.4 | P55: -180006.04 | Q55: -494619.995
A56: Cash/cash equivalents at the month/year beginning: | C56: 21602265 | D56: =C57 -> 22724228.95 | E56: =D57 -> 22001061.5 | F56: 21868772.55 | G56: 22153042.36 | H56: 21679713.06 | I56: 22117099.27 | J56: 20421135.49 | K56: 23394119.82 | L56: 20443645.72 | M56: 18930233.51 | N56: 17361557.5 | O56: =C56 -> 21602265 | P56: =O57 -> 22673728.4 | Q56: =P57 -> 22493722.36
A57: Cash/cash equivalents at the month/year end: | C57: =C55+C56 -> 22724228.95 | D57: =D55+D56 -> 22001061.5 | E57: =E55+E56 -> 21868772.55 | F57: 22153042.36 | G57: 21679713.06 | H57: 22117099.27 | I57: 20421135.49 | J57: 23394119.82 | K57: 20443645.72 | L57: 18930233.51 | M57: 17361557.5 | N57: 22673728.4 | O57: =O55+O56 -> 22673728.4 | P57: =P55+P56 -> 22493722.36 | Q57: =Q55+Q56 -> 21999102.37
A58: =head27a -> References
A59: 1. Replace 'budget' heading with adjusted budget, or 'outcome' only for month/s complete
A60: 2. Total of monthly amounts must always agree to the approved or adjusted budget
A61: 3. Amend 'cash-at-beginning' when prior year actual known (as part of the adjustments budget)
E66: =E47+E65 -> 2053586.77 | F66: 2242987.88 | G66: 2249443.72 | H66: 4008898.9 | I66: 2532824.059 | J66: 2134777.143 | K66: 5073882.824 | L66: 3095867.998 | N66: =N47+N65 -> 2155227.061 | O66: 37273512.2 | P66: 40932375.6
E67: =E55-E65 -> -132288.95 | F67: 284269.81 | G67: -473329.3 | H67: 437386.21 | I67: -1695963.785 | J67: 2972984.332 | K67: -2950474.095 | L67: -1513412.209 | M67: =M55-M65 -> -1568676.008 | N67: =N55-N65 -> 5312170.895 | O67: 1071463.4 | P67: -180006.04

Sheet SC10
A1: =muni& " - "&S71P& " - "&Head57 -> NC074 Kareeberg - NOT REQUIRED - municipality does not have entities or this is the parent municipality's budget - Mid-Year Assessment
A2: =desc -> Description | B2: =head27 -> Ref | C2: =Head1 -> 2011/12 | D2: =Head2 -> Budget Year 2012/13
C3: =Head5 -> Audited Outcome | D3: =Head6 -> Original Budget | E3: =Head7 -> Adjusted Budget | F3: =Head38 -> Monthly actual | G3: =Head39 -> YearTD actual | H3: =Head40 -> YearTD budget | I3: =Head41 -> YTD variance | J3: =Head41 -> YTD variance | K3: =Head8 -> Full Year Forecast
A4: R thousands | B4: 1 | J4: %
A5: ='C4-FinPerf RE'!A5 -> Revenue By Source
A6: ='C4-FinPerf RE'!A6 -> Property rates | I6: =G6-H6 -> 0 | J6: =IF(I6=0,"",I6/H6) -> 
A7: ='C4-FinPerf RE'!A7 -> Property rates - penalties & collection charges | I7: 0 | J7: =IF(I7=0,"",I7/H7) -> 
A8: ='C4-FinPerf RE'!A8 -> Service charges - electricity revenue | I8: 0
A9: ='C4-FinPerf RE'!A9 -> Service charges - water revenue | I9: 0
A10: ='C4-FinPerf RE'!A10 -> Service charges - sanitation revenue | I10: 0
A11: ='C4-FinPerf RE'!A11 -> Service charges - refuse revenue | I11: 0
A12: ='C4-FinPerf RE'!A12 -> Service charges - other | I12: 0
A13: ='C4-FinPerf RE'!A13 -> Rental of facilities and equipment | I13: 0
A14: ='C4-FinPerf RE'!A14 -> Interest earned - external investments | I14: 0
A15: ='C4-FinPerf RE'!A15 -> Interest earned - outstanding debtors | I15: 0
A16: ='C4-FinPerf RE'!A16 -> Dividends received | I16: 0
A17: ='C4-FinPerf RE'!A17 -> Fines | I17: 0
A18: ='C4-FinPerf RE'!A18 -> Licences and permits | I18: 0
A19: ='C4-FinPerf RE'!A19 -> Agency services | I19: 0
A20: ='C4-FinPerf RE'!A20 -> Transfers recognised - operational | I20: 0
A21: ='C4-FinPerf RE'!A21 -> Other revenue | I21: 0
A22: ='C4-FinPerf RE'!A22 -> Gains on disposal of PPE | I22: 0
A23: Total Revenue (excluding capital transfers and contributions) | C23: =SUM(C6:C22) -> 0 | D23: 0 | E23: 0 | F23: 0 | G23: 0 | H23: 0 | I23: =G23-H23 -> 0 | K23: =SUM(K6:K22) -> 0
A25: Expenditure By Type
A26: ='C4-FinPerf RE'!A26 -> Employee related costs | I26: =G26-H26 -> 0 | J26: =IF(I26=0,"",I26/H26) -> 
A27: ='C4-FinPerf RE'!A27 -> Remuneration of councillors | I27: 0
A28: ='C4-FinPerf RE'!A28 -> Debt impairment | I28: 0
A29: ='C4-FinPerf RE'!A29 -> Depreciation & asset impairment | I29: 0
A30: ='C4-FinPerf RE'!A30 -> Finance charges | I30: 0
A31: ='C4-FinPerf RE'!A31 -> Bulk purchases | I31: 0
A32: ='C4-FinPerf RE'!A32 -> Other materials | I32: 0
A33: ='C4-FinPerf RE'!A33 -> Contracted services | I33: 0
A34: ='C4-FinPerf RE'!A34 -> Transfers and grants | I34: 0
A35: ='C4-FinPerf RE'!A35 -> Other expenditure | I35: 0
A36: ='C4-FinPerf RE'!A36 -> Loss on disposal of PPE | I36: 0
A37: Total Expenditure | C37: =SUM(C26:C36) -> 0 | D37: 0 | E37: 0 | F37: 0 | G37: 0 | H37: 0 | I37: 0 | K37: =SUM(K26:K36) -> 0
I38: 0
A39: ='C4-FinPerf RE'!A39 -> Surplus/(Deficit) | C39: =C23-C37 -> 0 | D39: 0 | E39: 0 | F39: 0 | G39: 0 | H39: 0 | I39: 0 | K39: =K23-K37 -> 0
A40: ='C4-FinPerf RE'!A40 -> Transfers recognised - capital | I40: 0
A41: ='C4-FinPerf RE'!A41 -> Contributions recognised - capital | I41: 0
A42: ='C4-FinPerf RE'!A42 -> Contributed assets | I42: 0
A43: ='C4-FinPerf RE'!A43 -> Surplus/(Deficit) after capital transfers & contributions | C43: =C39+SUM(C40:C42) -> 0 | D43: =D39+SUM(D40:D42) -> 0 | E43: 0 | F43: 0 | G43: 0 | H43: 0 | I43: 0 | K43: 0
A44: ='C4-FinPerf RE'!A44 -> Taxation | I44: 0
A45: ='C4-FinPerf RE'!A45 -> Surplus/(Deficit) after taxation | C45: =C43-C44 -> 0 | D45: 0 | E45: 0 | F45: 0 | G45: 0 | H45: 0 | I45: 0 | K45: =K43-K44 -> 0
A46: =head27a -> References
A47: 1. Votes (consolidated) are revenue sources and expenditure type

Sheet SC11
A1: =muni& " - "&S71Q& " - "&Head57 -> NC074 Kareeberg - NOT REQUIRED - municipality does not have entities or this is the parent municipality's budget - Mid-Year Assessment
A2: =desc -> Description | B2: =head27 -> Ref | C2: =Head1 -> 2011/12 | D2: =Head2 -> Budget Year 2012/13
C3: =Head5 -> Audited Outcome | D3: =Head6 -> Original Budget | E3: =Head7 -> Adjusted Budget | F3: =Head38 -> Monthly actual | G3: =Head39 -> YearTD actual | H3: =Head40 -> YearTD budget | I3: =Head41 -> YTD variance | J3: =Head41 -> YTD variance | K3: =Head8 -> Full Year Forecast
A4: R thousands | J4: %
A5: Revenue By Municipal Entity
A6: Insert name of municipal entity | I6: =G6-H6 -> 0 | J6: =IF(I6=0,"",I6/H6) -> 
I7: 0 | J7: =IF(I7=0,"",I7/H7) -> 
I8: 0
I9: 0
I10: 0
I11: 0
I12: 0
I13: 0
I14: 0
I15: 0
A16: Total Operating Revenue | B16: 1 | C16: =SUM(C6:C15) -> 0 | D16: 0 | E16: 0 | F16: 0 | G16: 0 | H16: 0 | I16: 0 | K16: =SUM(K6:K15) -> 0
A18: Expenditure By Municipal Entity
A19: =A6 -> Insert name of municipal entity | I19: 0 | J19: =IF(I19=0,"",I19/H19) -> 
A20: =IF(A7="","",A7) ->  | I20: 0
A21: =IF(A8="","",A8) ->  | I21: 0
I22: 0
I23: 0
I24: 0
I25: 0
I26: 0
I27: 0
I28: 0
A29: Total Operating Expenditure | B29: 2 | C29: =SUM(C19:C28) -> 0 | D29: 0 | E29: 0 | F29: 0 | G29: 0 | H29: 0 | I29: 0 | K29: =SUM(K19:K28) -> 0
A31: =Head42 -> Surplus/ (Deficit) for the yr/period | C31: =C16-C29 -> 0 | D31: =D16-D29 -> 0 | E31: 0 | F31: 0 | G31: 0 | H31: 0 | I31: =I16+I29 -> 0 | K31: 0
A32: Capital Expenditure By Municipal Entity
A33: =$A$6 -> Insert name of municipal entity | I33: 0
A34: =IF(A7="","",A7) ->  | I34: 0
A35: =IF(A8="","",A8) ->  | I35: 0
I36: 0
I37: 0
I38: 0
I39: 0
I40: 0
I41: 0
A43: Total Capital Expenditure | B43: 3 | C43: =SUM(C32:C42) -> 0 | D43: =SUM(D32:D42) -> 0 | E43: 0 | F43: 0 | G43: 0 | H43: =SUM(H32:H42) -> 0 | I43: =G43-H43 -> 0 | K43: 0
A44: =head27a -> References
A45: 1. Must reconcile to the sum of all municipal entity monthly revenue reports
A46: 2. Must reconcile to the sum of all municipal entity monthly expenditure reports
A47: 3. YTD = Year to date; FAV - favourable variance or unfavourable variance
A48: 4. Material variances to be explained
A49: 5. Insert additional 'Adjustment' Budget column for each Adjustment made by an entity

Sheet SC12
A1: =muni& " - "&S71R& " - "&Head57 -> NC074 Kareeberg - Supporting Table SC12 Monthly Budget Statement - capital expenditure trend - Mid-Year Assessment
A2: Month | B2: =Head1 -> 2011/12 | C2: =Head2 -> Budget Year 2012/13
B3: =Head5 -> Audited Outcome | C3: =Head6 -> Original Budget | D3: =Head7 -> Adjusted Budget | E3: =Head38 -> Monthly actual | F3: =Head39 -> YearTD actual | G3: =Head40 -> YearTD budget | H3: =Head41 -> YTD variance | I3: =Head41 -> YTD variance | J3: % spend of Original Budget
A4: R thousands | I4: %
A5: Monthly expenditure performance trend
A6: July | B6: 2582.34 | C6: 4000000 | D6: =C6 -> 4000000 | E6: 1e-11 | F6: =IF(E6>0,E6,"") -> 1e-11 | G6: =IF(D6>0,D6,C6) -> 4000000 | H6: =IF(F6="",0,G6-F6) -> 4000000 | I6: =IF(F6="","",IF(H6=0,"",H6/G6)) -> 1 | J6: =IF(F6="","",F6/$C$18) -> 1.044495509e-18
A7: August | B7: 1e-06 | E7: 1e-11 | F7: =IF(E7>0,E7+F6,"") -> 2e-11 | G7: =IF(D7>0,D7+D6,C7+C6) -> 4000000 | H7: 4000000 | I7: 1 | J7: 2.088991017e-18
A8: September | B8: 6327.92 | E8: 166865.53 | F8: =IF(E8>0,E8+F7,"") -> 166865.53 | G8: =IF(D8>0,D8+G7,C8+G7) -> 4000000 | H8: 3833134.47 | I8: 0.9582836175 | J8: 0.01742902966
A9: October | B9: 1e-06 | E9: 1e-11 | F9: 166865.53 | G9: =IF(D9>0,D9+G8,C9+G8) -> 4000000 | H9: 3833134.47 | I9: 0.9582836175 | J9: 0.01742902966
A10: November | B10: 42504.86 | C10: 3000000 | D10: =C10 -> 3000000 | E10: 1e-11 | F10: 166865.53 | G10: 7000000 | H10: 6833134.47 | I10: 0.9761620671 | J10: 0.01742902966
A11: December | B11: 137511.24 | E11: 1e-11 | F11: 166865.53 | G11: 7000000 | H11: 6833134.47 | I11: 0.9761620671 | J11: 0.01742902966
A12: January | B12: 1228.07 | G12: 7000000 | H12: 0
A13: February | B13: 1e-06 | G13: 7000000 | H13: 0
A14: March | B14: 1e-06 | C14: 2574000 | D14: =C14 -> 2574000 | G14: 9574000 | H14: 0
A15: April | B15: 347351.33 | G15: 9574000 | H15: 0
A16: May | B16: 10286.88 | G16: 9574000 | H16: 0
A17: June | B17: 9677317.01 | G17: 9574000 | H17: =IF(F17="",0,G17-F17) -> 0 | I17: =IF(F17="","",IF(H17=0,"",H17/G17)) ->  | J17: =IF(F17="","",F17/$C$18) -> 
A18: Total Capital expenditure | B18: =SUM(B6:B17) -> 10225109.65 | C18: =SUM(C6:C17) -> 9574000 | D18: =SUM(D6:D17) -> 9574000 | E18: =SUM(E6:E17) -> 166865.53

Sheet SC13a
A1: =muni& " - "&S71Sa& " - "&Head57 -> NC074 Kareeberg - Supporting Table SC13a Monthly Budget Statement - capital expenditure on new assets by asset class - Mid-Year Assessment
A2: =desc -> Description | B2: =head27 -> Ref | C2: =Head1 -> 2011/12 | D2: =Head2 -> Budget Year 2012/13
C3: =Head5 -> Audited Outcome | D3: =Head6 -> Original Budget | E3: =Head7 -> Adjusted Budget | F3: =Head38 -> Monthly actual | G3: =Head39 -> YearTD actual | H3: =Head40 -> YearTD budget | I3: =Head41 -> YTD variance | J3: =Head41 -> YTD variance | K3: =Head8 -> Full Year Forecast
A4: R thousands | B4: 1 | J4: %
A5: Capital expenditure on new assets by Asset Class/Sub-class
A7: Infrastructure | C7: =C8+C11+C15+C19+C22 -> 2521183.44 | D7: 0 | E7: 0 | F7: 0 | G7: 0 | H7: 0 | I7: =H7-G7 -> 0 | J7: =IF(I7=0,"",I7/H7) ->  | K7: =K8+K11+K15+K19+K22 -> 0
A8: Infrastructure - Road transport | C8: =SUM(C9:C10) -> 265676 | D8: 0 | E8: 0 | F8: 0 | G8: 0 | H8: 0 | I8: 0 | K8: =SUM(K9:K10) -> 0
A9: Roads, Pavements & Bridges | I9: 0
A10: Storm water | C10: 265676 | I10: 0
A11: Infrastructure - Electricity | C11: =SUM(C12:C14) -> 0 | D11: 0 | E11: 0 | F11: 0 | G11: 0 | H11: 0 | I11: 0 | K11: =SUM(K12:K14) -> 0
A12: Generation | I12: 0
A13: Transmission & Reticulation | I13: 0
A14: Street Lighting | I14: 0
A15: Infrastructure - Water | C15: =SUM(C16:C18) -> 0 | D15: 0 | E15: 0 | F15: 0 | G15: 0 | H15: 0 | I15: 0 | K15: =SUM(K16:K18) -> 0
A16: Dams & Reservoirs | I16: 0
A17: Water purification | I17: 0
A18: Reticulation | I18: 0
A19: Infrastructure - Sanitation | C19: =SUM(C20:C21) -> 2255507.44 | D19: 0 | E19: 0 | F19: 0 | G19: 0 | H19: 0 | I19: 0 | K19: =SUM(K20:K21) -> 0
A20: Reticulation | I20: 0
A21: Sewerage purification | C21: 2255507.44 | I21: 0
A22: Infrastructure - Other | C22: =SUM(C23:C26) -> 0 | D22: 0 | E22: 0 | F22: 0 | G22: 0 | H22: 0 | I22: 0 | K22: =SUM(K23:K26) -> 0
A23: Waste Management | I23: 0
A24: Transportation | I24: 0
A25: Gas | I25: 0
A26: Other | I26: 0
A28: Community | C28: =SUM(C29:C42) -> 124350.31 | D28: 0 | E28: 0 | F28: 0 | G28: 0 | H28: 0 | I28: 0 | K28: =SUM(K29:K42) -> 0
A29: Parks & gardens | I29: 0
A30: Sportsfields & stadia | I30: 0
A31: Swimming pools | I31: 0
A32: Community halls | I32: 0
A33: Libraries | C33: 124350.31 | I33: 0
A34: Recreational facilities | I34: 0
A35: Fire, safety & emergency | I35: 0
A36: Security and policing | I36: 0
A37: Buses | I37: 0
A38: Clinics | I38: 0
A39: Museums & Art Galleries | I39: 0
A40: Cemeteries | I40: 0
A41: Social rental housing | I41: =H41-G41 -> 0 | J41: =IF(I41=0,"",I41/H41) -> 
A42: Other | I42: 0
A43: Heritage assets | C43: =SUM(C44:C45) -> 0 | D43: 0 | E43: 0 | F43: 0 | G43: 0 | H43: 0 | I43: 0 | K43: =SUM(K44:K45) -> 0
A44: Buildings | I44: 0
A45: Other | I45: 0
I46: 0
A47: Investment properties | C47: =SUM(C48:C49) -> 0 | D47: 0 | E47: 0 | F47: 0 | G47: 0 | H47: 0 | I47: 0 | K47: =SUM(K48:K49) -> 0
A48: Housing development | I48: 0
A49: Other | I49: 0
A50: Other assets | C50: =SUM(C51:C62) -> 228248.86 | D50: 0 | E50: 0 | F50: 0 | G50: 166865.53 | H50: 0 | I50: -166865.53 | K50: 0
A51: General vehicles | G51: =F51+166865.53 -> 166865.53 | I51: -166865.53
A52: Specialised vehicles | C52: =C78 -> 0 | D52: 0 | E52: 0 | F52: 0 | G52: 0 | H52: 0 | I52: 0 | K52: =K78 -> 0
A53: Plant & equipment | C53: 15876.67 | I53: 0
A54: Computers - hardware/equipment | C54: 60847.37 | I54: 0
A55: Furniture and other office equipment | C55: 30227.92 | I55: 0
A56: Abattoirs | I56: 0
A57: Markets | I57: 0
A58: Civic Land and Buildings | I58: 0
A59: Other Buildings | C59: 121296.9 | I59: 0
A60: Other Land | I60: 0
A61: Surplus Assets - (Investment or Inventory) | I61: 0
A62: Other | I62: 0
A64: Agricultural assets | C64: =SUM(C65:C66) -> 0 | D64: 0 | E64: 0 | F64: 0 | G64: 0 | H64: 0 | I64: =H64-G64 -> 0 | K64: =SUM(K65) -> 0
A65: List sub-class | I65: =H65-G65 -> 0
I66: =H66-G66 -> 0
J67: =IF(I67=0,"",I67/H67) -> 
A68: Biological assets | C68: =SUM(C69:C70) -> 0 | D68: 0 | E68: 0 | F68: 0 | G68: 0 | H68: 0 | I68: =H68-G68 -> 0 | J68: =IF(I68=0,"",I68/H68) ->  | K68: =SUM(K69) -> 0
A69: List sub-class | I69: =H69-G69 -> 0 | J69: =IF(I69=0,"",I69/H69) -> 
I70: =H70-G70 -> 0 | J70: =IF(I70=0,"",I70/H70) -> 
A72: Intangibles | C72: =SUM(C73:C74) -> 5039.16 | D72: 0 | E72: 0 | F72: 0 | G72: 0 | H72: 0 | I72: =H72-G72 -> 0 | J72: =IF(I72=0,"",I72/H72) ->  | K72: =SUM(K73:K74) -> 0
A73: Computers - software & programming | C73: 5039.16 | I73: =H73-G73 -> 0 | J73: =IF(I73=0,"",I73/H73) -> 
A74: Other | I74: =H74-G74 -> 0 | J74: =IF(I74=0,"",I74/H74) -> 
A76: Total Capital Expenditure on new assets | B76: 1 | C76: =C7+C28+C43+C47+C50+C64+C68+C72 -> 2878821.77 | D76: 0 | E76: 0 | F76: 0 | G76: 166865.53 | H76: 0 | I76: -166865.53 | K76: =K7+K28+K43+K47+K50+K64+K68+K72 -> 0
A78: Specialised vehicles | C78: =SUM(C79:C82) -> 0 | D78: 0 | E78: 0 | F78: 0 | G78: 0 | H78: 0 | I78: =H78-G78 -> 0 | J78: =IF(I78=0,"",I78/H78) ->  | K78: 0
A79: Refuse | I79: =H79-G79 -> 0 | J79: =IF(I79=0,"",I79/H79) -> 
A80: Fire | I80: =H80-G80 -> 0 | J80: =IF(I80=0,"",I80/H80) -> 
A81: Conservancy | I81: =H81-G81 -> 0 | J81: =IF(I81=0,"",I81/H81) -> 
A82: Ambulances | I82: =H82-G82 -> 0 | J82: =IF(I82=0,"",I82/H82) -> 
A83: =head27a -> References
A84: 1. Total Capital Expenditure on new assets (SC13a) plus Total Capital Expenditure on renewal of existing assets (SC13b) must reconcile to total capital expenditure in Table C5
A86: check balance | C86: =C76+SC13b!C76-'C5-Capex'!C40 -> 0.1199999992 | D86: =D76+SC13b!D76-'C5-Capex'!D40 -> 0 | E86: =E76+SC13b!E76-'C5-Capex'!E40 -> 0 | F86: =F76+SC13b!F76-'C5-Capex'!F40 -> 0 | G86: =G76+SC13b!G76-'C5-Capex'!G40 -> 0 | H86: =H76+SC13b!H76-'C5-Capex'!H40 -> 0 | K86: =K76+SC13b!K76-'C5-Capex'!K40 -> 0

Sheet SC13b
A1: =muni& " - "&S71Sb& " - "&Head57 -> NC074 Kareeberg - Supporting Table SC13b Monthly Budget Statement - capital expenditure on renewal of existing assets by asset class - Mid-Year Assessment
A2: =desc -> Description | B2: =head27 -> Ref | C2: =Head1 -> 2011/12 | D2: =Head2 -> Budget Year 2012/13
C3: =Head5 -> Audited Outcome | D3: =Head6 -> Original Budget | E3: =Head7 -> Adjusted Budget | F3: =Head38 -> Monthly actual | G3: =Head39 -> YearTD actual | H3: =Head40 -> YearTD budget | I3: =Head41 -> YTD variance | J3: =Head41 -> YTD variance | K3: =Head8 -> Full Year Forecast
A4: R thousands | B4: 1 | J4: %
A5: Capital expenditure on renewal of existing assets by Asset Class/Sub-class
A7: Infrastructure | C7: =C8+C11+C15+C19+C22 -> 7346288 | D7: 9574000 | E7: 9574000 | F7: 0 | G7: 0 | H7: 5000000 | I7: =H7-G7 -> 5000000 | J7: =IF(I7=0,"",I7/H7) -> 1 | K7: =K8+K11+K15+K19+K22 -> 9574000
A8: Infrastructure - Road transport | C8: =SUM(C9:C10) -> 7346288 | D8: 9574000 | E8: 9574000 | F8: 0 | G8: 0 | H8: 5000000 | I8: 5000000 | J8: 1 | K8: =SUM(K9:K10) -> 9574000
A9: Roads, Pavements & Bridges | C9: 7346288 | D9: 9574000 | E9: 9574000 | F9: 0 | G9: =F9 -> 0 | H9: 5000000 | I9: 5000000 | J9: 1 | K9: =E9 -> 9574000
A10: Storm water | I10: 0
A11: Infrastructure - Electricity | C11: =SUM(C12:C14) -> 0 | D11: 0 | E11: 0 | F11: 0 | G11: 0 | H11: 0 | I11: 0 | K11: =SUM(K12:K14) -> 0
A12: Generation | I12: 0
A13: Transmission & Reticulation | I13: 0
A14: Street Lighting | I14: 0
A15: Infrastructure - Water | C15: =SUM(C16:C18) -> 0 | D15: 0 | E15: 0 | F15: 0 | G15: 0 | H15: 0 | I15: 0 | K15: =SUM(K16:K18) -> 0
A16: Dams & Reservoirs | I16: 0
A17: Water purification | I17: 0
A18: Reticulation | I18: 0
A19: Infrastructure - Sanitation | C19: =SUM(C20:C21) -> 0 | D19: 0 | E19: 0 | F19: 0 | G19: 0 | H19: 0 | I19: 0 | K19: =SUM(K20:K21) -> 0
A20: Reticulation | I20: 0
A21: Sewerage purification | I21: 0
A22: Infrastructure - Other | C22: =SUM(C23:C26) -> 0 | D22: 0 | E22: 0 | F22: 0 | G22: 0 | H22: 0 | I22: 0 | K22: =SUM(K23:K26) -> 0
A23: Waste Management | I23: 0
A24: Transportation | I24: 0
A25: Gas | I25: 0
A26: Other | I26: 0
A28: Community | C28: =SUM(C29:C42) -> 0 | D28: 0 | E28: 0 | F28: 0 | G28: 0 | H28: 0 | I28: 0 | K28: =SUM(K29:K42) -> 0
A29: Parks & gardens | I29: 0
A30: Sportsfields & stadia | I30: 0
A31: Swimming pools | I31: 0
A32: Community halls | I32: 0
A33: Libraries | I33: 0
A34: Recreational facilities | I34: 0
A35: Fire, safety & emergency | I35: 0
A36: Security and policing | I36: 0
A37: Buses | I37: 0
A38: Clinics | I38: 0
A39: Museums & Art Galleries | I39: 0
A40: Cemeteries | I40: 0
A41: Social rental housing | I41: 0
A42: Other | I42: 0
A43: Heritage assets | C43: =SUM(C44:C45) -> 0 | D43: 0 | E43: 0 | F43: 0 | G43: 0 | H43: 0 | I43: 0 | K43: =SUM(K44:K45) -> 0
A44: Buildings | I44: 0
A45: Other | I45: 0
I46: 0
A47: Investment properties | C47: =SUM(C48:C49) -> 0 | D47: 0 | E47: 0 | F47: 0 | G47: 0 | H47: 0 | I47: 0 | K47: =SUM(K48:K49) -> 0
A48: Housing development | I48: 0
A49: Other | I49: 0
A50: Other assets | C50: =SUM(C51:C62) -> 0 | D50: 0 | E50: 0 | F50: 0 | G50: 0 | H50: 0 | I50: 0 | K50: 0
A51: General vehicles | I51: 0
A52: Specialised vehicles | C52: =C78 -> 0 | D52: 0 | E52: 0 | F52: 0 | G52: 0 | H52: 0 | I52: 0 | K52: =K78 -> 0
A53: Plant & equipment | I53: 0
A54: Computers - hardware/equipment | I54: 0
A55: Furniture and other office equipment | I55: 0
A56: Abattoirs | I56: 0
A57: Markets | I57: 0
A58: Civic Land and Buildings | I58: 0
A59: Other Buildings | I59: 0
A60: Other Land | I60: 0
A61: Surplus Assets - (Investment or Inventory) | I61: 0
A62: Other | I62: 0
A64: Agricultural assets | C64: =SUM(C65:C66) -> 0 | D64: 0 | E64: 0 | F64: 0 | G64: 0 | H64: 0 | I64: =H64-G64 -> 0 | K64: =SUM(K65) -> 0
A65: List sub-class | I65: =H65-G65 -> 0
I66: =H66-G66 -> 0
J67: =IF(I67=0,"",I67/H67) -> 
A68: Biological assets | C68: =SUM(C69:C70) -> 0 | D68: 0 | E68: 0 | F68: 0 | G68: 0 | H68: 0 | I68: =H68-G68 -> 0 | J68: =IF(I68=0,"",I68/H68) ->  | K68: =SUM(K69) -> 0
A69: List sub-class | I69: =H69-G69 -> 0 | J69: =IF(I69=0,"",I69/H69) -> 
I70: =H70-G70 -> 0 | J70: =IF(I70=0,"",I70/H70) -> 
A72: Intangibles | C72: =SUM(C73:C74) -> 0 | D72: 0 | E72: 0 | F72: 0 | G72: 0 | H72: 0 | I72: =H72-G72 -> 0 | J72: =IF(I72=0,"",I72/H72) ->  | K72: =SUM(K73:K74) -> 0
A73: Computers - software & programming | I73: =H73-G73 -> 0 | J73: =IF(I73=0,"",I73/H73) -> 
A74: Other | I74: =H74-G74 -> 0 | J74: =IF(I74=0,"",I74/H74) -> 
A76: Total Capital Expenditure on renewal of existing assets | B76: 1 | C76: =C7+C28+C43+C47+C50+C64+C68+C72 -> 7346288 | D76: 9574000 | E76: 9574000 | F76: 0 | G76: 0 | H76: 5000000 | I76: =H76-G76 -> 5000000 | J76: =IF(I76=0,"",I76/H76) -> 1 | K76: =K7+K28+K43+K47+K50+K64+K68+K72 -> 9574000
A78: Specialised vehicles | C78: =SUM(C79:C82) -> 0 | D78: 0 | E78: 0 | F78: 0 | G78: 0 | H78: 0 | I78: =H78-G78 -> 0 | J78: =IF(I78=0,"",I78/H78) ->  | K78: 0
A79: Refuse | I79: =H79-G79 -> 0 | J79: =IF(I79=0,"",I79/H79) -> 
A80: Fire | I80: =H80-G80 -> 0 | J80: =IF(I80=0,"",I80/H80) -> 
A81: Conservancy | I81: =H81-G81 -> 0 | J81: =IF(I81=0,"",I81/H81) -> 
A82: Ambulances | I82: =H82-G82 -> 0 | J82: =IF(I82=0,"",I82/H82) -> 
A83: =head27a -> References
A84: 1. Total Capital Expenditure on new assets (SC13a) plus Total Capital Expenditure on renewal of existing assets (SC13b) must reconcile to total capital expenditure in Table C5
A86: check balance | C86: =C76+SC13a!C76-'C5-Capex'!C40 -> 0.1199999992 | D86: =D76+SC13a!D76-'C5-Capex'!D40 -> 0 | E86: =E76+SC13a!E76-'C5-Capex'!E40 -> 0 | F86: =F76+SC13a!F76-'C5-Capex'!F40 -> 0 | G86: =G76+SC13a!G76-'C5-Capex'!G40 -> 0 | H86: =H76+SC13a!H76-'C5-Capex'!H40 -> 0 | K86: =K76+SC13a!K76-'C5-Capex'!K40 -> 0

Sheet SC13c
A1: =muni& " - "&S71Sc& " - "&Head57 -> NC074 Kareeberg - Supporting Table SC13c Monthly Budget Statement - expenditure on repairs and maintenance by asset class - Mid-Year Assessment
A2: =desc -> Description | B2: =head27 -> Ref | C2: =Head1 -> 2011/12 | D2: =Head2 -> Budget Year 2012/13
C3: =Head5 -> Audited Outcome | D3: =Head6 -> Original Budget | E3: =Head7 -> Adjusted Budget | F3: =Head38 -> Monthly actual | G3: =Head39 -> YearTD actual | H3: =Head40 -> YearTD budget | I3: =Head41 -> YTD variance | J3: =Head41 -> YTD variance | K3: =Head8 -> Full Year Forecast
A4: R thousands | B4: 1 | J4: %
A5: Repairs and maintenance expenditure by Asset Class/Sub-class
A7: Infrastructure | C7: =C8+C11+C15+C19+C22 -> 0 | D7: 317000 | E7: 317000 | F7: 54473.05 | G7: 144826.43 | H7: 176107 | I7: =H7-G7 -> 31280.57 | J7: =IF(I7=0,"",I7/H7) -> 0.1776225249 | K7: =K8+K11+K15+K19+K22 -> 317000
A8: Infrastructure - Road transport | C8: =SUM(C9:C10) -> 0 | D8: 53000 | E8: 53000 | F8: 5373.72 | G8: 24889.29 | H8: 38642 | I8: 13752.71 | J8: 0.3559005745 | K8: =SUM(K9:K10) -> 53000
A9: Roads, Pavements & Bridges | D9: 53000 | E9: =D9 -> 53000 | F9: 5373.72 | G9: 24889.29 | H9: 38642 | I9: 13752.71 | J9: 0.3559005745 | K9: =E9 -> 53000
A10: Storm water | I10: 0
A11: Infrastructure - Electricity | C11: =SUM(C12:C14) -> 0 | D11: 91000 | E11: 91000 | F11: 41529.28 | G11: 82408.02 | H11: 47534 | I11: -34874.02 | J11: -0.7336647452 | K11: =SUM(K12:K14) -> 91000
A12: Generation | I12: 0
A13: Transmission & Reticulation | D13: 91000 | E13: =D13 -> 91000 | F13: 41529.28 | G13: 82408.02 | H13: 47534 | I13: -34874.02 | J13: -0.7336647452 | K13: =E13 -> 91000
A14: Street Lighting | I14: 0
A15: Infrastructure - Water | C15: =SUM(C16:C18) -> 0 | D15: 85000 | E15: 85000 | F15: 6234.86 | G15: 35999.23 | H15: 41584 | I15: 5584.77 | J15: 0.1343009331 | K15: =SUM(K16:K18) -> 85000
A16: Dams & Reservoirs | D16: 85000 | E16: =D16 -> 85000 | F16: 6234.86 | G16: 35999.23 | H16: 41584 | I16: 5584.77 | J16: 0.1343009331 | K16: =E16 -> 85000
A17: Water purification | I17: 0
A18: Reticulation | I18: 0
A19: Infrastructure - Sanitation | C19: =SUM(C20:C21) -> 0 | D19: 80000 | E19: 80000 | F19: 516.19 | G19: 596.19 | H19: 47015 | I19: 46418.81 | J19: 0.9873191535 | K19: =SUM(K20:K21) -> 80000
A20: Reticulation | D20: 80000 | E20: =D20 -> 80000 | F20: 516.19 | G20: 596.19 | H20: 47015 | I20: 46418.81 | J20: 0.9873191535 | K20: =E20 -> 80000
A21: Sewerage purification | I21: 0
A22: Infrastructure - Other | C22: =SUM(C23:C26) -> 0 | D22: 8000 | E22: 8000 | F22: 819 | G22: 933.7 | H22: 1332 | I22: 398.3 | J22: 0.299024024 | K22: =SUM(K23:K26) -> 8000
A23: Waste Management | I23: 0
A24: Transportation | D24: 8000 | E24: =D24 -> 8000 | F24: 819 | G24: 933.7 | H24: 1332 | I24: 398.3 | J24: 0.299024024 | K24: =E24 -> 8000
A25: Gas | I25: 0
A26: Other | I26: 0
A28: Community | C28: =SUM(C29:C42) -> 0 | D28: 70400 | E28: 70400 | F28: 545.45 | G28: 16921.75 | H28: 34534 | I28: 17612.25 | J28: 0.5099973939 | K28: =SUM(K29:K42) -> 70400
A29: Parks & gardens | D29: 18600 | E29: =D29 -> 18600 | F29: 255.95 | G29: 10217.97 | H29: 9300 | I29: -917.97 | J29: -0.09870645161 | K29: =E29 -> 18600
A30: Sportsfields & stadia | H30: 0 | I30: 0
A31: Swimming pools | D31: 12000 | E31: =D31 -> 12000 | F31: 191 | G31: 4641.69 | H31: 6000 | I31: 1358.31 | J31: 0.226385 | K31: =E31 -> 12000
A32: Community halls | H32: 0 | I32: 0
A33: Libraries | D33: 12000 | E33: =D33 -> 12000 | F33: 98.5 | G33: 511.09 | H33: 5334 | I33: 4822.91 | J33: 0.9041826022 | K33: =E33 -> 12000
A34: Recreational facilities | D34: 9500 | E34: 9500 | G34: 0 | H34: 4750 | I34: 4750 | J34: 1 | K34: 9500
A35: Fire, safety & emergency | D35: 3000 | E35: 3000 | G35: 0 | H35: 1500 | I35: 1500 | J35: 1 | K35: 3000
A36: Security and policing | D36: 3300 | E36: 3300 | G36: 0 | H36: 1650 | I36: 1650 | J36: 1 | K36: 3300
A37: Buses | H37: 0 | I37: 0
A38: Clinics | D38: 3000 | E38: =D38 -> 3000 | G38: 463 | H38: 1500 | I38: 1037 | J38: 0.6913333333 | K38: =E38 -> 3000
A39: Museums & Art Galleries | D39: 4000 | E39: 4000 | G39: 0 | H39: 2000 | I39: 2000 | J39: 1 | K39: 4000
A40: Cemeteries | D40: 5000 | E40: 5000 | G40: 1088 | H40: 2500 | I40: 1412 | J40: 0.5648 | K40: 5000
A41: Social rental housing | H41: 0 | I41: 0
A42: Other | H42: 0 | I42: 0
A43: Heritage assets | C43: =SUM(C44:C45) -> 0 | D43: 0 | E43: 0 | F43: 0 | G43: 0 | H43: 0 | I43: 0 | K43: =SUM(K44:K45) -> 0
A44: Buildings | I44: 0
A45: Other | I45: 0
I46: 0
A47: Investment properties | C47: =SUM(C48:C49) -> 0 | D47: 0 | E47: 0 | F47: 0 | G47: 0 | H47: 0 | I47: 0 | K47: =SUM(K48:K49) -> 0
A48: Housing development | I48: 0
A49: Other | I49: 0
A50: Other assets | C50: =SUM(C51:C62) -> 0 | D50: 420279 | E50: 420279 | F50: 15529.56 | G50: 192391.65 | H50: 214191.5 | I50: 21799.85 | J50: 0.1017773815 | K50: 420279
A51: General vehicles | D51: 70000 | E51: =D51 -> 70000 | F51: 4057.87 | G51: 59695.54 | H51: 42879 | I51: -16816.54 | J51: -0.3921859185 | K51: =E51 -> 70000
A52: Specialised vehicles | C52: =C78 -> 0 | D52: 155800 | E52: 155800 | F52: 0 | G52: 40790.66 | H52: 69328 | I52: 28537.34 | J52: 0.4116279137 | K52: =K78 -> 155800
A53: Plant & equipment | D53: 8700 | E53: =D53 -> 8700 | G53: 11992.26 | H53: 4350 | I53: -7642.26 | J53: -1.756841379 | K53: =E53 -> 8700
A54: Computers - hardware/equipment | D54: 90000 | E54: 90000 | F54: 10481.01 | G54: 62199.34 | H54: 50437 | I54: -11762.34 | J54: -0.2332085572 | K54: 90000
A55: Furniture and other office equipment | D55: 46779 | E55: 46779 | G55: 0 | H55: 26057.5 | I55: 26057.5 | J55: 1 | K55: 46779
A56: Abattoirs | H56: 0 | I56: 0
A57: Markets | H57: 0 | I57: 0
A58: Civic Land and Buildings | D58: 49000 | E58: =D58 -> 49000 | F58: 990.68 | G58: 17713.85 | H58: 21140 | I58: 3426.15 | J58: 0.1620695364 | K58: =E58 -> 49000
A59: Other Buildings | I59: 0
A60: Other Land | I60: 0
A61: Surplus Assets - (Investment or Inventory) | I61: 0
A62: Other | I62: 0
A64: Agricultural assets | C64: =SUM(C65:C66) -> 0 | D64: 0 | E64: 0 | F64: 0 | G64: 0 | H64: 0 | I64: =H64-G64 -> 0 | K64: =SUM(K65) -> 0
A65: List sub-class | I65: =H65-G65 -> 0
I66: =H66-G66 -> 0
J67: =IF(I67=0,"",I67/H67) -> 
A68: Biological assets | C68: =SUM(C69:C70) -> 0 | D68: 0 | E68: 0 | F68: 0 | G68: 0 | H68: 0 | I68: =H68-G68 -> 0 | J68: =IF(I68=0,"",I68/H68) ->  | K68: =SUM(K69) -> 0
A69: List sub-class | I69: =H69-G69 -> 0 | J69: =IF(I69=0,"",I69/H69) -> 
I70: =H70-G70 -> 0 | J70: =IF(I70=0,"",I70/H70) -> 
A72: Intangibles | C72: =SUM(C73:C74) -> 0 | D72: 0 | E72: 0 | F72: 0 | G72: 0 | H72: 0 | I72: =H72-G72 -> 0 | J72: =IF(I72=0,"",I72/H72) ->  | K72: =SUM(K73:K74) -> 0
A73: Computers - software & programming | I73: =H73-G73 -> 0 | J73: =IF(I73=0,"",I73/H73) -> 
A74: Other | I74: =H74-G74 -> 0 | J74: =IF(I74=0,"",I74/H74) -> 
A76: Total Repairs and Maintenance Expenditure | C76: =C7+C28+C43+C47+C50+C64+C68+C72 -> 0 | D76: 807679 | E76: 807679 | F76: 70548.06 | G76: 354139.83 | H76: 424832.5 | I76: =H76-G76 -> 70692.67 | J76: =IF(I76=0,"",I76/H76) -> 0.1664012758 | K76: =K7+K28+K43+K47+K50+K64+K68+K72 -> 807679
A78: Specialised vehicles | C78: =SUM(C79:C82) -> 0 | D78: 155800 | E78: 155800 | F78: 0 | G78: 40790.66 | H78: 69328 | I78: =H78-G78 -> 28537.34 | J78: =IF(I78=0,"",I78/H78) -> 0.4116279137 | K78: 155800
A79: Refuse | D79: 155800 | E79: =D79 -> 155800 | G79: 40790.66 | H79: 69328 | I79: =H79-G79 -> 28537.34 | J79: =IF(I79=0,"",I79/H79) -> 0.4116279137 | K79: =E79 -> 155800
A80: Fire | I80: =H80-G80 -> 0 | J80: =IF(I80=0,"",I80/H80) -> 
A81: Conservancy | I81: =H81-G81 -> 0 | J81: =IF(I81=0,"",I81/H81) -> 
A82: Ambulances | I82: =H82-G82 -> 0 | J82: =IF(I82=0,"",I82/H82) -> 

Sheet SC13d
A1: =muni& " - "&S71Sd& " - "&Head57 -> NC074 Kareeberg - Supporting Table SC13d Monthly Budget Statement - depreciation by asset class - Mid-Year Assessment
A2: =desc -> Description | B2: =head27 -> Ref | C2: =Head1 -> 2011/12 | D2: =Head2 -> Budget Year 2012/13
C3: =Head5 -> Audited Outcome | D3: =Head6 -> Original Budget | E3: =Head7 -> Adjusted Budget | F3: =Head38 -> Monthly actual | G3: =Head39 -> YearTD actual | H3: =Head40 -> YearTD budget | I3: =Head41 -> YTD variance | J3: =Head41 -> YTD variance | K3: =Head8 -> Full Year Forecast
A4: R thousands | B4: 1 | J4: %
A5: Repairs and maintenance expenditure by Asset Class/Sub-class
A7: Infrastructure | C7: =C8+C11+C15+C19+C22 -> 0 | D7: 2121182.44 | E7: 2121182.44 | F7: 0 | G7: 0 | H7: 0 | I7: =H7-G7 -> 0 | J7: =IF(I7=0,"",I7/H7) ->  | K7: =K8+K11+K15+K19+K22 -> 2121182.44
A8: Infrastructure - Road transport | C8: =SUM(C9:C10) -> 0 | D8: 752699.11 | E8: 752699.11 | F8: 0 | G8: 0 | H8: 0 | I8: 0 | K8: =SUM(K9:K10) -> 752699.11
A9: Roads, Pavements & Bridges | D9: 745571.44 | E9: =D9 -> 745571.44 | G9: =F9 -> 0 | I9: 0 | K9: =E9 -> 745571.44
A10: Storm water | D10: 7127.67 | E10: =D10 -> 7127.67 | G10: =F10 -> 0 | I10: 0 | K10: =E10 -> 7127.67
A11: Infrastructure - Electricity | C11: =SUM(C12:C14) -> 0 | D11: 191114.18 | E11: 191114.18 | F11: 0 | G11: 0 | H11: 0 | I11: 0 | K11: =SUM(K12:K14) -> 191114.18
A12: Generation | I12: 0
A13: Transmission & Reticulation | D13: 191114.18 | E13: =D13 -> 191114.18 | G13: =F13 -> 0 | I13: 0 | K13: =E13 -> 191114.18
A14: Street Lighting | I14: 0
A15: Infrastructure - Water | C15: =SUM(C16:C18) -> 0 | D15: 507132.59 | E15: 507132.59 | F15: 0 | G15: 0 | H15: 0 | I15: 0 | K15: =SUM(K16:K18) -> 507132.59
A16: Dams & Reservoirs | I16: 0
A17: Water purification | I17: 0
A18: Reticulation | D18: 507132.59 | E18: =D18 -> 507132.59 | G18: =F18 -> 0 | I18: 0 | K18: =E18 -> 507132.59
A19: Infrastructure - Sanitation | C19: =SUM(C20:C21) -> 0 | D19: 593503.47 | E19: 593503.47 | F19: 0 | G19: 0 | H19: 0 | I19: 0 | K19: =SUM(K20:K21) -> 593503.47
A20: Reticulation | I20: 0
A21: Sewerage purification | D21: 593503.47 | E21: =D21 -> 593503.47 | G21: =F21 -> 0 | I21: 0 | K21: =E21 -> 593503.47
A22: Infrastructure - Other | C22: =SUM(C23:C26) -> 0 | D22: 76733.09 | E22: 76733.09 | F22: 0 | G22: 0 | H22: 0 | I22: 0 | K22: =SUM(K23:K26) -> 76733.09
A23: Waste Management | D23: 76733.09 | E23: =D23 -> 76733.09 | G23: =F23 -> 0 | I23: 0 | K23: =E23 -> 76733.09
A24: Transportation | I24: 0
A25: Gas | I25: 0
A26: Other | I26: 0
A28: Community | C28: =SUM(C29:C42) -> 0 | D28: 102676.73 | E28: 102676.73 | F28: 0 | G28: 0 | H28: 0 | I28: 0 | K28: =SUM(K29:K42) -> 102676.73
A29: Parks & gardens | D29: 1372.76 | E29: =D29 -> 1372.76 | G29: =F29 -> 0 | I29: 0 | K29: =E29 -> 1372.76
A30: Sportsfields & stadia | I30: 0
A31: Swimming pools | I31: 0
A32: Community halls | I32: 0
A33: Libraries | D33: 27888.98 | E33: =D33 -> 27888.98 | G33: =F33 -> 0 | I33: 0 | K33: =E33 -> 27888.98
A34: Recreational facilities | D34: 42697.74 | E34: 42697.74 | G34: 0 | I34: 0 | K34: 42697.74
A35: Fire, safety & emergency | I35: 0
A36: Security and policing | I36: 0
A37: Buses | I37: 0
A38: Clinics | D38: 15074.52 | E38: =D38 -> 15074.52 | G38: =F38 -> 0 | I38: 0 | K38: =E38 -> 15074.52
A39: Museums & Art Galleries | D39: 15041.09 | E39: 15041.09 | G39: 0 | I39: 0 | K39: 15041.09
A40: Cemeteries | D40: 601.64 | E40: 601.64 | G40: 0 | I40: 0 | K40: 601.64
A41: Social rental housing | I41: 0
A42: Other | I42: 0
A43: Heritage assets | C43: =SUM(C44:C45) -> 0 | D43: 12363.8 | E43: 12363.8 | F43: 0 | G43: 0 | H43: 0 | I43: 0 | K43: =SUM(K44:K45) -> 12363.8
A44: Buildings | I44: 0
A45: Other | D45: 12363.8 | E45: =D45 -> 12363.8 | G45: =F45 -> 0 | I45: 0 | K45: =E45 -> 12363.8
I46: 0
A47: Investment properties | C47: =SUM(C48:C49) -> 0 | D47: 0 | E47: 0 | F47: 0 | G47: 0 | H47: 0 | I47: 0 | K47: =SUM(K48:K49) -> 0
A48: Housing development | I48: 0
A49: Other | I49: 0
A50: Other assets | C50: =SUM(C51:C62) -> 0 | D50: 831401.56 | E50: 831401.56 | F50: 0 | G50: 0 | H50: 0 | I50: 0 | K50: 831401.56
A51: General vehicles | D51: 355353.34 | E51: =D51 -> 355353.34 | G51: =F51 -> 0 | I51: 0 | K51: =E51 -> 355353.34
A52: Specialised vehicles | C52: =C78 -> 0 | D52: 43135.01 | E52: 43135.01 | F52: 0 | G52: 0 | H52: 0 | I52: 0 | K52: =K78 -> 43135.01
A53: Plant & equipment | D53: 124049.34 | E53: =D53 -> 124049.34 | G53: =F53 -> 0 | I53: 0 | K53: =E53 -> 124049.34
A54: Computers - hardware/equipment | D54: 83138.68 | E54: 83138.68 | G54: 0 | I54: 0 | K54: 83138.68
A55: Furniture and other office equipment | D55: 114166.12 | E55: 114166.12 | G55: 0 | I55: 0 | K55: 114166.12
A56: Abattoirs | I56: 0
A57: Markets | I57: 0
A58: Civic Land and Buildings | D58: 111559.07 | E58: =D58 -> 111559.07 | G58: =F58 -> 0 | I58: 0 | K58: =E58 -> 111559.07
A59: Other Buildings | I59: 0
A60: Other Land | I60: 0
A61: Surplus Assets - (Investment or Inventory) | I61: 0
A62: Other | I62: 0
A64: Agricultural assets | C64: =SUM(C65:C66) -> 0 | D64: 0 | E64: 0 | F64: 0 | G64: 0 | H64: 0 | I64: =H64-G64 -> 0 | K64: =SUM(K65) -> 0
A65: List sub-class | I65: =H65-G65 -> 0
I66: =H66-G66 -> 0
J67: =IF(I67=0,"",I67/H67) -> 
A68: Biological assets | C68: =SUM(C69:C70) -> 0 | D68: 0 | E68: 0 | F68: 0 | G68: 0 | H68: 0 | I68: =H68-G68 -> 0 | J68: =IF(I68=0,"",I68/H68) ->  | K68: =SUM(K69) -> 0
A69: List sub-class | I69: =H69-G69 -> 0 | J69: =IF(I69=0,"",I69/H69) -> 
I70: =H70-G70 -> 0 | J70: =IF(I70=0,"",I70/H70) -> 
A72: Intangibles | C72: =SUM(C73:C74) -> 0 | D72: 67551.98 | E72: 67551.98 | F72: 0 | G72: 0 | H72: 0 | I72: =H72-G72 -> 0 | J72: =IF(I72=0,"",I72/H72) ->  | K72: =SUM(K73:K74) -> 67551.98
A73: Computers - software & programming | D73: 67551.98 | E73: =D73 -> 67551.98 | G73: =F73 -> 0 | I73: =H73-G73 -> 0 | J73: =IF(I73=0,"",I73/H73) ->  | K73: =E73 -> 67551.98
A74: Other | I74: =H74-G74 -> 0 | J74: =IF(I74=0,"",I74/H74) -> 
A76: Total Repairs and Maintenance Expenditure | C76: =C7+C28+C43+C47+C50+C64+C68+C72 -> 0 | D76: 3135176.51 | E76: 3135176.51 | F76: 0 | G76: 0 | H76: 0 | I76: =H76-G76 -> 0 | J76: =IF(I76=0,"",I76/H76) ->  | K76: =K7+K28+K43+K47+K50+K64+K68+K72 -> 3135176.51
A78: Specialised vehicles | C78: =SUM(C79:C82) -> 0 | D78: 43135.01 | E78: 43135.01 | F78: 0 | G78: 0 | H78: 0 | I78: =H78-G78 -> 0 | J78: =IF(I78=0,"",I78/H78) ->  | K78: 43135.01
A79: Refuse | D79: 40690.66 | E79: =D79 -> 40690.66 | G79: =F79 -> 0 | I79: =H79-G79 -> 0 | J79: =IF(I79=0,"",I79/H79) ->  | K79: =E79 -> 40690.66
A80: Fire | D80: 2444.35 | E80: 2444.35 | G80: 0 | I80: =H80-G80 -> 0 | J80: =IF(I80=0,"",I80/H80) ->  | K80: 2444.35
A81: Conservancy | I81: =H81-G81 -> 0 | J81: =IF(I81=0,"",I81/H81) -> 
A82: Ambulances | I82: =H82-G82 -> 0 | J82: =IF(I82=0,"",I82/H82) -> 

Sheet SC71charts
A1: ='Template names'!B101 -> Chart C1 2012/13 Capital Expenditure Monthly Trend: actual v target
A2: Month | B2: ='SC12'!B2 -> 2011/12 | C2: ='SC12'!C3 -> Original Budget | D2: ='SC12'!D3 -> Adjusted Budget | E2: ='SC12'!E3 -> Monthly actual
A3: =LEFT('SC12'!A6,3) -> Jul | B3: ='SC12'!B6 -> 2582.34 | C3: ='SC12'!C6 -> 4000000 | D3: ='SC12'!D6 -> 4000000 | E3: ='SC12'!E6 -> 1e-11
A4: =LEFT('SC12'!A7,3) -> Aug | B4: ='SC12'!B7 -> 1e-06 | C4: ='SC12'!C7 -> 0 | D4: ='SC12'!D7 -> 0 | E4: ='SC12'!E7 -> 1e-11
A5: =LEFT('SC12'!A8,3) -> Sep | B5: ='SC12'!B8 -> 6327.92 | C5: ='SC12'!C8 -> 0 | D5: ='SC12'!D8 -> 0 | E5: ='SC12'!E8 -> 166865.53
A6: =LEFT('SC12'!A9,3) -> Oct | B6: ='SC12'!B9 -> 1e-06 | C6: ='SC12'!C9 -> 0 | D6: ='SC12'!D9 -> 0 | E6: ='SC12'!E9 -> 1e-11
A7: =LEFT('SC12'!A10,3) -> Nov | B7: ='SC12'!B10 -> 42504.86 | C7: ='SC12'!C10 -> 3000000 | D7: ='SC12'!D10 -> 3000000 | E7: ='SC12'!E10 -> 1e-11
A8: =LEFT('SC12'!A11,3) -> Dec | B8: ='SC12'!B11 -> 137511.24 | C8: ='SC12'!C11 -> 0 | D8: ='SC12'!D11 -> 0 | E8: ='SC12'!E11 -> 1e-11
A9: =LEFT('SC12'!A12,3) -> Jan | B9: ='SC12'!B12 -> 1228.07 | C9: ='SC12'!C12 -> 0 | D9: ='SC12'!D12 -> 0 | E9: ='SC12'!E12 -> 0
A10: =LEFT('SC12'!A13,3) -> Feb | B10: ='SC12'!B13 -> 1e-06 | C10: ='SC12'!C13 -> 0 | D10: ='SC12'!D13 -> 0 | E10: ='SC12'!E13 -> 0
A11: =LEFT('SC12'!A14,3) -> Mar | B11: ='SC12'!B14 -> 1e-06 | C11: ='SC12'!C14 -> 2574000 | D11: ='SC12'!D14 -> 2574000 | E11: ='SC12'!E14 -> 0
A12: =LEFT('SC12'!A15,3) -> Apr | B12: ='SC12'!B15 -> 347351.33 | C12: ='SC12'!C15 -> 0 | D12: ='SC12'!D15 -> 0 | E12: ='SC12'!E15 -> 0
A13: =LEFT('SC12'!A16,3) -> May | B13: ='SC12'!B16 -> 10286.88 | C13: ='SC12'!C16 -> 0 | D13: ='SC12'!D16 -> 0 | E13: ='SC12'!E16 -> 0
A14: =LEFT('SC12'!A17,3) -> Jun | B14: ='SC12'!B17 -> 9677317.01 | C14: ='SC12'!C17 -> 0 | D14: ='SC12'!D17 -> 0 | E14: ='SC12'!E17 -> 0
A26: ='Template names'!B102 -> Chart C2 2012/13 Capital Expenditure: YTD actual v YTD target
A27: Month | B27: ='SC12'!F3 -> YearTD actual | C27: ='SC12'!G3 -> YearTD budget
A28: =LEFT('SC12'!A6,3) -> Jul | B28: ='SC12'!F6 -> 1e-11 | C28: ='SC12'!G6 -> 4000000
A29: =LEFT('SC12'!A7,3) -> Aug | B29: ='SC12'!F7 -> 2e-11 | C29: ='SC12'!G7 -> 4000000
A30: =LEFT('SC12'!A8,3) -> Sep | B30: ='SC12'!F8 -> 166865.53 | C30: ='SC12'!G8 -> 4000000
A31: =LEFT('SC12'!A9,3) -> Oct | B31: ='SC12'!F9 -> 166865.53 | C31: ='SC12'!G9 -> 4000000
A32: =LEFT('SC12'!A10,3) -> Nov | B32: ='SC12'!F10 -> 166865.53 | C32: ='SC12'!G10 -> 7000000
A33: =LEFT('SC12'!A11,3) -> Dec | B33: ='SC12'!F11 -> 166865.53 | C33: ='SC12'!G11 -> 7000000
A34: =LEFT('SC12'!A12,3) -> Jan | B34: ='SC12'!F12 ->  | C34: ='SC12'!G12 -> 7000000
A35: =LEFT('SC12'!A13,3) -> Feb | B35: ='SC12'!F13 ->  | C35: ='SC12'!G13 -> 7000000
A36: =LEFT('SC12'!A14,3) -> Mar | B36: ='SC12'!F14 ->  | C36: ='SC12'!G14 -> 9574000
A37: =LEFT('SC12'!A15,3) -> Apr | B37: ='SC12'!F15 ->  | C37: ='SC12'!G15 -> 9574000
A38: =LEFT('SC12'!A16,3) -> May | B38: ='SC12'!F16 ->  | C38: ='SC12'!G16 -> 9574000
A39: =LEFT('SC12'!A17,3) -> Jun | B39: ='SC12'!F17 ->  | C39: ='SC12'!G17 -> 9574000
A51: ='Template names'!B103 -> Chart C3 Aged Consumer Debtors Analysis
B52: ='SC3'!C3 -> 0-30 Days | C52: ='SC3'!D3 -> 31-60 Days | D52: ='SC3'!E3 -> 61-90 Days | E52: ='SC3'!F3 -> 91-120 Days | F52: ='SC3'!G3 -> 121-150 Dys | G52: ='SC3'!H3 -> 151-180 Dys | H52: ='SC3'!I3 -> 181 Dys-1 Yr | I52: ='SC3'!J3 -> Over 1Yr
A53: =Head2 -> Budget Year 2012/13 | B53: ='SC3'!C13 -> 1524291.11 | C53: ='SC3'!D13 -> 257944.76 | D53: ='SC3'!E13 -> 162986.27 | E53: ='SC3'!F13 -> 157112.32 | F53: ='SC3'!G13 -> 129846.96 | G53: ='SC3'!H13 -> 1410115.77 | H53: ='SC3'!I13 -> 1330345.7 | I53: ='SC3'!J13 -> 1213955.25
A54: =Head1 -> 2011/12 | B54: ='SC3'!C14 -> 2634587.08 | C54: ='SC3'!D14 -> 353615.54 | D54: ='SC3'!E14 -> 227408.92 | E54: ='SC3'!F14 -> 63049.98 | F54: ='SC3'!G14 -> 16246.73 | G54: ='SC3'!H14 -> 0 | H54: ='SC3'!I14 -> 0 | I54: ='SC3'!J14 -> 1589914.47
A76: ='Template names'!B104 -> Chart C4 Consumer Debtors (total by Debtor Customer Category)
B77: =Head1 -> 2011/12 | C77: =Head2 -> Budget Year 2012/13
A78: ='SC3'!A16 -> Government | B78: 64223.31 | C78: ='SC3'!K16 -> 190356.01
A79: ='SC3'!A17 -> Business | B79: 259108.22 | C79: ='SC3'!K17 -> 231517.4
A80: ='SC3'!A18 -> Households | B80: 3838485.22 | C80: ='SC3'!K18 -> 5737057.1
A81: ='SC3'!A19 -> Other | B81: 24129.15 | C81: ='SC3'!K19 -> 27667.63
A101: ='Template names'!B105 -> Chart C5 Aged Creditors Analysis
B102: ='SC4'!A6 -> Bulk Electricity | C102: ='SC4'!A7 -> Bulk Water | D102: ='SC4'!A8 -> PAYE deductions | E102: ='SC4'!A9 -> VAT (output less input) | F102: ='SC4'!A10 -> Pensions / Retirement deductions | G102: ='SC4'!A11 -> Loan repayments | H102: ='SC4'!A12 -> Trade Creditors | I102: ='SC4'!A13 -> Auditor General | J102: ='SC4'!A14 -> Other
A103: =A54 -> 2011/12 | B103: ='SC4'!L6 -> 473448.59 | C103: ='SC4'!L7 -> 0 | D103: ='SC4'!L8 -> 182639.35 | E103: ='SC4'!L9 -> 0 | F103: ='SC4'!L10 -> 138456.69 | G103: ='SC4'!L11 -> 0 | H103: ='SC4'!L12 -> 982522.31 | I103: ='SC4'!L13 -> 163046.64 | J103: ='SC4'!L14 -> 7075265.14
A104: =A53 -> Budget Year 2012/13 | B104: ='SC4'!K6 -> 0 | C104: ='SC4'!K7 -> 0 | D104: ='SC4'!K8 -> 0 | E104: ='SC4'!K9 -> 0 | F104: ='SC4'!K10 -> 0 | G104: ='SC4'!K11 -> 0 | H104: ='SC4'!K12 -> 0 | I104: ='SC4'!K13 -> 0 | J104: ='SC4'!K14 -> 0
